Service Area,Service Division,Expense Type,Expense Code,Detailed Expense Type,Payment Date,Transaction Number,Amount Exc Vat,Supplier Name
Adults Wellbeing and Health,AWH Redundant Cost Centres,Third Party Payments,440051,Other Third Party Payments,30-Sep-2013,2647995-13/14-033,"10,000.00",CORNFORTH PARTNERSHIP.
Adults Wellbeing and Health,Commissioning inc Supporting People,Employees,080025,Agency Staff,18-Sep-2013,2644845,"1,155.00",RJH DEVELOPMENT DURHAM.
Adults Wellbeing and Health,Commissioning inc Supporting People,Premises,145050,Cleaning and Domestic Supplies,30-Sep-2013,2647915-26201,"32,537.70",ANLABY OFFICE CLEANING SERVICES LTD.
Adults Wellbeing and Health,Commissioning inc Supporting People,Transport,230005,Contract Hire,16-Sep-2013,2643521-1992,960.00,LANGLEY PARK COMMUNITY TRANSPORT.
Adults Wellbeing and Health,Commissioning inc Supporting People,Supplies and Services,342051,Computers and Communications,18-Sep-2013,224037-10062,"9,504.06",OXFORD COMPUTER CONSULTANTS.
Adults Wellbeing and Health,Commissioning inc Supporting People,Supplies and Services,384700,Miscellaneous Expenses,26-Sep-2013,2647266,"6,760.00",DR JOSEPH CHANDY CHARITABLE TRUST.
Adults Wellbeing and Health,Commissioning inc Supporting People,Supplies and Services,384700,Miscellaneous Expenses,27-Sep-2013,2647788,"9,245.00",HORDEN YOUTH & COMMUNITY CENTRE.
Adults Wellbeing and Health,Commissioning inc Supporting People,Supplies and Services,384700,Miscellaneous Expenses,27-Sep-2013,2647857,"8,122.40",SOUTH STANLEY PARTNERSHIP.
Adults Wellbeing and Health,Commissioning inc Supporting People,Third Party Payments,441001,Supporting People,06-Sep-2013,2639299-1952537,"17,866.88",DURHAM ACTION ON SINGLE HOUSING.
Adults Wellbeing and Health,Commissioning inc Supporting People,Third Party Payments,441001,Supporting People,06-Sep-2013,2639314-1952319,"5,402.40",EAST DURHAM COMMUNITY INITIATIVES LTD.
Adults Wellbeing and Health,Commissioning inc Supporting People,Third Party Payments,441001,Supporting People,06-Sep-2013,2639358-1952308,"9,190.44",HARBOUR SUPPORT SERVICES.
Adults Wellbeing and Health,Commissioning inc Supporting People,Third Party Payments,441001,Supporting People,06-Sep-2013,2639456-1952313,"8,097.92",NORCARE LTD.
Adults Wellbeing and Health,Commissioning inc Supporting People,Third Party Payments,441001,Supporting People,06-Sep-2013,2639456-1952662,"10,361.68",NORCARE LTD.
Adults Wellbeing and Health,Commissioning inc Supporting People,Third Party Payments,441001,Supporting People,06-Sep-2013,2639498-1952315,"9,429.16",RICHMOND FELLOWSHIP.
Adults Wellbeing and Health,Commissioning inc Supporting People,Third Party Payments,441001,Supporting People,06-Sep-2013,2639549-1952341,"48,252.08",STONHAM HOUSING ASSOCIATION LTD.
Adults Wellbeing and Health,Commissioning inc Supporting People,Third Party Payments,441001,Supporting People,06-Sep-2013,2639549-1952655,"16,646.56",STONHAM HOUSING ASSOCIATION LTD.
Adults Wellbeing and Health,Commissioning inc Supporting People,Third Party Payments,441001,Supporting People,06-Sep-2013,2639563-1952257,"28,590.11",TEES VALLEY HOUSING LTD.
Adults Wellbeing and Health,Commissioning inc Supporting People,Third Party Payments,441001,Supporting People,06-Sep-2013,2639568-1952653,"19,231.20",THE CYRENIANS LTD.
Adults Wellbeing and Health,Commissioning inc Supporting People,Third Party Payments,441001,Supporting People,06-Sep-2013,2639574-1952252,"11,181.61",THREE RIVERS HOUSING ASSOCIATION LTD.
Adults Wellbeing and Health,Commissioning inc Supporting People,Third Party Payments,441001,Supporting People,06-Sep-2013,2639574-1952652,"7,692.32",THREE RIVERS HOUSING ASSOCIATION LTD.
Adults Wellbeing and Health,Commissioning inc Supporting People,Third Party Payments,441001,Supporting People,06-Sep-2013,2639606-1952373,"1,166.12",WADDINGTON STREET CENTRE LTD.
Adults Wellbeing and Health,Commissioning inc Supporting People,Third Party Payments,441001,Supporting People,06-Sep-2013,2639609-1952654,"7,617.32",WEAR VALLEY WOMENS AID.
Adults Wellbeing and Health,Commissioning inc Supporting People,Third Party Payments,442002,Supporting People,06-Sep-2013,2639235-1952265,"18,443.60",BID SERVICES WITH DEAF PEOPLE.
Adults Wellbeing and Health,Commissioning inc Supporting People,Third Party Payments,442002,Supporting People,06-Sep-2013,2639279-1952585,"18,522.48",CREATIVE SUPPORT LTD.
Adults Wellbeing and Health,Commissioning inc Supporting People,Third Party Payments,442002,Supporting People,06-Sep-2013,2639292-1952531,"2,439.44",DERWENTSIDE DOMESTIC ABUSE SERVICE.
Adults Wellbeing and Health,Commissioning inc Supporting People,Third Party Payments,442002,Supporting People,06-Sep-2013,2639294-1952579,"35,813.60",DISC LTD.
Adults Wellbeing and Health,Commissioning inc Supporting People,Third Party Payments,442002,Supporting People,06-Sep-2013,2639334-1952361,"33,120.36",FOUNDATION HOUSING.
Adults Wellbeing and Health,Commissioning inc Supporting People,Third Party Payments,442002,Supporting People,06-Sep-2013,2639357-1952577,"5,906.84",HANOVER HOUSING ASSOCIATION.
Adults Wellbeing and Health,Commissioning inc Supporting People,Third Party Payments,442002,Supporting People,06-Sep-2013,2639358-1952326,"2,965.76",HARBOUR SUPPORT SERVICES.
Adults Wellbeing and Health,Commissioning inc Supporting People,Third Party Payments,442002,Supporting People,06-Sep-2013,2639422-1952572,"7,049.15",MENTAL HEALTH MATTERS.
Adults Wellbeing and Health,Commissioning inc Supporting People,Third Party Payments,442002,Supporting People,06-Sep-2013,2639432-1952560,"5,561.68",MOVING ON.
Adults Wellbeing and Health,Commissioning inc Supporting People,Third Party Payments,442002,Supporting People,06-Sep-2013,2639456-1952316,"3,078.80",NORCARE LTD.
Adults Wellbeing and Health,Commissioning inc Supporting People,Third Party Payments,442002,Supporting People,06-Sep-2013,2639456-1952574,"1,954.64",NORCARE LTD.
Adults Wellbeing and Health,Commissioning inc Supporting People,Third Party Payments,442002,Supporting People,06-Sep-2013,2639498-1952638,"4,382.44",RICHMOND FELLOWSHIP.
Adults Wellbeing and Health,Commissioning inc Supporting People,Third Party Payments,442002,Supporting People,06-Sep-2013,2639528-1952384,"9,294.32",SHAID.
Adults Wellbeing and Health,Commissioning inc Supporting People,Third Party Payments,442002,Supporting People,06-Sep-2013,2639549-1952369,"178,650.32",STONHAM HOUSING ASSOCIATION LTD.
Adults Wellbeing and Health,Commissioning inc Supporting People,Third Party Payments,442002,Supporting People,06-Sep-2013,2639549-1952660,"28,364.92",STONHAM HOUSING ASSOCIATION LTD.
Adults Wellbeing and Health,Commissioning inc Supporting People,Third Party Payments,442002,Supporting People,06-Sep-2013,2639563-1952314,"9,785.24",TEES VALLEY HOUSING LTD.
Adults Wellbeing and Health,Commissioning inc Supporting People,Third Party Payments,442002,Supporting People,06-Sep-2013,2639574-1952514,"8,976.12",THREE RIVERS HOUSING ASSOCIATION LTD.
Adults Wellbeing and Health,Commissioning inc Supporting People,Third Party Payments,442002,Supporting People,06-Sep-2013,2639574-1952557,"43,230.76",THREE RIVERS HOUSING ASSOCIATION LTD.
Adults Wellbeing and Health,Commissioning inc Supporting People,Third Party Payments,442002,Supporting People,06-Sep-2013,2639574-1952573,"3,835.60",THREE RIVERS HOUSING ASSOCIATION LTD.
Adults Wellbeing and Health,Commissioning inc Supporting People,Third Party Payments,443001,Supporting People,06-Sep-2013,2639299-1952586,"1,454.08",DURHAM ACTION ON SINGLE HOUSING.
Adults Wellbeing and Health,Commissioning inc Supporting People,Third Party Payments,443001,Supporting People,06-Sep-2013,2639299-1952588,"2,181.12",DURHAM ACTION ON SINGLE HOUSING.
Adults Wellbeing and Health,Commissioning inc Supporting People,Third Party Payments,443001,Supporting People,06-Sep-2013,2639299-1952589,727.04,DURHAM ACTION ON SINGLE HOUSING.
Adults Wellbeing and Health,Commissioning inc Supporting People,Third Party Payments,443001,Supporting People,06-Sep-2013,2639369-1952515,964.80,HOME HOUSING ASSOCIATION LTD.
Adults Wellbeing and Health,Commissioning inc Supporting People,Third Party Payments,443001,Supporting People,06-Sep-2013,2639403-1952544,"10,781.36",KINDSTREAM CARE LTD.
Adults Wellbeing and Health,Commissioning inc Supporting People,Third Party Payments,443001,Supporting People,06-Sep-2013,2639403-1952550,"2,629.60",KINDSTREAM CARE LTD.
Adults Wellbeing and Health,Commissioning inc Supporting People,Third Party Payments,443001,Supporting People,06-Sep-2013,2639549-1952404,"23,085.92",STONHAM HOUSING ASSOCIATION LTD.
Adults Wellbeing and Health,Commissioning inc Supporting People,Third Party Payments,443001,Supporting People,06-Sep-2013,2639549-1952561,"8,131.20",STONHAM HOUSING ASSOCIATION LTD.
Adults Wellbeing and Health,Commissioning inc Supporting People,Third Party Payments,443001,Supporting People,06-Sep-2013,2639606-1952534,"1,374.48",WADDINGTON STREET CENTRE LTD.
Adults Wellbeing and Health,Commissioning inc Supporting People,Third Party Payments,444002,Supporting People,06-Sep-2013,2639498-1952640,"4,595.04",RICHMOND FELLOWSHIP.
Adults Wellbeing and Health,Commissioning inc Supporting People,Third Party Payments,470111,Purchase of Care,30-Sep-2013,2648126,"4,047.23",LEONARD CHESHIRE DISABILITY.
Adults Wellbeing and Health,Commissioning inc Supporting People,Third Party Payments,472113,Purchase of Care,12-Sep-2013,2641806-1358280H,991.72,DALE CARE LTD.
Adults Wellbeing and Health,Commissioning inc Supporting People,Third Party Payments,472113,Purchase of Care,12-Sep-2013,2641806-1361940H,696.32,DALE CARE LTD.
Adults Wellbeing and Health,Commissioning inc Supporting People,Third Party Payments,472113,Purchase of Care,12-Sep-2013,2641806-1362293H,960.08,DALE CARE LTD.
Adults Wellbeing and Health,Commissioning inc Supporting People,Third Party Payments,479101,Purchase of Care,05-Sep-2013,2639068-650045937,"3,703.00",BRITISH RED CROSS SOCIETY.
Adults Wellbeing and Health,Commissioning inc Supporting People,Third Party Payments,479101,Purchase of Care,05-Sep-2013,2639068-650046034,"3,703.00",BRITISH RED CROSS SOCIETY.
Adults Wellbeing and Health,Commissioning inc Supporting People,Third Party Payments,479101,Purchase of Care,13-Sep-2013,2643311-CRM3949,"26,288.25",STROKE ASSOCIATION.
Adults Wellbeing and Health,Commissioning inc Supporting People,Third Party Payments,479101,Purchase of Care,24-Sep-2013,2646558,"7,000.00",DISC LTD.
Adults Wellbeing and Health,Commissioning inc Supporting People,Third Party Payments,479101,Purchase of Care,27-Sep-2013,2647750,"28,294.00",CO DURHAM & DARLINGTON NHS FOUNDATION TRUST.
Adults Wellbeing and Health,Commissioning inc Supporting People,Third Party Payments,479111,Purchase of Care,24-Sep-2013,2646864,"10,275.11",THREE RIVERS HOUSING ASSOCIATION LTD.
Adults Wellbeing and Health,Commissioning inc Supporting People,Third Party Payments,479111,Purchase of Care,30-Sep-2013,2648263,"6,086.40",THE BEFRIENDER SCHEME.
Adults Wellbeing and Health,Commissioning inc Supporting People,Third Party Payments,479111,Purchase of Care,05-Sep-2013,2639170-1610,"5,804.75",SKILLS FOR PEOPLE.
Adults Wellbeing and Health,Commissioning inc Supporting People,Third Party Payments,479111,Purchase of Care,12-Sep-2013,2641912-DCC015,"4,614.78",DURHAM DEAFENED SUPPORT.
Adults Wellbeing and Health,Commissioning inc Supporting People,Third Party Payments,479111,Purchase of Care,13-Sep-2013,2643311-CRM3851,"12,175.00",STROKE ASSOCIATION.
Adults Wellbeing and Health,Commissioning inc Supporting People,Third Party Payments,479111,Purchase of Care,16-Sep-2013,2643687-664,"1,250.00",THE HOSPITAL OF GOD AT GREATHAM.
Adults Wellbeing and Health,Commissioning inc Supporting People,Third Party Payments,479111,Purchase of Care,27-Sep-2013,2647811-555/02690,"14,830.50",MENTAL HEALTH MATTERS.
Adults Wellbeing and Health,Commissioning inc Supporting People,Third Party Payments,479111,Purchase of Care,30-Sep-2013,2648021-GD1314005,"16,000.00",DURHAM CITIZENS ADVICE BUREAU.
Adults Wellbeing and Health,Commissioning inc Supporting People,Third Party Payments,479111,Purchase of Care,30-Sep-2013,2648025-DCC014,"4,614.78",DURHAM DEAFENED SUPPORT.
Adults Wellbeing and Health,Financing-Adult Services,Debtors,930024,Debtor-free nursing care,12-Sep-2013,2641628-2119722,604.40,BENFIELD HALL.
Adults Wellbeing and Health,Financing-Adult Services,Debtors,930024,Debtor-free nursing care,12-Sep-2013,2641794-2121603,533.26,CRAIGARRAN CARE HOME WITH NURSING.
Adults Wellbeing and Health,Financing-Adult Services,Debtors,930024,Debtor-free nursing care,12-Sep-2013,2642310-2119700,"2,415.38",KIMBLESWORTH NURSING HOME.
Adults Wellbeing and Health,Financing-Adult Services,Debtors,930024,Debtor-free nursing care,12-Sep-2013,2642310-2119710,604.40,KIMBLESWORTH NURSING HOME.
Adults Wellbeing and Health,Financing-Adult Services,Debtors,930024,Debtor-free nursing care,12-Sep-2013,2642310-2121760,"2,415.38",KIMBLESWORTH NURSING HOME.
Adults Wellbeing and Health,Financing-Adult Services,Debtors,930024,Debtor-free nursing care,12-Sep-2013,2642740-2121691,878.32,PARKLANDS RESIDENTIAL HOME.
Adults Wellbeing and Health,Financing-Adult Services,Debtors,930024,Debtor-free nursing care,12-Sep-2013,2642808-2118581,"2,415.38",PREMIER CARE HOMES LTD.
Adults Wellbeing and Health,Financing-Adult Services,Debtors,930024,Debtor-free nursing care,12-Sep-2013,2642808-2118582,831.27,PREMIER CARE HOMES LTD.
Adults Wellbeing and Health,Financing-Adult Services,Debtors,930024,Debtor-free nursing care,12-Sep-2013,2642838-2119463,604.40,RAYSON HOMES LTD.
Adults Wellbeing and Health,Financing-Adult Services,Debtors,930024,Debtor-free nursing care,12-Sep-2013,2643042-2118664,604.40,TAMARIS HEALTHCARE LTD.
Adults Wellbeing and Health,Financing-Adult Services,Debtors,930024,Debtor-free nursing care,12-Sep-2013,2643048-2118852,604.40,TAMARIS HEALTHCARE LTD.
Adults Wellbeing and Health,Financing-Adult Services,Debtors,930024,Debtor-free nursing care,12-Sep-2013,2643048-2118898,604.40,TAMARIS HEALTHCARE LTD.
Adults Wellbeing and Health,Financing-Adult Services,Debtors,930024,Debtor-free nursing care,12-Sep-2013,2643050-2118666,627.37,TAMARIS HEALTHCARE LTD.
Adults Wellbeing and Health,Financing-Adult Services,Debtors,930046,Debtor-leasing,18-Sep-2013,2644746-MRI2265420,"2,825.76",LEX AUTOLEASE LTD.
Adults Wellbeing and Health,Financing-Adult Services,Debtors,930131,Debtor-Hospital Re-Admission Avoidance Project,03-Sep-2013,2638630-144891,700.00,DALE CARE LTD.
Adults Wellbeing and Health,Financing-Adult Services,Debtors,930131,Debtor-Hospital Re-Admission Avoidance Project,03-Sep-2013,2638630-144892,840.00,DALE CARE LTD.
Adults Wellbeing and Health,Financing-Adult Services,Debtors,930131,Debtor-Hospital Re-Admission Avoidance Project,03-Sep-2013,2638751-09,600.00,PREMIER COMMUNITY CARE LTD.
Adults Wellbeing and Health,Head of Adults,Premises,108037,Service Repairs and Maintenance,18-Sep-2013,2644689,645.50,REDACTED - PAYMENT TO INDIVIDUAL
Adults Wellbeing and Health,Head of Adults,Premises,125009,Rents,03-Sep-2013,2638635-GLS,"4,365.01",DERWENTSIDE HOMES LTD.
Adults Wellbeing and Health,Head of Adults,Premises,125009,Rents,16-Sep-2013,2643471-2400,"3,956.71",GVA GRIMLEY LLP.
Adults Wellbeing and Health,Head of Adults,Premises,125009,Rents,18-Sep-2013,2644696-165552,"3,260.43",HARLEY STREET INTERNATIONAL LTD.
Adults Wellbeing and Health,Head of Adults,Premises,125009,Rents,18-Sep-2013,2644732-308046,782.50,KNIGHT FRANK LLP.
Adults Wellbeing and Health,Head of Adults,Premises,125009,Rents,19-Sep-2013,2645426-254727,"1,172.55",WHITTLE JONES (GROUP) LTD.
Adults Wellbeing and Health,Head of Adults,Premises,145023,Cleaning and Domestic Supplies,19-Sep-2013,2645125-06/477345,806.99,GREENHAM TRADING LTD.
Adults Wellbeing and Health,Head of Adults,Premises,150005,Apportioned Exps of Operational Blds,26-Sep-2013,2647583-109014,674.00,SANDERSON WEATHERALL LLP.
Adults Wellbeing and Health,Head of Adults,Transport,230005,Contract Hire,09-Sep-2013,2639932,"1,170.96",STEPHEN COXON.
Adults Wellbeing and Health,Head of Adults,Transport,230005,Contract Hire,10-Sep-2013,2640744,900.00,MR M ALLISON.
Adults Wellbeing and Health,Head of Adults,Transport,230005,Contract Hire,10-Sep-2013,2640777,560.00,PB PRIVATE HIRE.
Adults Wellbeing and Health,Head of Adults,Transport,230005,Contract Hire,10-Sep-2013,2640802,"1,315.86",RMB TRAVEL.
Adults Wellbeing and Health,Head of Adults,Transport,230005,Contract Hire,11-Sep-2013,223827-357,855.20,REDACTED - PAYMENT TO INDIVIDUAL
Adults Wellbeing and Health,Head of Adults,Transport,230005,Contract Hire,11-Sep-2013,223827-360,856.80,REDACTED - PAYMENT TO INDIVIDUAL
Adults Wellbeing and Health,Head of Adults,Transport,230005,Contract Hire,09-Sep-2013,2639628-468,840.00,A BARKER.
Adults Wellbeing and Health,Head of Adults,Transport,230005,Contract Hire,09-Sep-2013,2639657-1071,"1,326.00",BOBBY DOVE.
Adults Wellbeing and Health,Head of Adults,Transport,230005,Contract Hire,09-Sep-2013,2639704,630.00,COLVIN`S CABS.
Adults Wellbeing and Health,Head of Adults,Transport,230005,Contract Hire,09-Sep-2013,2639769-020,768.00,GS PEARSON.
Adults Wellbeing and Health,Head of Adults,Transport,230005,Contract Hire,09-Sep-2013,2639841-097,"2,310.00",MR D KEMP T/A ACE EXECUTIVE.
Adults Wellbeing and Health,Head of Adults,Transport,230005,Contract Hire,09-Sep-2013,2639875-352,792.00,PETERLEE EXECUTIVE CARS.
Adults Wellbeing and Health,Head of Adults,Transport,230005,Contract Hire,09-Sep-2013,2639878-0260,"1,340.00",PETER`S PRIVATE HIRE/PETER BEST.
Adults Wellbeing and Health,Head of Adults,Transport,230005,Contract Hire,09-Sep-2013,2639881-81,540.00,PITSTOP TAXIS.
Adults Wellbeing and Health,Head of Adults,Transport,230005,Contract Hire,09-Sep-2013,2639909,"2,100.00",S & S TRAVEL LTD.
Adults Wellbeing and Health,Head of Adults,Transport,230005,Contract Hire,09-Sep-2013,2639946-PC21,"2,978.43",TED WILFORD COACHES.
Adults Wellbeing and Health,Head of Adults,Transport,230005,Contract Hire,09-Sep-2013,2639953-100,658.92,THE TAXI CO.
Adults Wellbeing and Health,Head of Adults,Transport,230005,Contract Hire,09-Sep-2013,2639980-792,735.00,WAYNE`S TAXIS.
Adults Wellbeing and Health,Head of Adults,Transport,230005,Contract Hire,09-Sep-2013,2639980-794,"1,542.00",WAYNE`S TAXIS.
Adults Wellbeing and Health,Head of Adults,Transport,230005,Contract Hire,10-Sep-2013,2640685-7981,587.52,GREENCROFT MINI COACHES.
Adults Wellbeing and Health,Head of Adults,Transport,230005,Contract Hire,10-Sep-2013,2640685-7982,"2,187.75",GREENCROFT MINI COACHES.
Adults Wellbeing and Health,Head of Adults,Transport,230005,Contract Hire,10-Sep-2013,2640704-2013/22,"1,038.00",JM HUMBLE COACH HIRE.
Adults Wellbeing and Health,Head of Adults,Transport,230005,Contract Hire,10-Sep-2013,2640714-20813,"1,587.60",KEVIN EDMUNDSON.
Adults Wellbeing and Health,Head of Adults,Transport,230005,Contract Hire,10-Sep-2013,2640724,769.20,MA BODDY.
Adults Wellbeing and Health,Head of Adults,Transport,230005,Contract Hire,10-Sep-2013,2640730-00586,948.00,MICHAELS TRAVEL.
Adults Wellbeing and Health,Head of Adults,Transport,230005,Contract Hire,10-Sep-2013,2640730-00587,"1,155.00",MICHAELS TRAVEL.
Adults Wellbeing and Health,Head of Adults,Transport,230005,Contract Hire,10-Sep-2013,2640735-339,"1,064.00",MOLLYS TAXIS.
Adults Wellbeing and Health,Head of Adults,Transport,230005,Contract Hire,10-Sep-2013,2640735-343,"1,278.00",MOLLYS TAXIS.
Adults Wellbeing and Health,Head of Adults,Transport,230005,Contract Hire,10-Sep-2013,2640738-460,"2,700.00",MR AD HOWARD.
Adults Wellbeing and Health,Head of Adults,Transport,230005,Contract Hire,10-Sep-2013,2640743-209,670.00,MR LEE ANDERSON.
Adults Wellbeing and Health,Head of Adults,Transport,230005,Contract Hire,10-Sep-2013,2640748-2751,"1,440.00",MR S BOWERS.
Adults Wellbeing and Health,Head of Adults,Transport,230005,Contract Hire,10-Sep-2013,2640784-911,"1,008.00",PODA LTD.
Adults Wellbeing and Health,Head of Adults,Transport,230005,Contract Hire,10-Sep-2013,2640803-131,"1,440.00",ROAD RUNNERS (NE) LTD.
Adults Wellbeing and Health,Head of Adults,Transport,230005,Contract Hire,10-Sep-2013,2640811-WVO26/12,"2,123.10",S & S TRAVEL LTD.
Adults Wellbeing and Health,Head of Adults,Transport,230005,Contract Hire,10-Sep-2013,2640832-B621,"1,516.62",TALBOTS TRAVEL LTD.
Adults Wellbeing and Health,Head of Adults,Transport,230005,Contract Hire,10-Sep-2013,2640850-790,"1,228.00",WAYNE`S TAXIS.
Adults Wellbeing and Health,Head of Adults,Transport,230005,Contract Hire,10-Sep-2013,2640850-791,"1,442.00",WAYNE`S TAXIS.
Adults Wellbeing and Health,Head of Adults,Transport,230005,Contract Hire,10-Sep-2013,2640852-4356,"2,295.10",WEARDALE PRIVATE HIRE.
Adults Wellbeing and Health,Head of Adults,Transport,230005,Contract Hire,10-Sep-2013,2640852-4357,"1,484.70",WEARDALE PRIVATE HIRE.
Adults Wellbeing and Health,Head of Adults,Transport,230005,Contract Hire,11-Sep-2013,2641045-5308A,"2,121.00",T MOORE & SON.
Adults Wellbeing and Health,Head of Adults,Transport,230005,Contract Hire,12-Sep-2013,2641078-AA830,"1,864.80",AA MINIBUS HIRE.
Adults Wellbeing and Health,Head of Adults,Transport,230005,Contract Hire,12-Sep-2013,2641078-AA831,"1,345.00",AA MINIBUS HIRE.
Adults Wellbeing and Health,Head of Adults,Transport,230005,Contract Hire,12-Sep-2013,2641085-0145,644.00,ABC & OUSTON CABS.
Adults Wellbeing and Health,Head of Adults,Transport,230005,Contract Hire,12-Sep-2013,2641782-198,619.52,CONNORS MINI BUSES.
Adults Wellbeing and Health,Head of Adults,Transport,230005,Contract Hire,12-Sep-2013,2641782-199,"1,134.00",CONNORS MINI BUSES.
Adults Wellbeing and Health,Head of Adults,Transport,230005,Contract Hire,12-Sep-2013,2641782-200,775.28,CONNORS MINI BUSES.
Adults Wellbeing and Health,Head of Adults,Transport,230005,Contract Hire,12-Sep-2013,2642397-813,"1,463.00",MAG`S CARS.
Adults Wellbeing and Health,Head of Adults,Transport,230005,Contract Hire,12-Sep-2013,2642783-00529,912.00,PHILLIPS TAXIS LTD.
Adults Wellbeing and Health,Head of Adults,Transport,230005,Contract Hire,12-Sep-2013,2642783-00546,"1,055.20",PHILLIPS TAXIS LTD.
Adults Wellbeing and Health,Head of Adults,Transport,230005,Contract Hire,12-Sep-2013,2642805-130808,695.00,PRATTS TAXIS.
Adults Wellbeing and Health,Head of Adults,Transport,230005,Contract Hire,12-Sep-2013,2642805-130809,"1,331.17",PRATTS TAXIS.
Adults Wellbeing and Health,Head of Adults,Transport,230005,Contract Hire,12-Sep-2013,2642832-13073,"2,162.90",RAPID MINIBUSES.
Adults Wellbeing and Health,Head of Adults,Transport,230005,Contract Hire,12-Sep-2013,2642832-13074,"1,210.00",RAPID MINIBUSES.
Adults Wellbeing and Health,Head of Adults,Transport,230005,Contract Hire,13-Sep-2013,2643215-DCC7,599.95,ATLAS TAXIS BISHOP AUCKLAND.
Adults Wellbeing and Health,Head of Adults,Transport,230005,Contract Hire,13-Sep-2013,2643215-DCC9,"2,060.00",ATLAS TAXIS BISHOP AUCKLAND.
Adults Wellbeing and Health,Head of Adults,Transport,230005,Contract Hire,13-Sep-2013,2643226-220,"1,273.50",COLIN HOLMES.
Adults Wellbeing and Health,Head of Adults,Transport,230005,Contract Hire,13-Sep-2013,2643227-0001100,"2,030.00",COLORS TAXIS LTD.
Adults Wellbeing and Health,Head of Adults,Transport,230005,Contract Hire,13-Sep-2013,2643250-CH11,616.00,JOVIAL PRIVATE HIRE.
Adults Wellbeing and Health,Head of Adults,Transport,230005,Contract Hire,13-Sep-2013,2643278-2748,"2,697.90",NIGHTINGALE COACHES.
Adults Wellbeing and Health,Head of Adults,Transport,230005,Contract Hire,13-Sep-2013,2643286-347,828.00,PETERLEE EXECUTIVE CARS.
Adults Wellbeing and Health,Head of Adults,Transport,230005,Contract Hire,13-Sep-2013,2643314-AUG2013,"1,806.00",TONYS TAXIS (A BIRCH).
Adults Wellbeing and Health,Head of Adults,Transport,230005,Contract Hire,13-Sep-2013,2643315-0713,"1,096.00",TRANSPORT.ADVENTURE.XI.
Adults Wellbeing and Health,Head of Adults,Transport,230005,Contract Hire,13-Sep-2013,2643315-0813,"1,028.00",TRANSPORT.ADVENTURE.XI.
Adults Wellbeing and Health,Head of Adults,Transport,230005,Contract Hire,16-Sep-2013,2643361-06432,"2,863.12",BIRDS TAXIS.
Adults Wellbeing and Health,Head of Adults,Transport,230005,Contract Hire,16-Sep-2013,2643361-06433,"1,765.76",BIRDS TAXIS.
Adults Wellbeing and Health,Head of Adults,Transport,230005,Contract Hire,16-Sep-2013,2643666-5989,904.80,STANLEY TRAVEL (NORTH EAST) LTD.
Adults Wellbeing and Health,Head of Adults,Transport,230005,Contract Hire,23-Sep-2013,2645592-K43/SN,"1,069.00",AABAT TAXIS.
Adults Wellbeing and Health,Head of Adults,Transport,230005,Contract Hire,23-Sep-2013,2645716-KW165,"1,070.00",KWIK CABS.
Adults Wellbeing and Health,Head of Adults,Transport,235057,Public Transport,02-Sep-2013,2637705-374494,"1,483.96",CLICK TRAVEL LTD.
Adults Wellbeing and Health,Head of Adults,Supplies and Services,304252,Equipment and Materials,02-Sep-2013,2637768,559.96,GK DECORATING.
Adults Wellbeing and Health,Head of Adults,Supplies and Services,304516,Equipment and Materials,19-Sep-2013,2644996-9454/08,"1,196.30",CABLES TAXI CONTRACTS.
Adults Wellbeing and Health,Head of Adults,Supplies and Services,304516,Equipment and Materials,19-Sep-2013,2645278-00541,576.00,PHILLIPS TAXIS LTD.
Adults Wellbeing and Health,Head of Adults,Supplies and Services,308011,Furniture,19-Sep-2013,2645086-554222,777.00,ELMOLINE LTD.
Adults Wellbeing and Health,Head of Adults,Supplies and Services,308011,Furniture,27-Sep-2013,2647720-146361,"1,248.00",ALBANY OFFICE EQUIPMENT (WHOLESALE) LTD.
Adults Wellbeing and Health,Head of Adults,Supplies and Services,324117,Provisions,02-Sep-2013,2637671,"1,549.80",ASHBARTON CATERING.
Adults Wellbeing and Health,Head of Adults,Supplies and Services,324117,Provisions,02-Sep-2013,2637805-N71682,"1,238.43",JR HOLLAND FOOD SERVICES LTD.
Adults Wellbeing and Health,Head of Adults,Supplies and Services,324117,Provisions,03-Sep-2013,2638694-N71684,"1,154.21",JR HOLLAND FOOD SERVICES LTD.
Adults Wellbeing and Health,Head of Adults,Supplies and Services,324117,Provisions,03-Sep-2013,2638694-N71687,"1,009.22",JR HOLLAND FOOD SERVICES LTD.
Adults Wellbeing and Health,Head of Adults,Supplies and Services,324117,Provisions,05-Sep-2013,2639120-N71689,747.70,JR HOLLAND FOOD SERVICES LTD.
Adults Wellbeing and Health,Head of Adults,Supplies and Services,324117,Provisions,12-Sep-2013,2642254-N80304,856.26,JR HOLLAND FOOD SERVICES LTD.
Adults Wellbeing and Health,Head of Adults,Supplies and Services,324117,Provisions,18-Sep-2013,2644725-N80309,715.67,JR HOLLAND FOOD SERVICES LTD.
Adults Wellbeing and Health,Head of Adults,Supplies and Services,324117,Provisions,24-Sep-2013,2646655-N80306,907.98,JR HOLLAND FOOD SERVICES LTD.
Adults Wellbeing and Health,Head of Adults,Supplies and Services,324117,Provisions,25-Sep-2013,2646996-N80305,938.51,JR HOLLAND FOOD SERVICES LTD.
Adults Wellbeing and Health,Head of Adults,Supplies and Services,324117,Provisions,25-Sep-2013,2646996-N80308,752.32,JR HOLLAND FOOD SERVICES LTD.
Adults Wellbeing and Health,Head of Adults,Supplies and Services,324117,Provisions,26-Sep-2013,2647381-N80307,926.74,JR HOLLAND FOOD SERVICES LTD.
Adults Wellbeing and Health,Head of Adults,Supplies and Services,328041,"Clothing, Uniforms and Laundry",02-Sep-2013,2637774-06/476097,580.50,GREENHAM TRADING LTD.
Adults Wellbeing and Health,Head of Adults,Supplies and Services,328041,"Clothing, Uniforms and Laundry",19-Sep-2013,2645125-06/477437,558.00,GREENHAM TRADING LTD.
Adults Wellbeing and Health,Head of Adults,Supplies and Services,338066,Services,02-Sep-2013,2637880-294,"7,750.00",PEOPLETOO LTD.
Adults Wellbeing and Health,Head of Adults,Supplies and Services,338066,Services,12-Sep-2013,2642778-305,"7,750.00",PEOPLETOO LTD.
Adults Wellbeing and Health,Head of Adults,Supplies and Services,338365,Services,04-Sep-2013,223567,819.00,ANDREW PARNABY MOBILITY SERVICES LTD.
Adults Wellbeing and Health,Head of Adults,Supplies and Services,338365,Services,02-Sep-2013,2637712,"21,566.69",COUNTY DURHAM HANDYPERSON SERVICE.
Adults Wellbeing and Health,Head of Adults,Supplies and Services,338365,Services,05-Sep-2013,2639096-14156,557.62,EASIBATHE LTD.
Adults Wellbeing and Health,Head of Adults,Supplies and Services,338365,Services,11-Sep-2013,2640904-7065,"2,380.00",DOLPHIN STAIRLIFTS (NORTH EAST) LTD.
Adults Wellbeing and Health,Head of Adults,Supplies and Services,338365,Services,20-Sep-2013,2645517-1296,508.00,KJS ACCESS SOLUTIONS.
Adults Wellbeing and Health,Head of Adults,Supplies and Services,338365,Services,30-Sep-2013,2648273,"3,165.00",TOTAL HYGIENE LTD.
Adults Wellbeing and Health,Head of Adults,Supplies and Services,338366,Services,06-Sep-2013,2639253-7505,761.98,CARE ABILITY.
Adults Wellbeing and Health,Head of Adults,Supplies and Services,338366,Services,24-Sep-2013,2646514-10549,"1,575.00",CARE ABILITY.
Adults Wellbeing and Health,Head of Adults,Supplies and Services,338366,Services,24-Sep-2013,2646514-10599,926.53,CARE ABILITY.
Adults Wellbeing and Health,Head of Adults,Supplies and Services,338366,Services,24-Sep-2013,2646514-10600,817.36,CARE ABILITY.
Adults Wellbeing and Health,Head of Adults,Supplies and Services,338366,Services,24-Sep-2013,2646514-10601,790.46,CARE ABILITY.
Adults Wellbeing and Health,Head of Adults,Supplies and Services,338366,Services,24-Sep-2013,2646514-10625,"2,520.00",CARE ABILITY.
Adults Wellbeing and Health,Head of Adults,Supplies and Services,338366,Services,24-Sep-2013,2646514-10632,"2,081.70",CARE ABILITY.
Adults Wellbeing and Health,Head of Adults,Supplies and Services,338366,Services,27-Sep-2013,2647738-10626,"1,500.00",CARE ABILITY.
Adults Wellbeing and Health,Head of Adults,Supplies and Services,338370,Services,20-Sep-2013,2645477-3910001303,"70,900.30",CO DURHAM & DARLINGTON NHS FOUNDATION TRUST.
Adults Wellbeing and Health,Head of Adults,Supplies and Services,338370,Services,20-Sep-2013,2645477-3910001304,"66,061.27",CO DURHAM & DARLINGTON NHS FOUNDATION TRUST.
Adults Wellbeing and Health,Head of Adults,Supplies and Services,384616,Miscellaneous Expenses,06-Sep-2013,2639335-SH161314,"2,908.41",FOUR HOUSING GROUP.
Adults Wellbeing and Health,Head of Adults,Supplies and Services,384616,Miscellaneous Expenses,06-Sep-2013,2639335-SH171314,"6,381.90",FOUR HOUSING GROUP.
Adults Wellbeing and Health,Head of Adults,Supplies and Services,384616,Miscellaneous Expenses,06-Sep-2013,2639335-SH181314,"2,689.20",FOUR HOUSING GROUP.
Adults Wellbeing and Health,Head of Adults,Supplies and Services,384616,Miscellaneous Expenses,10-Sep-2013,2640675-SH201314,"1,636.04",FOUR HOUSING GROUP.
Adults Wellbeing and Health,Head of Adults,Supplies and Services,384616,Miscellaneous Expenses,24-Sep-2013,2646596-SH211314,"1,588.38",FOUR HOUSING GROUP.
Adults Wellbeing and Health,Head of Adults,Supplies and Services,384616,Miscellaneous Expenses,24-Sep-2013,2646773-CSIV2902,930.24,PROGRESS CARE HOUSING ASSOCIATION LTD.
Adults Wellbeing and Health,Head of Adults,Third Party Payments,470101,Purchase of Care,18-Sep-2013,223935-2119538,"4,848.00",CARELINE LIFESTYLES LTD.
Adults Wellbeing and Health,Head of Adults,Third Party Payments,470101,Purchase of Care,12-Sep-2013,2641072-2119913,"6,031.16",3 RED ADMIRAL COURT.
Adults Wellbeing and Health,Head of Adults,Third Party Payments,470101,Purchase of Care,12-Sep-2013,2641074-2119891,"6,397.60",368 THE RIDGE.
Adults Wellbeing and Health,Head of Adults,Third Party Payments,470101,Purchase of Care,12-Sep-2013,2641076-2118233,896.46,A CHARLES THOMAS (CARE) LTD.
Adults Wellbeing and Health,Head of Adults,Third Party Payments,470101,Purchase of Care,12-Sep-2013,2641076-2118234,"1,792.92",A CHARLES THOMAS (CARE) LTD.
Adults Wellbeing and Health,Head of Adults,Third Party Payments,470101,Purchase of Care,12-Sep-2013,2641076-2118235,"1,792.92",A CHARLES THOMAS (CARE) LTD.
Adults Wellbeing and Health,Head of Adults,Third Party Payments,470101,Purchase of Care,12-Sep-2013,2641076-2118236,"1,792.92",A CHARLES THOMAS (CARE) LTD.
Adults Wellbeing and Health,Head of Adults,Third Party Payments,470101,Purchase of Care,12-Sep-2013,2641076-2118238,640.32,A CHARLES THOMAS (CARE) LTD.
Adults Wellbeing and Health,Head of Adults,Third Party Payments,470101,Purchase of Care,12-Sep-2013,2641076-2118239,"1,792.92",A CHARLES THOMAS (CARE) LTD.
Adults Wellbeing and Health,Head of Adults,Third Party Payments,470101,Purchase of Care,12-Sep-2013,2641076-2118240,"1,792.92",A CHARLES THOMAS (CARE) LTD.
Adults Wellbeing and Health,Head of Adults,Third Party Payments,470101,Purchase of Care,12-Sep-2013,2641076-2118264,"1,792.92",A CHARLES THOMAS (CARE) LTD.
Adults Wellbeing and Health,Head of Adults,Third Party Payments,470101,Purchase of Care,12-Sep-2013,2641076-2118281,"1,792.92",A CHARLES THOMAS (CARE) LTD.
Adults Wellbeing and Health,Head of Adults,Third Party Payments,470101,Purchase of Care,12-Sep-2013,2641076-2118382,"1,792.92",A CHARLES THOMAS (CARE) LTD.
Adults Wellbeing and Health,Head of Adults,Third Party Payments,470101,Purchase of Care,12-Sep-2013,2641076-2118383,576.29,A CHARLES THOMAS (CARE) LTD.
Adults Wellbeing and Health,Head of Adults,Third Party Payments,470101,Purchase of Care,12-Sep-2013,2641076-2118384,"1,216.62",A CHARLES THOMAS (CARE) LTD.
Adults Wellbeing and Health,Head of Adults,Third Party Payments,470101,Purchase of Care,12-Sep-2013,2641076-2118387,"1,792.92",A CHARLES THOMAS (CARE) LTD.
Adults Wellbeing and Health,Head of Adults,Third Party Payments,470101,Purchase of Care,12-Sep-2013,2641076-2118388,"1,792.92",A CHARLES THOMAS (CARE) LTD.
Adults Wellbeing and Health,Head of Adults,Third Party Payments,470101,Purchase of Care,12-Sep-2013,2641076-2118389,"1,792.92",A CHARLES THOMAS (CARE) LTD.
Adults Wellbeing and Health,Head of Adults,Third Party Payments,470101,Purchase of Care,12-Sep-2013,2641076-2118390,"1,792.92",A CHARLES THOMAS (CARE) LTD.
Adults Wellbeing and Health,Head of Adults,Third Party Payments,470101,Purchase of Care,12-Sep-2013,2641076-2118391,"1,792.92",A CHARLES THOMAS (CARE) LTD.
Adults Wellbeing and Health,Head of Adults,Third Party Payments,470101,Purchase of Care,12-Sep-2013,2641083-2117467,"1,759.04",ABBEYVALE.
Adults Wellbeing and Health,Head of Adults,Third Party Payments,470101,Purchase of Care,12-Sep-2013,2641083-2117468,"1,894.36",ABBEYVALE.
Adults Wellbeing and Health,Head of Adults,Third Party Payments,470101,Purchase of Care,12-Sep-2013,2641083-2117470,"1,894.36",ABBEYVALE.
Adults Wellbeing and Health,Head of Adults,Third Party Payments,470101,Purchase of Care,12-Sep-2013,2641083-2117471,"1,894.36",ABBEYVALE.
Adults Wellbeing and Health,Head of Adults,Third Party Payments,470101,Purchase of Care,12-Sep-2013,2641083-2117472,"1,894.36",ABBEYVALE.
Adults Wellbeing and Health,Head of Adults,Third Party Payments,470101,Purchase of Care,12-Sep-2013,2641083-2117473,"1,894.36",ABBEYVALE.
Adults Wellbeing and Health,Head of Adults,Third Party Payments,470101,Purchase of Care,12-Sep-2013,2641083-2117474,"1,894.36",ABBEYVALE.
Adults Wellbeing and Health,Head of Adults,Third Party Payments,470101,Purchase of Care,12-Sep-2013,2641083-2117475,"1,894.36",ABBEYVALE.
Adults Wellbeing and Health,Head of Adults,Third Party Payments,470101,Purchase of Care,12-Sep-2013,2641083-2117476,"1,894.36",ABBEYVALE.
Adults Wellbeing and Health,Head of Adults,Third Party Payments,470101,Purchase of Care,12-Sep-2013,2641083-2117477,"1,894.36",ABBEYVALE.
Adults Wellbeing and Health,Head of Adults,Third Party Payments,470101,Purchase of Care,12-Sep-2013,2641083-2117478,"1,954.36",ABBEYVALE.
Adults Wellbeing and Health,Head of Adults,Third Party Payments,470101,Purchase of Care,12-Sep-2013,2641083-2117479,"1,894.36",ABBEYVALE.
Adults Wellbeing and Health,Head of Adults,Third Party Payments,470101,Purchase of Care,12-Sep-2013,2641083-2117480,"1,894.36",ABBEYVALE.
Adults Wellbeing and Health,Head of Adults,Third Party Payments,470101,Purchase of Care,12-Sep-2013,2641083-2117481,"1,894.36",ABBEYVALE.
Adults Wellbeing and Health,Head of Adults,Third Party Payments,470101,Purchase of Care,12-Sep-2013,2641083-2117482,"1,894.36",ABBEYVALE.
Adults Wellbeing and Health,Head of Adults,Third Party Payments,470101,Purchase of Care,12-Sep-2013,2641083-2117483,"1,894.36",ABBEYVALE.
Adults Wellbeing and Health,Head of Adults,Third Party Payments,470101,Purchase of Care,12-Sep-2013,2641083-2117484,"1,894.36",ABBEYVALE.
Adults Wellbeing and Health,Head of Adults,Third Party Payments,470101,Purchase of Care,12-Sep-2013,2641083-2119791,"1,390.00",ABBEYVALE.
Adults Wellbeing and Health,Head of Adults,Third Party Payments,470101,Purchase of Care,12-Sep-2013,2641083-2119792,"2,500.00",ABBEYVALE.
Adults Wellbeing and Health,Head of Adults,Third Party Payments,470101,Purchase of Care,12-Sep-2013,2641083-2119793,"2,400.00",ABBEYVALE.
Adults Wellbeing and Health,Head of Adults,Third Party Payments,470101,Purchase of Care,12-Sep-2013,2641083-2119794,"2,400.00",ABBEYVALE.
Adults Wellbeing and Health,Head of Adults,Third Party Payments,470101,Purchase of Care,12-Sep-2013,2641083-2119795,"2,400.00",ABBEYVALE.
Adults Wellbeing and Health,Head of Adults,Third Party Payments,470101,Purchase of Care,12-Sep-2013,2641083-2119797,"2,400.00",ABBEYVALE.
Adults Wellbeing and Health,Head of Adults,Third Party Payments,470101,Purchase of Care,12-Sep-2013,2641083-2119798,"1,200.00",ABBEYVALE.
Adults Wellbeing and Health,Head of Adults,Third Party Payments,470101,Purchase of Care,12-Sep-2013,2641083-2119799,"2,400.00",ABBEYVALE.
Adults Wellbeing and Health,Head of Adults,Third Party Payments,470101,Purchase of Care,12-Sep-2013,2641083-2119800,"2,400.00",ABBEYVALE.
Adults Wellbeing and Health,Head of Adults,Third Party Payments,470101,Purchase of Care,12-Sep-2013,2641083-2121594,608.90,ABBEYVALE.
Adults Wellbeing and Health,Head of Adults,Third Party Payments,470101,Purchase of Care,12-Sep-2013,2641083-2121610,"1,217.80",ABBEYVALE.
Adults Wellbeing and Health,Head of Adults,Third Party Payments,470101,Purchase of Care,12-Sep-2013,2641084-2118207,"1,792.92",ABBOTTS COURT CARE HOME.
Adults Wellbeing and Health,Head of Adults,Third Party Payments,470101,Purchase of Care,12-Sep-2013,2641084-2118208,"1,792.92",ABBOTTS COURT CARE HOME.
Adults Wellbeing and Health,Head of Adults,Third Party Payments,470101,Purchase of Care,12-Sep-2013,2641084-2118209,"1,792.92",ABBOTTS COURT CARE HOME.
Adults Wellbeing and Health,Head of Adults,Third Party Payments,470101,Purchase of Care,12-Sep-2013,2641084-2118210,"1,792.92",ABBOTTS COURT CARE HOME.
Adults Wellbeing and Health,Head of Adults,Third Party Payments,470101,Purchase of Care,12-Sep-2013,2641084-2118211,"1,792.92",ABBOTTS COURT CARE HOME.
Adults Wellbeing and Health,Head of Adults,Third Party Payments,470101,Purchase of Care,12-Sep-2013,2641084-2118224,"1,792.92",ABBOTTS COURT CARE HOME.
Adults Wellbeing and Health,Head of Adults,Third Party Payments,470101,Purchase of Care,12-Sep-2013,2641084-2118278,"1,792.92",ABBOTTS COURT CARE HOME.
Adults Wellbeing and Health,Head of Adults,Third Party Payments,470101,Purchase of Care,12-Sep-2013,2641084-2118333,"1,792.92",ABBOTTS COURT CARE HOME.
Adults Wellbeing and Health,Head of Adults,Third Party Payments,470101,Purchase of Care,12-Sep-2013,2641084-2118334,"1,792.92",ABBOTTS COURT CARE HOME.
Adults Wellbeing and Health,Head of Adults,Third Party Payments,470101,Purchase of Care,12-Sep-2013,2641084-2118335,576.29,ABBOTTS COURT CARE HOME.
Adults Wellbeing and Health,Head of Adults,Third Party Payments,470101,Purchase of Care,12-Sep-2013,2641084-2118336,"1,792.92",ABBOTTS COURT CARE HOME.
Adults Wellbeing and Health,Head of Adults,Third Party Payments,470101,Purchase of Care,12-Sep-2013,2641084-2118337,"1,792.92",ABBOTTS COURT CARE HOME.
Adults Wellbeing and Health,Head of Adults,Third Party Payments,470101,Purchase of Care,12-Sep-2013,2641087-1358040H,"2,933.48",ACCEPT CARE LTD.
Adults Wellbeing and Health,Head of Adults,Third Party Payments,470101,Purchase of Care,12-Sep-2013,2641318-1358538D,692.32,REDACTED - PAYMENT TO INDIVIDUAL
Adults Wellbeing and Health,Head of Adults,Third Party Payments,470101,Purchase of Care,12-Sep-2013,2641465-2117320,"1,864.56",ACOMB COURT.
Adults Wellbeing and Health,Head of Adults,Third Party Payments,470101,Purchase of Care,12-Sep-2013,2641466-2118108,"1,792.92",ACORN GRANGE NURSING HOME.
Adults Wellbeing and Health,Head of Adults,Third Party Payments,470101,Purchase of Care,12-Sep-2013,2641466-2118109,"1,792.92",ACORN GRANGE NURSING HOME.
Adults Wellbeing and Health,Head of Adults,Third Party Payments,470101,Purchase of Care,12-Sep-2013,2641466-2118110,"1,792.92",ACORN GRANGE NURSING HOME.
Adults Wellbeing and Health,Head of Adults,Third Party Payments,470101,Purchase of Care,12-Sep-2013,2641466-2118111,"1,792.92",ACORN GRANGE NURSING HOME.
Adults Wellbeing and Health,Head of Adults,Third Party Payments,470101,Purchase of Care,12-Sep-2013,2641466-2118112,"1,792.92",ACORN GRANGE NURSING HOME.
Adults Wellbeing and Health,Head of Adults,Third Party Payments,470101,Purchase of Care,12-Sep-2013,2641466-2118113,"1,792.92",ACORN GRANGE NURSING HOME.
Adults Wellbeing and Health,Head of Adults,Third Party Payments,470101,Purchase of Care,12-Sep-2013,2641466-2118117,"1,792.92",ACORN GRANGE NURSING HOME.
Adults Wellbeing and Health,Head of Adults,Third Party Payments,470101,Purchase of Care,12-Sep-2013,2641466-2118118,896.46,ACORN GRANGE NURSING HOME.
Adults Wellbeing and Health,Head of Adults,Third Party Payments,470101,Purchase of Care,12-Sep-2013,2641466-2118120,"1,792.92",ACORN GRANGE NURSING HOME.
Adults Wellbeing and Health,Head of Adults,Third Party Payments,470101,Purchase of Care,12-Sep-2013,2641466-2118121,"1,792.92",ACORN GRANGE NURSING HOME.
Adults Wellbeing and Health,Head of Adults,Third Party Payments,470101,Purchase of Care,12-Sep-2013,2641466-2118122,"1,792.92",ACORN GRANGE NURSING HOME.
Adults Wellbeing and Health,Head of Adults,Third Party Payments,470101,Purchase of Care,12-Sep-2013,2641466-2118123,"1,792.92",ACORN GRANGE NURSING HOME.
Adults Wellbeing and Health,Head of Adults,Third Party Payments,470101,Purchase of Care,12-Sep-2013,2641466-2118124,"1,792.92",ACORN GRANGE NURSING HOME.
Adults Wellbeing and Health,Head of Adults,Third Party Payments,470101,Purchase of Care,12-Sep-2013,2641466-2118125,"1,792.92",ACORN GRANGE NURSING HOME.
Adults Wellbeing and Health,Head of Adults,Third Party Payments,470101,Purchase of Care,12-Sep-2013,2641466-2118126,"1,792.92",ACORN GRANGE NURSING HOME.
Adults Wellbeing and Health,Head of Adults,Third Party Payments,470101,Purchase of Care,12-Sep-2013,2641466-2118127,"1,792.92",ACORN GRANGE NURSING HOME.
Adults Wellbeing and Health,Head of Adults,Third Party Payments,470101,Purchase of Care,12-Sep-2013,2641517-2117928,"1,792.92",ALLIANCE CARE.
Adults Wellbeing and Health,Head of Adults,Third Party Payments,470101,Purchase of Care,12-Sep-2013,2641517-2117929,"1,792.92",ALLIANCE CARE.
Adults Wellbeing and Health,Head of Adults,Third Party Payments,470101,Purchase of Care,12-Sep-2013,2641517-2117930,"1,267.96",ALLIANCE CARE.
Adults Wellbeing and Health,Head of Adults,Third Party Payments,470101,Purchase of Care,12-Sep-2013,2641517-2117931,"1,189.68",ALLIANCE CARE.
Adults Wellbeing and Health,Head of Adults,Third Party Payments,470101,Purchase of Care,12-Sep-2013,2641517-2117932,"1,728.88",ALLIANCE CARE.
Adults Wellbeing and Health,Head of Adults,Third Party Payments,470101,Purchase of Care,12-Sep-2013,2641517-2117934,"1,306.92",ALLIANCE CARE.
Adults Wellbeing and Health,Head of Adults,Third Party Payments,470101,Purchase of Care,12-Sep-2013,2641517-2117935,"1,257.08",ALLIANCE CARE.
Adults Wellbeing and Health,Head of Adults,Third Party Payments,470101,Purchase of Care,12-Sep-2013,2641517-2117937,"1,052.92",ALLIANCE CARE.
Adults Wellbeing and Health,Head of Adults,Third Party Payments,470101,Purchase of Care,12-Sep-2013,2641517-2117938,"1,068.72",ALLIANCE CARE.
Adults Wellbeing and Health,Head of Adults,Third Party Payments,470101,Purchase of Care,12-Sep-2013,2641517-2117939,"1,792.92",ALLIANCE CARE.
Adults Wellbeing and Health,Head of Adults,Third Party Payments,470101,Purchase of Care,12-Sep-2013,2641517-2117940,"1,306.92",ALLIANCE CARE.
Adults Wellbeing and Health,Head of Adults,Third Party Payments,470101,Purchase of Care,12-Sep-2013,2641517-2117941,"1,031.80",ALLIANCE CARE.
Adults Wellbeing and Health,Head of Adults,Third Party Payments,470101,Purchase of Care,12-Sep-2013,2641517-2117942,"1,792.92",ALLIANCE CARE.
Adults Wellbeing and Health,Head of Adults,Third Party Payments,470101,Purchase of Care,12-Sep-2013,2641517-2117943,"1,911.52",ALLIANCE CARE.
Adults Wellbeing and Health,Head of Adults,Third Party Payments,470101,Purchase of Care,12-Sep-2013,2641517-2117944,"1,306.92",ALLIANCE CARE.
Adults Wellbeing and Health,Head of Adults,Third Party Payments,470101,Purchase of Care,12-Sep-2013,2641517-2117945,"1,306.92",ALLIANCE CARE.
Adults Wellbeing and Health,Head of Adults,Third Party Payments,470101,Purchase of Care,12-Sep-2013,2641517-2119565,"1,504.96",ALLIANCE CARE.
Adults Wellbeing and Health,Head of Adults,Third Party Payments,470101,Purchase of Care,12-Sep-2013,2641518-2119574,"1,959.76",ALLIANCE CARE.
Adults Wellbeing and Health,Head of Adults,Third Party Payments,470101,Purchase of Care,12-Sep-2013,2641518-2119578,"1,607.16",ALLIANCE CARE.
Adults Wellbeing and Health,Head of Adults,Third Party Payments,470101,Purchase of Care,12-Sep-2013,2641518-2119580,"1,959.76",ALLIANCE CARE.
Adults Wellbeing and Health,Head of Adults,Third Party Payments,470101,Purchase of Care,12-Sep-2013,2641518-2119581,901.36,ALLIANCE CARE.
Adults Wellbeing and Health,Head of Adults,Third Party Payments,470101,Purchase of Care,12-Sep-2013,2641518-2119582,"1,644.56",ALLIANCE CARE.
Adults Wellbeing and Health,Head of Adults,Third Party Payments,470101,Purchase of Care,12-Sep-2013,2641518-2121439,"7,069.13",ALLIANCE CARE.
Adults Wellbeing and Health,Head of Adults,Third Party Payments,470101,Purchase of Care,12-Sep-2013,2641526-2117321,"1,564.08",AMELIA HOUSE.
Adults Wellbeing and Health,Head of Adults,Third Party Payments,470101,Purchase of Care,12-Sep-2013,2641581-2118267,"1,319.28",ASCOT CARE NORTHEAST LTD.
Adults Wellbeing and Health,Head of Adults,Third Party Payments,470101,Purchase of Care,12-Sep-2013,2641581-2118270,"1,792.92",ASCOT CARE NORTHEAST LTD.
Adults Wellbeing and Health,Head of Adults,Third Party Payments,470101,Purchase of Care,12-Sep-2013,2641581-2118317,"1,162.64",ASCOT CARE NORTHEAST LTD.
Adults Wellbeing and Health,Head of Adults,Third Party Payments,470101,Purchase of Care,12-Sep-2013,2641581-2118354,"1,309.20",ASCOT CARE NORTHEAST LTD.
Adults Wellbeing and Health,Head of Adults,Third Party Payments,470101,Purchase of Care,12-Sep-2013,2641581-2118355,832.42,ASCOT CARE NORTHEAST LTD.
Adults Wellbeing and Health,Head of Adults,Third Party Payments,470101,Purchase of Care,12-Sep-2013,2641581-2118356,768.39,ASCOT CARE NORTHEAST LTD.
Adults Wellbeing and Health,Head of Adults,Third Party Payments,470101,Purchase of Care,12-Sep-2013,2641581-2118357,"1,216.62",ASCOT CARE NORTHEAST LTD.
Adults Wellbeing and Health,Head of Adults,Third Party Payments,470101,Purchase of Care,12-Sep-2013,2641581-2118359,"1,792.92",ASCOT CARE NORTHEAST LTD.
Adults Wellbeing and Health,Head of Adults,Third Party Payments,470101,Purchase of Care,12-Sep-2013,2641582-2117964,"1,784.00",ASCOT CARE T/A THE GARDENS CARE HOME.
Adults Wellbeing and Health,Head of Adults,Third Party Payments,470101,Purchase of Care,12-Sep-2013,2641582-2117991,"1,784.00",ASCOT CARE T/A THE GARDENS CARE HOME.
Adults Wellbeing and Health,Head of Adults,Third Party Payments,470101,Purchase of Care,12-Sep-2013,2641584-2117325,"2,352.00",ASHFIELD NURSING HOME LTD.
Adults Wellbeing and Health,Head of Adults,Third Party Payments,470101,Purchase of Care,12-Sep-2013,2641585-2119803,950.00,ASHLEIGH HOUSE CARE HOME.
Adults Wellbeing and Health,Head of Adults,Third Party Payments,470101,Purchase of Care,12-Sep-2013,2641585-2119804,"1,900.00",ASHLEIGH HOUSE CARE HOME.
Adults Wellbeing and Health,Head of Adults,Third Party Payments,470101,Purchase of Care,12-Sep-2013,2641585-2119805,"1,102.00",ASHLEIGH HOUSE CARE HOME.
Adults Wellbeing and Health,Head of Adults,Third Party Payments,470101,Purchase of Care,12-Sep-2013,2641585-2119806,"1,660.20",ASHLEIGH HOUSE CARE HOME.
Adults Wellbeing and Health,Head of Adults,Third Party Payments,470101,Purchase of Care,12-Sep-2013,2641585-2121339,"1,425.00",ASHLEIGH HOUSE CARE HOME.
Adults Wellbeing and Health,Head of Adults,Third Party Payments,470101,Purchase of Care,12-Sep-2013,2641587-2121337,789.30,ATLAS HEALTHCARE LTD.
Adults Wellbeing and Health,Head of Adults,Third Party Payments,470101,Purchase of Care,12-Sep-2013,2641594-2119893,"4,480.00",AUTISM CARE UK (4) LTD.
Adults Wellbeing and Health,Head of Adults,Third Party Payments,470101,Purchase of Care,12-Sep-2013,2641594-2119895,"2,907.80",AUTISM CARE UK (4) LTD.
Adults Wellbeing and Health,Head of Adults,Third Party Payments,470101,Purchase of Care,12-Sep-2013,2641595-2119873,"9,625.52",AUTISM NORTH.
Adults Wellbeing and Health,Head of Adults,Third Party Payments,470101,Purchase of Care,12-Sep-2013,2641595-2119874,"9,803.68",AUTISM NORTH.
Adults Wellbeing and Health,Head of Adults,Third Party Payments,470101,Purchase of Care,12-Sep-2013,2641596-2119892,"6,478.68",AUTISM NORTH.
Adults Wellbeing and Health,Head of Adults,Third Party Payments,470101,Purchase of Care,12-Sep-2013,2641600-2117452,"1,792.92",AYCLIFFE CARE HOME.
Adults Wellbeing and Health,Head of Adults,Third Party Payments,470101,Purchase of Care,12-Sep-2013,2641600-2117453,"1,792.92",AYCLIFFE CARE HOME.
Adults Wellbeing and Health,Head of Adults,Third Party Payments,470101,Purchase of Care,12-Sep-2013,2641600-2117454,"1,792.92",AYCLIFFE CARE HOME.
Adults Wellbeing and Health,Head of Adults,Third Party Payments,470101,Purchase of Care,12-Sep-2013,2641600-2117457,832.42,AYCLIFFE CARE HOME.
Adults Wellbeing and Health,Head of Adults,Third Party Payments,470101,Purchase of Care,12-Sep-2013,2641600-2117458,"1,280.65",AYCLIFFE CARE HOME.
Adults Wellbeing and Health,Head of Adults,Third Party Payments,470101,Purchase of Care,12-Sep-2013,2641600-2117459,"1,792.92",AYCLIFFE CARE HOME.
Adults Wellbeing and Health,Head of Adults,Third Party Payments,470101,Purchase of Care,12-Sep-2013,2641600-2117460,768.39,AYCLIFFE CARE HOME.
Adults Wellbeing and Health,Head of Adults,Third Party Payments,470101,Purchase of Care,12-Sep-2013,2641600-2117461,"1,792.92",AYCLIFFE CARE HOME.
Adults Wellbeing and Health,Head of Adults,Third Party Payments,470101,Purchase of Care,12-Sep-2013,2641600-2117462,"1,792.92",AYCLIFFE CARE HOME.
Adults Wellbeing and Health,Head of Adults,Third Party Payments,470101,Purchase of Care,12-Sep-2013,2641600-2117463,"1,792.92",AYCLIFFE CARE HOME.
Adults Wellbeing and Health,Head of Adults,Third Party Payments,470101,Purchase of Care,12-Sep-2013,2641600-2117464,"1,792.92",AYCLIFFE CARE HOME.
Adults Wellbeing and Health,Head of Adults,Third Party Payments,470101,Purchase of Care,12-Sep-2013,2641611-2117805,"1,752.00",BARCHESTER HEALTHCARE HOMES LTD.
Adults Wellbeing and Health,Head of Adults,Third Party Payments,470101,Purchase of Care,12-Sep-2013,2641616-2117957,"1,792.92",BEACONSFIELD COURT.
Adults Wellbeing and Health,Head of Adults,Third Party Payments,470101,Purchase of Care,12-Sep-2013,2641616-2117958,"1,792.92",BEACONSFIELD COURT.
Adults Wellbeing and Health,Head of Adults,Third Party Payments,470101,Purchase of Care,12-Sep-2013,2641616-2117965,"1,792.92",BEACONSFIELD COURT.
Adults Wellbeing and Health,Head of Adults,Third Party Payments,470101,Purchase of Care,12-Sep-2013,2641616-2117966,"1,792.92",BEACONSFIELD COURT.
Adults Wellbeing and Health,Head of Adults,Third Party Payments,470101,Purchase of Care,12-Sep-2013,2641616-2117967,"1,792.92",BEACONSFIELD COURT.
Adults Wellbeing and Health,Head of Adults,Third Party Payments,470101,Purchase of Care,12-Sep-2013,2641616-2117969,"1,792.92",BEACONSFIELD COURT.
Adults Wellbeing and Health,Head of Adults,Third Party Payments,470101,Purchase of Care,12-Sep-2013,2641616-2117970,"1,792.92",BEACONSFIELD COURT.
Adults Wellbeing and Health,Head of Adults,Third Party Payments,470101,Purchase of Care,12-Sep-2013,2641616-2117971,"1,792.92",BEACONSFIELD COURT.
Adults Wellbeing and Health,Head of Adults,Third Party Payments,470101,Purchase of Care,12-Sep-2013,2641616-2117972,"1,792.92",BEACONSFIELD COURT.
Adults Wellbeing and Health,Head of Adults,Third Party Payments,470101,Purchase of Care,12-Sep-2013,2641616-2117973,"1,792.92",BEACONSFIELD COURT.
Adults Wellbeing and Health,Head of Adults,Third Party Payments,470101,Purchase of Care,12-Sep-2013,2641616-2121468,896.46,BEACONSFIELD COURT.
Adults Wellbeing and Health,Head of Adults,Third Party Payments,470101,Purchase of Care,12-Sep-2013,2641616-2121788,704.36,BEACONSFIELD COURT.
Adults Wellbeing and Health,Head of Adults,Third Party Payments,470101,Purchase of Care,12-Sep-2013,2641616-2121809,922.76,BEACONSFIELD COURT.
Adults Wellbeing and Health,Head of Adults,Third Party Payments,470101,Purchase of Care,12-Sep-2013,2641617-2117506,"1,023.96",BEAMISH RESIDENTIAL HOME.
Adults Wellbeing and Health,Head of Adults,Third Party Payments,470101,Purchase of Care,12-Sep-2013,2641617-2117507,"1,306.92",BEAMISH RESIDENTIAL HOME.
Adults Wellbeing and Health,Head of Adults,Third Party Payments,470101,Purchase of Care,12-Sep-2013,2641617-2117508,"1,792.92",BEAMISH RESIDENTIAL HOME.
Adults Wellbeing and Health,Head of Adults,Third Party Payments,470101,Purchase of Care,12-Sep-2013,2641617-2117509,"1,306.92",BEAMISH RESIDENTIAL HOME.
Adults Wellbeing and Health,Head of Adults,Third Party Payments,470101,Purchase of Care,12-Sep-2013,2641617-2117511,"1,289.40",BEAMISH RESIDENTIAL HOME.
Adults Wellbeing and Health,Head of Adults,Third Party Payments,470101,Purchase of Care,12-Sep-2013,2641617-2117512,"1,792.92",BEAMISH RESIDENTIAL HOME.
Adults Wellbeing and Health,Head of Adults,Third Party Payments,470101,Purchase of Care,12-Sep-2013,2641617-2117514,946.64,BEAMISH RESIDENTIAL HOME.
Adults Wellbeing and Health,Head of Adults,Third Party Payments,470101,Purchase of Care,12-Sep-2013,2641617-2117515,"1,248.44",BEAMISH RESIDENTIAL HOME.
Adults Wellbeing and Health,Head of Adults,Third Party Payments,470101,Purchase of Care,12-Sep-2013,2641617-2117516,"1,258.36",BEAMISH RESIDENTIAL HOME.
Adults Wellbeing and Health,Head of Adults,Third Party Payments,470101,Purchase of Care,12-Sep-2013,2641617-2117517,"1,792.92",BEAMISH RESIDENTIAL HOME.
Adults Wellbeing and Health,Head of Adults,Third Party Payments,470101,Purchase of Care,12-Sep-2013,2641617-2121513,"1,023.50",BEAMISH RESIDENTIAL HOME.
Adults Wellbeing and Health,Head of Adults,Third Party Payments,470101,Purchase of Care,12-Sep-2013,2641620-2117999,"1,894.36",BEDDELL HOUSE.
Adults Wellbeing and Health,Head of Adults,Third Party Payments,470101,Purchase of Care,12-Sep-2013,2641620-2118000,"1,894.36",BEDDELL HOUSE.
Adults Wellbeing and Health,Head of Adults,Third Party Payments,470101,Purchase of Care,12-Sep-2013,2641620-2118033,947.16,BEDDELL HOUSE.
Adults Wellbeing and Health,Head of Adults,Third Party Payments,470101,Purchase of Care,12-Sep-2013,2641620-2118034,"1,894.36",BEDDELL HOUSE.
Adults Wellbeing and Health,Head of Adults,Third Party Payments,470101,Purchase of Care,12-Sep-2013,2641620-2118035,"1,894.36",BEDDELL HOUSE.
Adults Wellbeing and Health,Head of Adults,Third Party Payments,470101,Purchase of Care,12-Sep-2013,2641620-2118036,"1,894.36",BEDDELL HOUSE.
Adults Wellbeing and Health,Head of Adults,Third Party Payments,470101,Purchase of Care,12-Sep-2013,2641620-2118037,"1,894.36",BEDDELL HOUSE.
Adults Wellbeing and Health,Head of Adults,Third Party Payments,470101,Purchase of Care,12-Sep-2013,2641620-2118038,"1,894.36",BEDDELL HOUSE.
Adults Wellbeing and Health,Head of Adults,Third Party Payments,470101,Purchase of Care,12-Sep-2013,2641620-2118039,"1,894.36",BEDDELL HOUSE.
Adults Wellbeing and Health,Head of Adults,Third Party Payments,470101,Purchase of Care,12-Sep-2013,2641620-2118040,"1,894.36",BEDDELL HOUSE.
Adults Wellbeing and Health,Head of Adults,Third Party Payments,470101,Purchase of Care,12-Sep-2013,2641620-2118041,"1,894.36",BEDDELL HOUSE.
Adults Wellbeing and Health,Head of Adults,Third Party Payments,470101,Purchase of Care,12-Sep-2013,2641620-2118042,"1,894.36",BEDDELL HOUSE.
Adults Wellbeing and Health,Head of Adults,Third Party Payments,470101,Purchase of Care,12-Sep-2013,2641620-2118043,"1,894.36",BEDDELL HOUSE.
Adults Wellbeing and Health,Head of Adults,Third Party Payments,470101,Purchase of Care,12-Sep-2013,2641620-2121478,608.90,BEDDELL HOUSE.
Adults Wellbeing and Health,Head of Adults,Third Party Payments,470101,Purchase of Care,12-Sep-2013,2641621-2119942,"2,145.00",BEECHWOOD RESIDENTIAL CARE SERVICES.
Adults Wellbeing and Health,Head of Adults,Third Party Payments,470101,Purchase of Care,12-Sep-2013,2641621-2119943,"2,145.00",BEECHWOOD RESIDENTIAL CARE SERVICES.
Adults Wellbeing and Health,Head of Adults,Third Party Payments,470101,Purchase of Care,12-Sep-2013,2641621-2119944,"2,145.00",BEECHWOOD RESIDENTIAL CARE SERVICES.
Adults Wellbeing and Health,Head of Adults,Third Party Payments,470101,Purchase of Care,12-Sep-2013,2641624-2117764,"1,772.00",BELLE VUE HEALTHCARE LTD.
Adults Wellbeing and Health,Head of Adults,Third Party Payments,470101,Purchase of Care,12-Sep-2013,2641625-2118154,724.64,BELMONT NURSING HOME.
Adults Wellbeing and Health,Head of Adults,Third Party Payments,470101,Purchase of Care,12-Sep-2013,2641625-2118155,"1,595.12",BELMONT NURSING HOME.
Adults Wellbeing and Health,Head of Adults,Third Party Payments,470101,Purchase of Care,12-Sep-2013,2641625-2118226,"1,019.32",BELMONT NURSING HOME.
Adults Wellbeing and Health,Head of Adults,Third Party Payments,470101,Purchase of Care,12-Sep-2013,2641625-2118255,894.56,BELMONT NURSING HOME.
Adults Wellbeing and Health,Head of Adults,Third Party Payments,470101,Purchase of Care,12-Sep-2013,2641625-2118368,"1,766.02",BELMONT NURSING HOME.
Adults Wellbeing and Health,Head of Adults,Third Party Payments,470101,Purchase of Care,12-Sep-2013,2641625-2118369,"1,036.40",BELMONT NURSING HOME.
Adults Wellbeing and Health,Head of Adults,Third Party Payments,470101,Purchase of Care,12-Sep-2013,2641625-2121756,797.56,BELMONT NURSING HOME.
Adults Wellbeing and Health,Head of Adults,Third Party Payments,470101,Purchase of Care,12-Sep-2013,2641627-2119935,"1,482.48",BENAMY HOUSE.
Adults Wellbeing and Health,Head of Adults,Third Party Payments,470101,Purchase of Care,12-Sep-2013,2641627-2119936,"1,797.68",BENAMY HOUSE.
Adults Wellbeing and Health,Head of Adults,Third Party Payments,470101,Purchase of Care,12-Sep-2013,2641627-2119960,"1,482.48",BENAMY HOUSE.
Adults Wellbeing and Health,Head of Adults,Third Party Payments,470101,Purchase of Care,12-Sep-2013,2641627-2119961,"1,482.48",BENAMY HOUSE.
Adults Wellbeing and Health,Head of Adults,Third Party Payments,470101,Purchase of Care,12-Sep-2013,2641627-2119962,"1,797.68",BENAMY HOUSE.
Adults Wellbeing and Health,Head of Adults,Third Party Payments,470101,Purchase of Care,12-Sep-2013,2641628-2119838,"2,460.00",BENFIELD HALL.
Adults Wellbeing and Health,Head of Adults,Third Party Payments,470101,Purchase of Care,12-Sep-2013,2641641-2118084,512.71,BHACHU CARE LTD.
Adults Wellbeing and Health,Head of Adults,Third Party Payments,470101,Purchase of Care,12-Sep-2013,2641641-2121779,797.56,BHACHU CARE LTD.
Adults Wellbeing and Health,Head of Adults,Third Party Payments,470101,Purchase of Care,12-Sep-2013,2641645-2118514,"1,792.92",BISHOPSGATE LODGE.
Adults Wellbeing and Health,Head of Adults,Third Party Payments,470101,Purchase of Care,12-Sep-2013,2641645-2118515,"1,792.92",BISHOPSGATE LODGE.
Adults Wellbeing and Health,Head of Adults,Third Party Payments,470101,Purchase of Care,12-Sep-2013,2641645-2118516,"1,792.92",BISHOPSGATE LODGE.
Adults Wellbeing and Health,Head of Adults,Third Party Payments,470101,Purchase of Care,12-Sep-2013,2641645-2118518,"1,792.92",BISHOPSGATE LODGE.
Adults Wellbeing and Health,Head of Adults,Third Party Payments,470101,Purchase of Care,12-Sep-2013,2641645-2118547,"1,792.92",BISHOPSGATE LODGE.
Adults Wellbeing and Health,Head of Adults,Third Party Payments,470101,Purchase of Care,12-Sep-2013,2641645-2118557,"1,792.92",BISHOPSGATE LODGE.
Adults Wellbeing and Health,Head of Adults,Third Party Payments,470101,Purchase of Care,12-Sep-2013,2641645-2118558,"1,792.92",BISHOPSGATE LODGE.
Adults Wellbeing and Health,Head of Adults,Third Party Payments,470101,Purchase of Care,12-Sep-2013,2641645-2118559,"1,792.92",BISHOPSGATE LODGE.
Adults Wellbeing and Health,Head of Adults,Third Party Payments,470101,Purchase of Care,12-Sep-2013,2641645-2118560,"1,792.92",BISHOPSGATE LODGE.
Adults Wellbeing and Health,Head of Adults,Third Party Payments,470101,Purchase of Care,12-Sep-2013,2641645-2118561,"1,792.92",BISHOPSGATE LODGE.
Adults Wellbeing and Health,Head of Adults,Third Party Payments,470101,Purchase of Care,12-Sep-2013,2641645-2118562,"1,792.92",BISHOPSGATE LODGE.
Adults Wellbeing and Health,Head of Adults,Third Party Payments,470101,Purchase of Care,12-Sep-2013,2641645-2119415,"1,882.44",BISHOPSGATE LODGE.
Adults Wellbeing and Health,Head of Adults,Third Party Payments,470101,Purchase of Care,12-Sep-2013,2641657-2119896,"3,672.00",BOWES COURT CARE HOME.
Adults Wellbeing and Health,Head of Adults,Third Party Payments,470101,Purchase of Care,12-Sep-2013,2641657-2119897,"4,444.00",BOWES COURT CARE HOME.
Adults Wellbeing and Health,Head of Adults,Third Party Payments,470101,Purchase of Care,12-Sep-2013,2641657-2119898,"4,444.00",BOWES COURT CARE HOME.
Adults Wellbeing and Health,Head of Adults,Third Party Payments,470101,Purchase of Care,12-Sep-2013,2641657-2119899,"2,300.00",BOWES COURT CARE HOME.
Adults Wellbeing and Health,Head of Adults,Third Party Payments,470101,Purchase of Care,12-Sep-2013,2641657-2119900,"5,082.00",BOWES COURT CARE HOME.
Adults Wellbeing and Health,Head of Adults,Third Party Payments,470101,Purchase of Care,12-Sep-2013,2641663-2118489,"1,792.92",BRANCEPETH COURT.
Adults Wellbeing and Health,Head of Adults,Third Party Payments,470101,Purchase of Care,12-Sep-2013,2641663-2118505,"1,792.92",BRANCEPETH COURT.
Adults Wellbeing and Health,Head of Adults,Third Party Payments,470101,Purchase of Care,12-Sep-2013,2641663-2118541,"1,664.85",BRANCEPETH COURT.
Adults Wellbeing and Health,Head of Adults,Third Party Payments,470101,Purchase of Care,12-Sep-2013,2641663-2118542,"1,792.92",BRANCEPETH COURT.
Adults Wellbeing and Health,Head of Adults,Third Party Payments,470101,Purchase of Care,12-Sep-2013,2641663-2118543,"1,792.92",BRANCEPETH COURT.
Adults Wellbeing and Health,Head of Adults,Third Party Payments,470101,Purchase of Care,12-Sep-2013,2641663-2118544,"1,792.92",BRANCEPETH COURT.
Adults Wellbeing and Health,Head of Adults,Third Party Payments,470101,Purchase of Care,12-Sep-2013,2641663-2118545,"1,792.92",BRANCEPETH COURT.
Adults Wellbeing and Health,Head of Adults,Third Party Payments,470101,Purchase of Care,12-Sep-2013,2641663-2118546,"1,792.92",BRANCEPETH COURT.
Adults Wellbeing and Health,Head of Adults,Third Party Payments,470101,Purchase of Care,12-Sep-2013,2641663-2120085,"1,854.68",BRANCEPETH COURT.
Adults Wellbeing and Health,Head of Adults,Third Party Payments,470101,Purchase of Care,12-Sep-2013,2641663-2120086,"1,854.68",BRANCEPETH COURT.
Adults Wellbeing and Health,Head of Adults,Third Party Payments,470101,Purchase of Care,12-Sep-2013,2641663-2120087,"1,854.68",BRANCEPETH COURT.
Adults Wellbeing and Health,Head of Adults,Third Party Payments,470101,Purchase of Care,12-Sep-2013,2641663-2120088,"1,854.68",BRANCEPETH COURT.
Adults Wellbeing and Health,Head of Adults,Third Party Payments,470101,Purchase of Care,12-Sep-2013,2641663-2120089,"1,854.68",BRANCEPETH COURT.
Adults Wellbeing and Health,Head of Adults,Third Party Payments,470101,Purchase of Care,12-Sep-2013,2641663-2120090,"1,854.68",BRANCEPETH COURT.
Adults Wellbeing and Health,Head of Adults,Third Party Payments,470101,Purchase of Care,12-Sep-2013,2641663-2120091,"1,854.68",BRANCEPETH COURT.
Adults Wellbeing and Health,Head of Adults,Third Party Payments,470101,Purchase of Care,12-Sep-2013,2641663-2121599,"1,344.69",BRANCEPETH COURT.
Adults Wellbeing and Health,Head of Adults,Third Party Payments,470101,Purchase of Care,12-Sep-2013,2641673-2119981,"2,176.56",BRIDGEWOOD TRUST LTD.
Adults Wellbeing and Health,Head of Adults,Third Party Payments,470101,Purchase of Care,12-Sep-2013,2641676-2118241,673.04,BROOMHOUSE CARE LTD.
Adults Wellbeing and Health,Head of Adults,Third Party Payments,470101,Purchase of Care,12-Sep-2013,2641676-2118242,"1,306.92",BROOMHOUSE CARE LTD.
Adults Wellbeing and Health,Head of Adults,Third Party Payments,470101,Purchase of Care,12-Sep-2013,2641676-2118392,"1,006.05",BROOMHOUSE CARE LTD.
Adults Wellbeing and Health,Head of Adults,Third Party Payments,470101,Purchase of Care,12-Sep-2013,2641676-2118393,"1,792.92",BROOMHOUSE CARE LTD.
Adults Wellbeing and Health,Head of Adults,Third Party Payments,470101,Purchase of Care,12-Sep-2013,2641676-2118394,"1,306.92",BROOMHOUSE CARE LTD.
Adults Wellbeing and Health,Head of Adults,Third Party Payments,470101,Purchase of Care,12-Sep-2013,2641676-2118395,"1,306.92",BROOMHOUSE CARE LTD.
Adults Wellbeing and Health,Head of Adults,Third Party Payments,470101,Purchase of Care,12-Sep-2013,2641700-2119914,"2,461.68",CARELINE LIFESTYLES LTD.
Adults Wellbeing and Health,Head of Adults,Third Party Payments,470101,Purchase of Care,12-Sep-2013,2641744-2117600,941.08,CHILTON CARE CENTRE.
Adults Wellbeing and Health,Head of Adults,Third Party Payments,470101,Purchase of Care,12-Sep-2013,2641744-2117610,"1,002.44",CHILTON CARE CENTRE.
Adults Wellbeing and Health,Head of Adults,Third Party Payments,470101,Purchase of Care,12-Sep-2013,2641744-2117611,"1,728.88",CHILTON CARE CENTRE.
Adults Wellbeing and Health,Head of Adults,Third Party Payments,470101,Purchase of Care,12-Sep-2013,2641744-2117613,"1,053.00",CHILTON CARE CENTRE.
Adults Wellbeing and Health,Head of Adults,Third Party Payments,470101,Purchase of Care,12-Sep-2013,2641744-2117614,"1,271.80",CHILTON CARE CENTRE.
Adults Wellbeing and Health,Head of Adults,Third Party Payments,470101,Purchase of Care,12-Sep-2013,2641744-2117615,"1,792.92",CHILTON CARE CENTRE.
Adults Wellbeing and Health,Head of Adults,Third Party Payments,470101,Purchase of Care,12-Sep-2013,2641744-2117616,"1,792.92",CHILTON CARE CENTRE.
Adults Wellbeing and Health,Head of Adults,Third Party Payments,470101,Purchase of Care,12-Sep-2013,2641744-2117617,"1,180.40",CHILTON CARE CENTRE.
Adults Wellbeing and Health,Head of Adults,Third Party Payments,470101,Purchase of Care,12-Sep-2013,2641744-2117618,"1,107.60",CHILTON CARE CENTRE.
Adults Wellbeing and Health,Head of Adults,Third Party Payments,470101,Purchase of Care,12-Sep-2013,2641744-2117619,601.60,CHILTON CARE CENTRE.
Adults Wellbeing and Health,Head of Adults,Third Party Payments,470101,Purchase of Care,12-Sep-2013,2641744-2117620,"1,785.28",CHILTON CARE CENTRE.
Adults Wellbeing and Health,Head of Adults,Third Party Payments,470101,Purchase of Care,12-Sep-2013,2641744-2117621,"1,306.68",CHILTON CARE CENTRE.
Adults Wellbeing and Health,Head of Adults,Third Party Payments,470101,Purchase of Care,12-Sep-2013,2641744-2117622,"1,306.92",CHILTON CARE CENTRE.
Adults Wellbeing and Health,Head of Adults,Third Party Payments,470101,Purchase of Care,12-Sep-2013,2641744-2117623,"1,792.92",CHILTON CARE CENTRE.
Adults Wellbeing and Health,Head of Adults,Third Party Payments,470101,Purchase of Care,12-Sep-2013,2641744-2117624,"1,792.92",CHILTON CARE CENTRE.
Adults Wellbeing and Health,Head of Adults,Third Party Payments,470101,Purchase of Care,12-Sep-2013,2641744-2117625,"1,154.84",CHILTON CARE CENTRE.
Adults Wellbeing and Health,Head of Adults,Third Party Payments,470101,Purchase of Care,12-Sep-2013,2641744-2121461,609.89,CHILTON CARE CENTRE.
Adults Wellbeing and Health,Head of Adults,Third Party Payments,470101,Purchase of Care,12-Sep-2013,2641754-2117609,"1,894.36",CHURCH VIEW CARE HOME.
Adults Wellbeing and Health,Head of Adults,Third Party Payments,470101,Purchase of Care,12-Sep-2013,2641754-2117673,"1,894.36",CHURCH VIEW CARE HOME.
Adults Wellbeing and Health,Head of Adults,Third Party Payments,470101,Purchase of Care,12-Sep-2013,2641754-2117674,"1,894.36",CHURCH VIEW CARE HOME.
Adults Wellbeing and Health,Head of Adults,Third Party Payments,470101,Purchase of Care,12-Sep-2013,2641754-2117675,"1,894.36",CHURCH VIEW CARE HOME.
Adults Wellbeing and Health,Head of Adults,Third Party Payments,470101,Purchase of Care,12-Sep-2013,2641754-2117676,"1,894.36",CHURCH VIEW CARE HOME.
Adults Wellbeing and Health,Head of Adults,Third Party Payments,470101,Purchase of Care,12-Sep-2013,2641754-2117677,"1,894.36",CHURCH VIEW CARE HOME.
Adults Wellbeing and Health,Head of Adults,Third Party Payments,470101,Purchase of Care,12-Sep-2013,2641754-2117678,"1,894.36",CHURCH VIEW CARE HOME.
Adults Wellbeing and Health,Head of Adults,Third Party Payments,470101,Purchase of Care,12-Sep-2013,2641754-2117679,"1,894.36",CHURCH VIEW CARE HOME.
Adults Wellbeing and Health,Head of Adults,Third Party Payments,470101,Purchase of Care,12-Sep-2013,2641754-2117680,"1,894.36",CHURCH VIEW CARE HOME.
Adults Wellbeing and Health,Head of Adults,Third Party Payments,470101,Purchase of Care,12-Sep-2013,2641754-2117681,"1,894.36",CHURCH VIEW CARE HOME.
Adults Wellbeing and Health,Head of Adults,Third Party Payments,470101,Purchase of Care,12-Sep-2013,2641754-2117682,"1,894.36",CHURCH VIEW CARE HOME.
Adults Wellbeing and Health,Head of Adults,Third Party Payments,470101,Purchase of Care,12-Sep-2013,2641754-2117683,"1,894.36",CHURCH VIEW CARE HOME.
Adults Wellbeing and Health,Head of Adults,Third Party Payments,470101,Purchase of Care,12-Sep-2013,2641754-2117684,"1,894.36",CHURCH VIEW CARE HOME.
Adults Wellbeing and Health,Head of Adults,Third Party Payments,470101,Purchase of Care,12-Sep-2013,2641754-2117685,"1,894.36",CHURCH VIEW CARE HOME.
Adults Wellbeing and Health,Head of Adults,Third Party Payments,470101,Purchase of Care,12-Sep-2013,2641754-2117686,"1,894.36",CHURCH VIEW CARE HOME.
Adults Wellbeing and Health,Head of Adults,Third Party Payments,470101,Purchase of Care,12-Sep-2013,2641754-2117687,"1,894.36",CHURCH VIEW CARE HOME.
Adults Wellbeing and Health,Head of Adults,Third Party Payments,470101,Purchase of Care,12-Sep-2013,2641755-2117423,"1,792.92",CHURCH VIEW RESIDENTIAL CARE HOME.
Adults Wellbeing and Health,Head of Adults,Third Party Payments,470101,Purchase of Care,12-Sep-2013,2641755-2117424,"1,792.92",CHURCH VIEW RESIDENTIAL CARE HOME.
Adults Wellbeing and Health,Head of Adults,Third Party Payments,470101,Purchase of Care,12-Sep-2013,2641755-2117425,"1,792.92",CHURCH VIEW RESIDENTIAL CARE HOME.
Adults Wellbeing and Health,Head of Adults,Third Party Payments,470101,Purchase of Care,12-Sep-2013,2641755-2117426,"1,792.92",CHURCH VIEW RESIDENTIAL CARE HOME.
Adults Wellbeing and Health,Head of Adults,Third Party Payments,470101,Purchase of Care,12-Sep-2013,2641755-2117427,"1,792.92",CHURCH VIEW RESIDENTIAL CARE HOME.
Adults Wellbeing and Health,Head of Adults,Third Party Payments,470101,Purchase of Care,12-Sep-2013,2641755-2117428,"1,792.92",CHURCH VIEW RESIDENTIAL CARE HOME.
Adults Wellbeing and Health,Head of Adults,Third Party Payments,470101,Purchase of Care,12-Sep-2013,2641755-2117429,"1,792.92",CHURCH VIEW RESIDENTIAL CARE HOME.
Adults Wellbeing and Health,Head of Adults,Third Party Payments,470101,Purchase of Care,12-Sep-2013,2641755-2117430,"1,792.92",CHURCH VIEW RESIDENTIAL CARE HOME.
Adults Wellbeing and Health,Head of Adults,Third Party Payments,470101,Purchase of Care,12-Sep-2013,2641755-2117431,"1,792.92",CHURCH VIEW RESIDENTIAL CARE HOME.
Adults Wellbeing and Health,Head of Adults,Third Party Payments,470101,Purchase of Care,12-Sep-2013,2641755-2117432,"1,792.92",CHURCH VIEW RESIDENTIAL CARE HOME.
Adults Wellbeing and Health,Head of Adults,Third Party Payments,470101,Purchase of Care,12-Sep-2013,2641755-2117433,"1,792.92",CHURCH VIEW RESIDENTIAL CARE HOME.
Adults Wellbeing and Health,Head of Adults,Third Party Payments,470101,Purchase of Care,12-Sep-2013,2641755-2117434,"1,792.92",CHURCH VIEW RESIDENTIAL CARE HOME.
Adults Wellbeing and Health,Head of Adults,Third Party Payments,470101,Purchase of Care,12-Sep-2013,2641755-2117435,"1,792.92",CHURCH VIEW RESIDENTIAL CARE HOME.
Adults Wellbeing and Health,Head of Adults,Third Party Payments,470101,Purchase of Care,12-Sep-2013,2641755-2117436,"1,792.92",CHURCH VIEW RESIDENTIAL CARE HOME.
Adults Wellbeing and Health,Head of Adults,Third Party Payments,470101,Purchase of Care,12-Sep-2013,2641755-2117437,"1,792.92",CHURCH VIEW RESIDENTIAL CARE HOME.
Adults Wellbeing and Health,Head of Adults,Third Party Payments,470101,Purchase of Care,12-Sep-2013,2641755-2117438,"1,792.92",CHURCH VIEW RESIDENTIAL CARE HOME.
Adults Wellbeing and Health,Head of Adults,Third Party Payments,470101,Purchase of Care,12-Sep-2013,2641794-2117946,"1,894.36",CRAIGARRAN CARE HOME WITH NURSING.
Adults Wellbeing and Health,Head of Adults,Third Party Payments,470101,Purchase of Care,12-Sep-2013,2641794-2117947,"1,894.36",CRAIGARRAN CARE HOME WITH NURSING.
Adults Wellbeing and Health,Head of Adults,Third Party Payments,470101,Purchase of Care,12-Sep-2013,2641794-2117948,"1,894.36",CRAIGARRAN CARE HOME WITH NURSING.
Adults Wellbeing and Health,Head of Adults,Third Party Payments,470101,Purchase of Care,12-Sep-2013,2641794-2117949,"1,894.36",CRAIGARRAN CARE HOME WITH NURSING.
Adults Wellbeing and Health,Head of Adults,Third Party Payments,470101,Purchase of Care,12-Sep-2013,2641794-2117950,"1,894.36",CRAIGARRAN CARE HOME WITH NURSING.
Adults Wellbeing and Health,Head of Adults,Third Party Payments,470101,Purchase of Care,12-Sep-2013,2641794-2117951,"1,894.36",CRAIGARRAN CARE HOME WITH NURSING.
Adults Wellbeing and Health,Head of Adults,Third Party Payments,470101,Purchase of Care,12-Sep-2013,2641794-2117953,"1,894.36",CRAIGARRAN CARE HOME WITH NURSING.
Adults Wellbeing and Health,Head of Adults,Third Party Payments,470101,Purchase of Care,12-Sep-2013,2641794-2117954,"1,894.36",CRAIGARRAN CARE HOME WITH NURSING.
Adults Wellbeing and Health,Head of Adults,Third Party Payments,470101,Purchase of Care,12-Sep-2013,2641794-2117955,"1,894.36",CRAIGARRAN CARE HOME WITH NURSING.
Adults Wellbeing and Health,Head of Adults,Third Party Payments,470101,Purchase of Care,12-Sep-2013,2641794-2117956,"1,894.36",CRAIGARRAN CARE HOME WITH NURSING.
Adults Wellbeing and Health,Head of Adults,Third Party Payments,470101,Purchase of Care,12-Sep-2013,2641801-2117485,"1,623.73",CROFT HOUSE RESIDENTIAL HOME.
Adults Wellbeing and Health,Head of Adults,Third Party Payments,470101,Purchase of Care,12-Sep-2013,2641801-2117487,"1,408.36",CROFT HOUSE RESIDENTIAL HOME.
Adults Wellbeing and Health,Head of Adults,Third Party Payments,470101,Purchase of Care,12-Sep-2013,2641801-2117488,"1,894.36",CROFT HOUSE RESIDENTIAL HOME.
Adults Wellbeing and Health,Head of Adults,Third Party Payments,470101,Purchase of Care,12-Sep-2013,2641801-2117489,"1,408.36",CROFT HOUSE RESIDENTIAL HOME.
Adults Wellbeing and Health,Head of Adults,Third Party Payments,470101,Purchase of Care,12-Sep-2013,2641801-2117490,874.40,CROFT HOUSE RESIDENTIAL HOME.
Adults Wellbeing and Health,Head of Adults,Third Party Payments,470101,Purchase of Care,12-Sep-2013,2641801-2117491,"1,001.36",CROFT HOUSE RESIDENTIAL HOME.
Adults Wellbeing and Health,Head of Adults,Third Party Payments,470101,Purchase of Care,12-Sep-2013,2641801-2117492,"1,178.96",CROFT HOUSE RESIDENTIAL HOME.
Adults Wellbeing and Health,Head of Adults,Third Party Payments,470101,Purchase of Care,12-Sep-2013,2641801-2117493,"1,894.36",CROFT HOUSE RESIDENTIAL HOME.
Adults Wellbeing and Health,Head of Adults,Third Party Payments,470101,Purchase of Care,12-Sep-2013,2641801-2117494,"1,408.36",CROFT HOUSE RESIDENTIAL HOME.
Adults Wellbeing and Health,Head of Adults,Third Party Payments,470101,Purchase of Care,12-Sep-2013,2641801-2117495,"1,894.36",CROFT HOUSE RESIDENTIAL HOME.
Adults Wellbeing and Health,Head of Adults,Third Party Payments,470101,Purchase of Care,12-Sep-2013,2641801-2117496,"1,894.36",CROFT HOUSE RESIDENTIAL HOME.
Adults Wellbeing and Health,Head of Adults,Third Party Payments,470101,Purchase of Care,12-Sep-2013,2641801-2117497,"1,894.36",CROFT HOUSE RESIDENTIAL HOME.
Adults Wellbeing and Health,Head of Adults,Third Party Payments,470101,Purchase of Care,12-Sep-2013,2641801-2117498,"1,894.36",CROFT HOUSE RESIDENTIAL HOME.
Adults Wellbeing and Health,Head of Adults,Third Party Payments,470101,Purchase of Care,12-Sep-2013,2641801-2117500,"1,408.36",CROFT HOUSE RESIDENTIAL HOME.
Adults Wellbeing and Health,Head of Adults,Third Party Payments,470101,Purchase of Care,12-Sep-2013,2641801-2117501,"1,251.12",CROFT HOUSE RESIDENTIAL HOME.
Adults Wellbeing and Health,Head of Adults,Third Party Payments,470101,Purchase of Care,12-Sep-2013,2641801-2117502,"1,408.36",CROFT HOUSE RESIDENTIAL HOME.
Adults Wellbeing and Health,Head of Adults,Third Party Payments,470101,Purchase of Care,12-Sep-2013,2641801-2117503,"1,243.28",CROFT HOUSE RESIDENTIAL HOME.
Adults Wellbeing and Health,Head of Adults,Third Party Payments,470101,Purchase of Care,12-Sep-2013,2641801-2117504,"1,408.36",CROFT HOUSE RESIDENTIAL HOME.
Adults Wellbeing and Health,Head of Adults,Third Party Payments,470101,Purchase of Care,12-Sep-2013,2641801-2119535,"2,124.40",CROFT HOUSE RESIDENTIAL HOME.
Adults Wellbeing and Health,Head of Adults,Third Party Payments,470101,Purchase of Care,12-Sep-2013,2641801-2119536,"1,138.07",CROFT HOUSE RESIDENTIAL HOME.
Adults Wellbeing and Health,Head of Adults,Third Party Payments,470101,Purchase of Care,12-Sep-2013,2641802-2118114,"1,738.00",CROFT UNIT.
Adults Wellbeing and Health,Head of Adults,Third Party Payments,470101,Purchase of Care,12-Sep-2013,2641802-2118128,"1,738.00",CROFT UNIT.
Adults Wellbeing and Health,Head of Adults,Third Party Payments,470101,Purchase of Care,12-Sep-2013,2641802-2118129,"1,252.00",CROFT UNIT.
Adults Wellbeing and Health,Head of Adults,Third Party Payments,470101,Purchase of Care,12-Sep-2013,2641802-2119828,"1,738.00",CROFT UNIT.
Adults Wellbeing and Health,Head of Adults,Third Party Payments,470101,Purchase of Care,12-Sep-2013,2641802-2119829,"1,738.00",CROFT UNIT.
Adults Wellbeing and Health,Head of Adults,Third Party Payments,470101,Purchase of Care,12-Sep-2013,2641802-2119830,"1,214.00",CROFT UNIT.
Adults Wellbeing and Health,Head of Adults,Third Party Payments,470101,Purchase of Care,12-Sep-2013,2641802-2119831,"2,428.00",CROFT UNIT.
Adults Wellbeing and Health,Head of Adults,Third Party Payments,470101,Purchase of Care,12-Sep-2013,2641802-2119832,"2,428.00",CROFT UNIT.
Adults Wellbeing and Health,Head of Adults,Third Party Payments,470101,Purchase of Care,12-Sep-2013,2641802-2119833,"1,088.60",CROFT UNIT.
Adults Wellbeing and Health,Head of Adults,Third Party Payments,470101,Purchase of Care,12-Sep-2013,2641802-2119834,"1,738.00",CROFT UNIT.
Adults Wellbeing and Health,Head of Adults,Third Party Payments,470101,Purchase of Care,12-Sep-2013,2641802-2119835,"1,252.00",CROFT UNIT.
Adults Wellbeing and Health,Head of Adults,Third Party Payments,470101,Purchase of Care,12-Sep-2013,2641802-2119836,"1,738.00",CROFT UNIT.
Adults Wellbeing and Health,Head of Adults,Third Party Payments,470101,Purchase of Care,12-Sep-2013,2641839-1359487D,561.56,REDACTED - PAYMENT TO INDIVIDUAL
Adults Wellbeing and Health,Head of Adults,Third Party Payments,470101,Purchase of Care,12-Sep-2013,2641854-2117786,"1,894.36",DEFOE COURT.
Adults Wellbeing and Health,Head of Adults,Third Party Payments,470101,Purchase of Care,12-Sep-2013,2641854-2117787,"1,894.36",DEFOE COURT.
Adults Wellbeing and Health,Head of Adults,Third Party Payments,470101,Purchase of Care,12-Sep-2013,2641854-2117788,928.64,DEFOE COURT.
Adults Wellbeing and Health,Head of Adults,Third Party Payments,470101,Purchase of Care,12-Sep-2013,2641854-2117789,"1,894.36",DEFOE COURT.
Adults Wellbeing and Health,Head of Adults,Third Party Payments,470101,Purchase of Care,12-Sep-2013,2641854-2117790,"1,894.36",DEFOE COURT.
Adults Wellbeing and Health,Head of Adults,Third Party Payments,470101,Purchase of Care,12-Sep-2013,2641854-2117791,"1,894.36",DEFOE COURT.
Adults Wellbeing and Health,Head of Adults,Third Party Payments,470101,Purchase of Care,12-Sep-2013,2641854-2117810,"1,894.36",DEFOE COURT.
Adults Wellbeing and Health,Head of Adults,Third Party Payments,470101,Purchase of Care,12-Sep-2013,2641854-2117812,"1,894.36",DEFOE COURT.
Adults Wellbeing and Health,Head of Adults,Third Party Payments,470101,Purchase of Care,12-Sep-2013,2641854-2117813,"1,894.36",DEFOE COURT.
Adults Wellbeing and Health,Head of Adults,Third Party Payments,470101,Purchase of Care,12-Sep-2013,2641854-2117814,"1,894.36",DEFOE COURT.
Adults Wellbeing and Health,Head of Adults,Third Party Payments,470101,Purchase of Care,12-Sep-2013,2641854-2117815,"1,894.36",DEFOE COURT.
Adults Wellbeing and Health,Head of Adults,Third Party Payments,470101,Purchase of Care,12-Sep-2013,2641854-2117816,"1,894.36",DEFOE COURT.
Adults Wellbeing and Health,Head of Adults,Third Party Payments,470101,Purchase of Care,12-Sep-2013,2641854-2121786,"1,217.80",DEFOE COURT.
Adults Wellbeing and Health,Head of Adults,Third Party Payments,470101,Purchase of Care,12-Sep-2013,2641864-2117566,"1,894.36",DERWENT CARE HOME.
Adults Wellbeing and Health,Head of Adults,Third Party Payments,470101,Purchase of Care,12-Sep-2013,2641864-2117567,"1,894.36",DERWENT CARE HOME.
Adults Wellbeing and Health,Head of Adults,Third Party Payments,470101,Purchase of Care,12-Sep-2013,2641864-2117568,"1,894.36",DERWENT CARE HOME.
Adults Wellbeing and Health,Head of Adults,Third Party Payments,470101,Purchase of Care,12-Sep-2013,2641864-2117592,811.86,DERWENT CARE HOME.
Adults Wellbeing and Health,Head of Adults,Third Party Payments,470101,Purchase of Care,12-Sep-2013,2641864-2117593,"1,894.36",DERWENT CARE HOME.
Adults Wellbeing and Health,Head of Adults,Third Party Payments,470101,Purchase of Care,12-Sep-2013,2641864-2117594,"1,894.36",DERWENT CARE HOME.
Adults Wellbeing and Health,Head of Adults,Third Party Payments,470101,Purchase of Care,12-Sep-2013,2641864-2117595,541.24,DERWENT CARE HOME.
Adults Wellbeing and Health,Head of Adults,Third Party Payments,470101,Purchase of Care,12-Sep-2013,2641864-2117596,"1,894.36",DERWENT CARE HOME.
Adults Wellbeing and Health,Head of Adults,Third Party Payments,470101,Purchase of Care,12-Sep-2013,2641865-2119841,"1,762.44",DERWENT CARE.
Adults Wellbeing and Health,Head of Adults,Third Party Payments,470101,Purchase of Care,12-Sep-2013,2641865-2120029,"2,949.00",DERWENT CARE.
Adults Wellbeing and Health,Head of Adults,Third Party Payments,470101,Purchase of Care,12-Sep-2013,2641865-2120030,"2,949.00",DERWENT CARE.
Adults Wellbeing and Health,Head of Adults,Third Party Payments,470101,Purchase of Care,12-Sep-2013,2641865-2120031,"2,949.00",DERWENT CARE.
Adults Wellbeing and Health,Head of Adults,Third Party Payments,470101,Purchase of Care,12-Sep-2013,2641865-2120037,"2,949.00",DERWENT CARE.
Adults Wellbeing and Health,Head of Adults,Third Party Payments,470101,Purchase of Care,12-Sep-2013,2641865-2120038,"2,949.00",DERWENT CARE.
Adults Wellbeing and Health,Head of Adults,Third Party Payments,470101,Purchase of Care,12-Sep-2013,2641865-2120039,"2,949.00",DERWENT CARE.
Adults Wellbeing and Health,Head of Adults,Third Party Payments,470101,Purchase of Care,12-Sep-2013,2641866-2118527,759.70,DEVONSHIRE HOUSE.
Adults Wellbeing and Health,Head of Adults,Third Party Payments,470101,Purchase of Care,12-Sep-2013,2641866-2118528,"1,105.60",DEVONSHIRE HOUSE.
Adults Wellbeing and Health,Head of Adults,Third Party Payments,470101,Purchase of Care,12-Sep-2013,2641866-2118529,"1,104.43",DEVONSHIRE HOUSE.
Adults Wellbeing and Health,Head of Adults,Third Party Payments,470101,Purchase of Care,12-Sep-2013,2641866-2118530,"1,595.12",DEVONSHIRE HOUSE.
Adults Wellbeing and Health,Head of Adults,Third Party Payments,470101,Purchase of Care,12-Sep-2013,2641866-2118531,"1,041.28",DEVONSHIRE HOUSE.
Adults Wellbeing and Health,Head of Adults,Third Party Payments,470101,Purchase of Care,12-Sep-2013,2641866-2120110,"1,691.08",DEVONSHIRE HOUSE.
Adults Wellbeing and Health,Head of Adults,Third Party Payments,470101,Purchase of Care,12-Sep-2013,2641875-2117306,"1,894.36",DIPTON CARE HOME LTD.
Adults Wellbeing and Health,Head of Adults,Third Party Payments,470101,Purchase of Care,12-Sep-2013,2641875-2117307,"1,894.36",DIPTON CARE HOME LTD.
Adults Wellbeing and Health,Head of Adults,Third Party Payments,470101,Purchase of Care,12-Sep-2013,2641875-2117308,"1,894.36",DIPTON CARE HOME LTD.
Adults Wellbeing and Health,Head of Adults,Third Party Payments,470101,Purchase of Care,12-Sep-2013,2641875-2117309,"1,894.36",DIPTON CARE HOME LTD.
Adults Wellbeing and Health,Head of Adults,Third Party Payments,470101,Purchase of Care,12-Sep-2013,2641875-2117310,"1,962.02",DIPTON CARE HOME LTD.
Adults Wellbeing and Health,Head of Adults,Third Party Payments,470101,Purchase of Care,12-Sep-2013,2641875-2117311,"1,894.36",DIPTON CARE HOME LTD.
Adults Wellbeing and Health,Head of Adults,Third Party Payments,470101,Purchase of Care,12-Sep-2013,2641875-2117313,"1,353.11",DIPTON CARE HOME LTD.
Adults Wellbeing and Health,Head of Adults,Third Party Payments,470101,Purchase of Care,12-Sep-2013,2641875-2117314,"1,894.36",DIPTON CARE HOME LTD.
Adults Wellbeing and Health,Head of Adults,Third Party Payments,470101,Purchase of Care,12-Sep-2013,2641875-2117315,"1,014.83",DIPTON CARE HOME LTD.
Adults Wellbeing and Health,Head of Adults,Third Party Payments,470101,Purchase of Care,12-Sep-2013,2641875-2117316,"1,894.36",DIPTON CARE HOME LTD.
Adults Wellbeing and Health,Head of Adults,Third Party Payments,470101,Purchase of Care,12-Sep-2013,2641875-2121652,"1,894.36",DIPTON CARE HOME LTD.
Adults Wellbeing and Health,Head of Adults,Third Party Payments,470101,Purchase of Care,12-Sep-2013,2641881-2117775,"1,738.00",DONWELL HOUSE DAY CENTRE.
Adults Wellbeing and Health,Head of Adults,Third Party Payments,470101,Purchase of Care,12-Sep-2013,2641881-2117776,"1,738.00",DONWELL HOUSE DAY CENTRE.
Adults Wellbeing and Health,Head of Adults,Third Party Payments,470101,Purchase of Care,12-Sep-2013,2641900-2118533,"1,595.12",DOSON LTD (DENEHURST).
Adults Wellbeing and Health,Head of Adults,Third Party Payments,470101,Purchase of Care,12-Sep-2013,2641900-2118535,"1,595.12",DOSON LTD (DENEHURST).
Adults Wellbeing and Health,Head of Adults,Third Party Payments,470101,Purchase of Care,12-Sep-2013,2641900-2118536,"1,595.12",DOSON LTD (DENEHURST).
Adults Wellbeing and Health,Head of Adults,Third Party Payments,470101,Purchase of Care,12-Sep-2013,2641900-2118537,"1,595.12",DOSON LTD (DENEHURST).
Adults Wellbeing and Health,Head of Adults,Third Party Payments,470101,Purchase of Care,12-Sep-2013,2641900-2118538,902.84,DOSON LTD (DENEHURST).
Adults Wellbeing and Health,Head of Adults,Third Party Payments,470101,Purchase of Care,12-Sep-2013,2641900-2118567,"1,595.12",DOSON LTD (DENEHURST).
Adults Wellbeing and Health,Head of Adults,Third Party Payments,470101,Purchase of Care,12-Sep-2013,2641900-2118568,"1,056.80",DOSON LTD (DENEHURST).
Adults Wellbeing and Health,Head of Adults,Third Party Payments,470101,Purchase of Care,12-Sep-2013,2641901-2118130,"1,792.92",DOSON LTD (STOCKTON LODGE CARE HOME).
Adults Wellbeing and Health,Head of Adults,Third Party Payments,470101,Purchase of Care,12-Sep-2013,2641901-2118137,972.68,DOSON LTD (STOCKTON LODGE CARE HOME).
Adults Wellbeing and Health,Head of Adults,Third Party Payments,470101,Purchase of Care,12-Sep-2013,2641901-2118138,"1,792.92",DOSON LTD (STOCKTON LODGE CARE HOME).
Adults Wellbeing and Health,Head of Adults,Third Party Payments,470101,Purchase of Care,12-Sep-2013,2641901-2118139,"1,306.92",DOSON LTD (STOCKTON LODGE CARE HOME).
Adults Wellbeing and Health,Head of Adults,Third Party Payments,470101,Purchase of Care,12-Sep-2013,2641901-2118140,"1,792.92",DOSON LTD (STOCKTON LODGE CARE HOME).
Adults Wellbeing and Health,Head of Adults,Third Party Payments,470101,Purchase of Care,12-Sep-2013,2641901-2118141,"1,276.72",DOSON LTD (STOCKTON LODGE CARE HOME).
Adults Wellbeing and Health,Head of Adults,Third Party Payments,470101,Purchase of Care,12-Sep-2013,2641901-2118142,"1,316.04",DOSON LTD (STOCKTON LODGE CARE HOME).
Adults Wellbeing and Health,Head of Adults,Third Party Payments,470101,Purchase of Care,12-Sep-2013,2641901-2118185,"1,792.92",DOSON LTD (STOCKTON LODGE CARE HOME).
Adults Wellbeing and Health,Head of Adults,Third Party Payments,470101,Purchase of Care,12-Sep-2013,2641901-2118186,"1,177.00",DOSON LTD (STOCKTON LODGE CARE HOME).
Adults Wellbeing and Health,Head of Adults,Third Party Payments,470101,Purchase of Care,12-Sep-2013,2641901-2118187,"1,792.92",DOSON LTD (STOCKTON LODGE CARE HOME).
Adults Wellbeing and Health,Head of Adults,Third Party Payments,470101,Purchase of Care,12-Sep-2013,2641901-2118188,"1,792.92",DOSON LTD (STOCKTON LODGE CARE HOME).
Adults Wellbeing and Health,Head of Adults,Third Party Payments,470101,Purchase of Care,12-Sep-2013,2641901-2118189,"1,306.92",DOSON LTD (STOCKTON LODGE CARE HOME).
Adults Wellbeing and Health,Head of Adults,Third Party Payments,470101,Purchase of Care,12-Sep-2013,2641901-2118190,"1,103.52",DOSON LTD (STOCKTON LODGE CARE HOME).
Adults Wellbeing and Health,Head of Adults,Third Party Payments,470101,Purchase of Care,12-Sep-2013,2641907-2119531,"2,200.00",DURHAM CARELINE LTD.
Adults Wellbeing and Health,Head of Adults,Third Party Payments,470101,Purchase of Care,12-Sep-2013,2641907-2119866,"5,000.00",DURHAM CARELINE LTD.
Adults Wellbeing and Health,Head of Adults,Third Party Payments,470101,Purchase of Care,12-Sep-2013,2641908-2119549,"1,959.76",DURHAM CARELINE LTD.
Adults Wellbeing and Health,Head of Adults,Third Party Payments,470101,Purchase of Care,12-Sep-2013,2641908-2119550,"1,619.48",DURHAM CARELINE LTD.
Adults Wellbeing and Health,Head of Adults,Third Party Payments,470101,Purchase of Care,12-Sep-2013,2641908-2119551,"1,481.44",DURHAM CARELINE LTD.
Adults Wellbeing and Health,Head of Adults,Third Party Payments,470101,Purchase of Care,12-Sep-2013,2641908-2119552,"1,471.00",DURHAM CARELINE LTD.
Adults Wellbeing and Health,Head of Adults,Third Party Payments,470101,Purchase of Care,12-Sep-2013,2641908-2119555,"1,959.76",DURHAM CARELINE LTD.
Adults Wellbeing and Health,Head of Adults,Third Party Payments,470101,Purchase of Care,12-Sep-2013,2641908-2119556,"1,959.76",DURHAM CARELINE LTD.
Adults Wellbeing and Health,Head of Adults,Third Party Payments,470101,Purchase of Care,12-Sep-2013,2641908-2119557,"1,959.76",DURHAM CARELINE LTD.
Adults Wellbeing and Health,Head of Adults,Third Party Payments,470101,Purchase of Care,12-Sep-2013,2641908-2119558,"1,644.56",DURHAM CARELINE LTD.
Adults Wellbeing and Health,Head of Adults,Third Party Payments,470101,Purchase of Care,12-Sep-2013,2641908-2119559,"1,644.56",DURHAM CARELINE LTD.
Adults Wellbeing and Health,Head of Adults,Third Party Payments,470101,Purchase of Care,12-Sep-2013,2641908-2119560,"1,959.76",DURHAM CARELINE LTD.
Adults Wellbeing and Health,Head of Adults,Third Party Payments,470101,Purchase of Care,12-Sep-2013,2641908-2119561,"1,959.76",DURHAM CARELINE LTD.
Adults Wellbeing and Health,Head of Adults,Third Party Payments,470101,Purchase of Care,12-Sep-2013,2641908-2119562,"1,644.56",DURHAM CARELINE LTD.
Adults Wellbeing and Health,Head of Adults,Third Party Payments,470101,Purchase of Care,12-Sep-2013,2641908-2119968,"1,482.48",DURHAM CARELINE LTD.
Adults Wellbeing and Health,Head of Adults,Third Party Payments,470101,Purchase of Care,12-Sep-2013,2641908-2119978,"1,797.68",DURHAM CARELINE LTD.
Adults Wellbeing and Health,Head of Adults,Third Party Payments,470101,Purchase of Care,12-Sep-2013,2641908-2119979,"1,797.68",DURHAM CARELINE LTD.
Adults Wellbeing and Health,Head of Adults,Third Party Payments,470101,Purchase of Care,12-Sep-2013,2641925-1358520D,"1,415.69",EBONEY DAY CARE.
Adults Wellbeing and Health,Head of Adults,Third Party Payments,470101,Purchase of Care,12-Sep-2013,2641955-2119919,"11,023.16",ELLERSHAW HOUSE.
Adults Wellbeing and Health,Head of Adults,Third Party Payments,470101,Purchase of Care,12-Sep-2013,2641956-2119563,"2,574.60",ELPHA LODGE LTD.
Adults Wellbeing and Health,Head of Adults,Third Party Payments,470101,Purchase of Care,12-Sep-2013,2641969-2117318,"1,787.08",EOTHEN.
Adults Wellbeing and Health,Head of Adults,Third Party Payments,470101,Purchase of Care,12-Sep-2013,2641974-2115227,"10,488.12",ESPA.
Adults Wellbeing and Health,Head of Adults,Third Party Payments,470101,Purchase of Care,12-Sep-2013,2641974-2119851,"9,611.92",ESPA.
Adults Wellbeing and Health,Head of Adults,Third Party Payments,470101,Purchase of Care,12-Sep-2013,2641974-2119852,"4,749.68",ESPA.
Adults Wellbeing and Health,Head of Adults,Third Party Payments,470101,Purchase of Care,12-Sep-2013,2641974-2119853,"6,489.84",ESPA.
Adults Wellbeing and Health,Head of Adults,Third Party Payments,470101,Purchase of Care,12-Sep-2013,2641974-2119941,"7,822.76",ESPA.
Adults Wellbeing and Health,Head of Adults,Third Party Payments,470101,Purchase of Care,12-Sep-2013,2641974-2119982,"6,489.92",ESPA.
Adults Wellbeing and Health,Head of Adults,Third Party Payments,470101,Purchase of Care,12-Sep-2013,2641974-2119983,"4,749.68",ESPA.
Adults Wellbeing and Health,Head of Adults,Third Party Payments,470101,Purchase of Care,12-Sep-2013,2641974-2119984,"4,749.68",ESPA.
Adults Wellbeing and Health,Head of Adults,Third Party Payments,470101,Purchase of Care,12-Sep-2013,2641975-2115131,"3,844.24",ESPA.
Adults Wellbeing and Health,Head of Adults,Third Party Payments,470101,Purchase of Care,12-Sep-2013,2641975-2119763,"3,844.24",ESPA.
Adults Wellbeing and Health,Head of Adults,Third Party Payments,470101,Purchase of Care,12-Sep-2013,2641978-2118081,"1,738.00",ETHERLEY LODGE.
Adults Wellbeing and Health,Head of Adults,Third Party Payments,470101,Purchase of Care,12-Sep-2013,2641978-2118083,"1,738.00",ETHERLEY LODGE.
Adults Wellbeing and Health,Head of Adults,Third Party Payments,470101,Purchase of Care,12-Sep-2013,2641978-2118105,"1,237.48",ETHERLEY LODGE.
Adults Wellbeing and Health,Head of Adults,Third Party Payments,470101,Purchase of Care,12-Sep-2013,2641978-2118106,"1,252.00",ETHERLEY LODGE.
Adults Wellbeing and Health,Head of Adults,Third Party Payments,470101,Purchase of Care,12-Sep-2013,2641978-2118107,"1,738.00",ETHERLEY LODGE.
Adults Wellbeing and Health,Head of Adults,Third Party Payments,470101,Purchase of Care,12-Sep-2013,2641978-2119808,"1,738.00",ETHERLEY LODGE.
Adults Wellbeing and Health,Head of Adults,Third Party Payments,470101,Purchase of Care,12-Sep-2013,2641978-2119809,620.71,ETHERLEY LODGE.
Adults Wellbeing and Health,Head of Adults,Third Party Payments,470101,Purchase of Care,12-Sep-2013,2641978-2119810,851.96,ETHERLEY LODGE.
Adults Wellbeing and Health,Head of Adults,Third Party Payments,470101,Purchase of Care,12-Sep-2013,2641978-2119811,851.96,ETHERLEY LODGE.
Adults Wellbeing and Health,Head of Adults,Third Party Payments,470101,Purchase of Care,12-Sep-2013,2641978-2119812,851.96,ETHERLEY LODGE.
Adults Wellbeing and Health,Head of Adults,Third Party Payments,470101,Purchase of Care,12-Sep-2013,2641978-2119813,"1,738.00",ETHERLEY LODGE.
Adults Wellbeing and Health,Head of Adults,Third Party Payments,470101,Purchase of Care,12-Sep-2013,2641978-2119814,"1,738.00",ETHERLEY LODGE.
Adults Wellbeing and Health,Head of Adults,Third Party Payments,470101,Purchase of Care,12-Sep-2013,2641978-2119815,"1,738.00",ETHERLEY LODGE.
Adults Wellbeing and Health,Head of Adults,Third Party Payments,470101,Purchase of Care,12-Sep-2013,2641978-2119816,"1,385.40",ETHERLEY LODGE.
Adults Wellbeing and Health,Head of Adults,Third Party Payments,470101,Purchase of Care,12-Sep-2013,2641978-2119817,"1,252.00",ETHERLEY LODGE.
Adults Wellbeing and Health,Head of Adults,Third Party Payments,470101,Purchase of Care,12-Sep-2013,2641978-2119818,851.96,ETHERLEY LODGE.
Adults Wellbeing and Health,Head of Adults,Third Party Payments,470101,Purchase of Care,12-Sep-2013,2641978-2119819,"1,738.00",ETHERLEY LODGE.
Adults Wellbeing and Health,Head of Adults,Third Party Payments,470101,Purchase of Care,12-Sep-2013,2641978-2119820,"1,738.00",ETHERLEY LODGE.
Adults Wellbeing and Health,Head of Adults,Third Party Payments,470101,Purchase of Care,12-Sep-2013,2641978-2119821,851.96,ETHERLEY LODGE.
Adults Wellbeing and Health,Head of Adults,Third Party Payments,470101,Purchase of Care,12-Sep-2013,2641978-2119822,"1,738.00",ETHERLEY LODGE.
Adults Wellbeing and Health,Head of Adults,Third Party Payments,470101,Purchase of Care,12-Sep-2013,2641978-2119823,"1,738.00",ETHERLEY LODGE.
Adults Wellbeing and Health,Head of Adults,Third Party Payments,470101,Purchase of Care,12-Sep-2013,2641978-2119824,"1,738.00",ETHERLEY LODGE.
Adults Wellbeing and Health,Head of Adults,Third Party Payments,470101,Purchase of Care,12-Sep-2013,2641978-2119825,"1,738.00",ETHERLEY LODGE.
Adults Wellbeing and Health,Head of Adults,Third Party Payments,470101,Purchase of Care,12-Sep-2013,2641978-2119826,"1,347.00",ETHERLEY LODGE.
Adults Wellbeing and Health,Head of Adults,Third Party Payments,470101,Purchase of Care,12-Sep-2013,2641978-2119827,"1,738.00",ETHERLEY LODGE.
Adults Wellbeing and Health,Head of Adults,Third Party Payments,470101,Purchase of Care,12-Sep-2013,2641978-2120017,"1,745.00",ETHERLEY LODGE.
Adults Wellbeing and Health,Head of Adults,Third Party Payments,470101,Purchase of Care,12-Sep-2013,2641978-2120018,"1,510.60",ETHERLEY LODGE.
Adults Wellbeing and Health,Head of Adults,Third Party Payments,470101,Purchase of Care,12-Sep-2013,2641980-2117747,"1,595.12",EUROPEAN CARE (ENGLAND) LTD.
Adults Wellbeing and Health,Head of Adults,Third Party Payments,470101,Purchase of Care,12-Sep-2013,2641980-2117748,"1,595.12",EUROPEAN CARE (ENGLAND) LTD.
Adults Wellbeing and Health,Head of Adults,Third Party Payments,470101,Purchase of Care,12-Sep-2013,2641980-2117749,"1,595.12",EUROPEAN CARE (ENGLAND) LTD.
Adults Wellbeing and Health,Head of Adults,Third Party Payments,470101,Purchase of Care,12-Sep-2013,2641980-2117766,"1,595.12",EUROPEAN CARE (ENGLAND) LTD.
Adults Wellbeing and Health,Head of Adults,Third Party Payments,470101,Purchase of Care,12-Sep-2013,2641980-2117767,"1,595.12",EUROPEAN CARE (ENGLAND) LTD.
Adults Wellbeing and Health,Head of Adults,Third Party Payments,470101,Purchase of Care,12-Sep-2013,2641980-2117768,"1,595.12",EUROPEAN CARE (ENGLAND) LTD.
Adults Wellbeing and Health,Head of Adults,Third Party Payments,470101,Purchase of Care,12-Sep-2013,2641980-2117769,968.46,EUROPEAN CARE (ENGLAND) LTD.
Adults Wellbeing and Health,Head of Adults,Third Party Payments,470101,Purchase of Care,12-Sep-2013,2641980-2117770,"1,595.12",EUROPEAN CARE (ENGLAND) LTD.
Adults Wellbeing and Health,Head of Adults,Third Party Payments,470101,Purchase of Care,12-Sep-2013,2641980-2117771,"1,595.12",EUROPEAN CARE (ENGLAND) LTD.
Adults Wellbeing and Health,Head of Adults,Third Party Payments,470101,Purchase of Care,12-Sep-2013,2641980-2117772,"1,595.12",EUROPEAN CARE (ENGLAND) LTD.
Adults Wellbeing and Health,Head of Adults,Third Party Payments,470101,Purchase of Care,12-Sep-2013,2641980-2117773,"1,595.12",EUROPEAN CARE (ENGLAND) LTD.
Adults Wellbeing and Health,Head of Adults,Third Party Payments,470101,Purchase of Care,12-Sep-2013,2641981-2117717,768.39,EUROPEAN CARE (ENGLAND) LTD.
Adults Wellbeing and Health,Head of Adults,Third Party Payments,470101,Purchase of Care,12-Sep-2013,2641981-2117718,"1,792.92",EUROPEAN CARE (ENGLAND) LTD.
Adults Wellbeing and Health,Head of Adults,Third Party Payments,470101,Purchase of Care,12-Sep-2013,2641981-2117719,"1,792.92",EUROPEAN CARE (ENGLAND) LTD.
Adults Wellbeing and Health,Head of Adults,Third Party Payments,470101,Purchase of Care,12-Sep-2013,2641981-2117724,"1,792.92",EUROPEAN CARE (ENGLAND) LTD.
Adults Wellbeing and Health,Head of Adults,Third Party Payments,470101,Purchase of Care,12-Sep-2013,2641981-2117725,"1,792.92",EUROPEAN CARE (ENGLAND) LTD.
Adults Wellbeing and Health,Head of Adults,Third Party Payments,470101,Purchase of Care,12-Sep-2013,2641981-2117726,"1,792.92",EUROPEAN CARE (ENGLAND) LTD.
Adults Wellbeing and Health,Head of Adults,Third Party Payments,470101,Purchase of Care,12-Sep-2013,2641981-2117727,"1,792.92",EUROPEAN CARE (ENGLAND) LTD.
Adults Wellbeing and Health,Head of Adults,Third Party Payments,470101,Purchase of Care,12-Sep-2013,2641981-2117728,"1,792.92",EUROPEAN CARE (ENGLAND) LTD.
Adults Wellbeing and Health,Head of Adults,Third Party Payments,470101,Purchase of Care,12-Sep-2013,2641981-2117729,"1,792.92",EUROPEAN CARE (ENGLAND) LTD.
Adults Wellbeing and Health,Head of Adults,Third Party Payments,470101,Purchase of Care,12-Sep-2013,2641981-2117730,"1,792.92",EUROPEAN CARE (ENGLAND) LTD.
Adults Wellbeing and Health,Head of Adults,Third Party Payments,470101,Purchase of Care,12-Sep-2013,2641981-2117731,"1,792.92",EUROPEAN CARE (ENGLAND) LTD.
Adults Wellbeing and Health,Head of Adults,Third Party Payments,470101,Purchase of Care,12-Sep-2013,2641981-2117732,"1,792.92",EUROPEAN CARE (ENGLAND) LTD.
Adults Wellbeing and Health,Head of Adults,Third Party Payments,470101,Purchase of Care,12-Sep-2013,2641981-2117733,"1,792.92",EUROPEAN CARE (ENGLAND) LTD.
Adults Wellbeing and Health,Head of Adults,Third Party Payments,470101,Purchase of Care,12-Sep-2013,2641981-2117734,"1,792.92",EUROPEAN CARE (ENGLAND) LTD.
Adults Wellbeing and Health,Head of Adults,Third Party Payments,470101,Purchase of Care,12-Sep-2013,2641981-2117735,"1,792.92",EUROPEAN CARE (ENGLAND) LTD.
Adults Wellbeing and Health,Head of Adults,Third Party Payments,470101,Purchase of Care,12-Sep-2013,2641981-2117736,"1,792.92",EUROPEAN CARE (ENGLAND) LTD.
Adults Wellbeing and Health,Head of Adults,Third Party Payments,470101,Purchase of Care,12-Sep-2013,2641981-2117737,"1,792.92",EUROPEAN CARE (ENGLAND) LTD.
Adults Wellbeing and Health,Head of Adults,Third Party Payments,470101,Purchase of Care,12-Sep-2013,2641981-2117738,"1,792.92",EUROPEAN CARE (ENGLAND) LTD.
Adults Wellbeing and Health,Head of Adults,Third Party Payments,470101,Purchase of Care,12-Sep-2013,2641981-2117739,"1,792.92",EUROPEAN CARE (ENGLAND) LTD.
Adults Wellbeing and Health,Head of Adults,Third Party Payments,470101,Purchase of Care,12-Sep-2013,2641981-2117740,"1,792.92",EUROPEAN CARE (ENGLAND) LTD.
Adults Wellbeing and Health,Head of Adults,Third Party Payments,470101,Purchase of Care,12-Sep-2013,2641981-2117741,"1,792.92",EUROPEAN CARE (ENGLAND) LTD.
Adults Wellbeing and Health,Head of Adults,Third Party Payments,470101,Purchase of Care,12-Sep-2013,2641981-2117742,"1,792.92",EUROPEAN CARE (ENGLAND) LTD.
Adults Wellbeing and Health,Head of Adults,Third Party Payments,470101,Purchase of Care,12-Sep-2013,2641982-2117370,"1,792.92",EUROPEAN CARE (ENGLAND) LTD.
Adults Wellbeing and Health,Head of Adults,Third Party Payments,470101,Purchase of Care,12-Sep-2013,2641982-2117384,"1,792.92",EUROPEAN CARE (ENGLAND) LTD.
Adults Wellbeing and Health,Head of Adults,Third Party Payments,470101,Purchase of Care,12-Sep-2013,2641982-2117385,"2,049.05",EUROPEAN CARE (ENGLAND) LTD.
Adults Wellbeing and Health,Head of Adults,Third Party Payments,470101,Purchase of Care,12-Sep-2013,2641982-2117386,"1,792.92",EUROPEAN CARE (ENGLAND) LTD.
Adults Wellbeing and Health,Head of Adults,Third Party Payments,470101,Purchase of Care,12-Sep-2013,2641982-2117387,"1,792.92",EUROPEAN CARE (ENGLAND) LTD.
Adults Wellbeing and Health,Head of Adults,Third Party Payments,470101,Purchase of Care,12-Sep-2013,2641982-2117388,"1,792.92",EUROPEAN CARE (ENGLAND) LTD.
Adults Wellbeing and Health,Head of Adults,Third Party Payments,470101,Purchase of Care,12-Sep-2013,2641982-2117389,"1,792.92",EUROPEAN CARE (ENGLAND) LTD.
Adults Wellbeing and Health,Head of Adults,Third Party Payments,470101,Purchase of Care,12-Sep-2013,2641982-2117390,"1,792.92",EUROPEAN CARE (ENGLAND) LTD.
Adults Wellbeing and Health,Head of Adults,Third Party Payments,470101,Purchase of Care,12-Sep-2013,2641982-2117391,"1,792.92",EUROPEAN CARE (ENGLAND) LTD.
Adults Wellbeing and Health,Head of Adults,Third Party Payments,470101,Purchase of Care,12-Sep-2013,2641982-2117392,"1,792.92",EUROPEAN CARE (ENGLAND) LTD.
Adults Wellbeing and Health,Head of Adults,Third Party Payments,470101,Purchase of Care,12-Sep-2013,2641982-2117393,"1,792.92",EUROPEAN CARE (ENGLAND) LTD.
Adults Wellbeing and Health,Head of Adults,Third Party Payments,470101,Purchase of Care,12-Sep-2013,2641982-2117394,"1,792.92",EUROPEAN CARE (ENGLAND) LTD.
Adults Wellbeing and Health,Head of Adults,Third Party Payments,470101,Purchase of Care,12-Sep-2013,2641982-2117395,"1,792.92",EUROPEAN CARE (ENGLAND) LTD.
Adults Wellbeing and Health,Head of Adults,Third Party Payments,470101,Purchase of Care,12-Sep-2013,2641982-2117396,896.44,EUROPEAN CARE (ENGLAND) LTD.
Adults Wellbeing and Health,Head of Adults,Third Party Payments,470101,Purchase of Care,12-Sep-2013,2641982-2117397,"1,792.92",EUROPEAN CARE (ENGLAND) LTD.
Adults Wellbeing and Health,Head of Adults,Third Party Payments,470101,Purchase of Care,12-Sep-2013,2641982-2117398,"1,792.92",EUROPEAN CARE (ENGLAND) LTD.
Adults Wellbeing and Health,Head of Adults,Third Party Payments,470101,Purchase of Care,12-Sep-2013,2641982-2117399,"1,792.92",EUROPEAN CARE (ENGLAND) LTD.
Adults Wellbeing and Health,Head of Adults,Third Party Payments,470101,Purchase of Care,12-Sep-2013,2641982-2117400,"1,792.92",EUROPEAN CARE (ENGLAND) LTD.
Adults Wellbeing and Health,Head of Adults,Third Party Payments,470101,Purchase of Care,12-Sep-2013,2641982-2117401,"1,792.92",EUROPEAN CARE (ENGLAND) LTD.
Adults Wellbeing and Health,Head of Adults,Third Party Payments,470101,Purchase of Care,12-Sep-2013,2641982-2117402,"1,792.92",EUROPEAN CARE (ENGLAND) LTD.
Adults Wellbeing and Health,Head of Adults,Third Party Payments,470101,Purchase of Care,12-Sep-2013,2641982-2119534,"1,979.68",EUROPEAN CARE (ENGLAND) LTD.
Adults Wellbeing and Health,Head of Adults,Third Party Payments,470101,Purchase of Care,12-Sep-2013,2641982-2119875,"1,854.68",EUROPEAN CARE (ENGLAND) LTD.
Adults Wellbeing and Health,Head of Adults,Third Party Payments,470101,Purchase of Care,12-Sep-2013,2641983-2117364,576.29,EUROPEAN CARE (ENGLAND) LTD.
Adults Wellbeing and Health,Head of Adults,Third Party Payments,470101,Purchase of Care,12-Sep-2013,2641983-2117365,"2,177.12",EUROPEAN CARE (ENGLAND) LTD.
Adults Wellbeing and Health,Head of Adults,Third Party Payments,470101,Purchase of Care,12-Sep-2013,2641983-2117366,"1,792.92",EUROPEAN CARE (ENGLAND) LTD.
Adults Wellbeing and Health,Head of Adults,Third Party Payments,470101,Purchase of Care,12-Sep-2013,2641984-2117780,"1,542.84",EUROPEAN CARE (ENGLAND) LTD.
Adults Wellbeing and Health,Head of Adults,Third Party Payments,470101,Purchase of Care,12-Sep-2013,2641984-2117781,"1,349.56",EUROPEAN CARE (ENGLAND) LTD.
Adults Wellbeing and Health,Head of Adults,Third Party Payments,470101,Purchase of Care,12-Sep-2013,2641984-2117782,"1,003.82",EUROPEAN CARE (ENGLAND) LTD.
Adults Wellbeing and Health,Head of Adults,Third Party Payments,470101,Purchase of Care,12-Sep-2013,2641984-2117784,"1,444.60",EUROPEAN CARE (ENGLAND) LTD.
Adults Wellbeing and Health,Head of Adults,Third Party Payments,470101,Purchase of Care,12-Sep-2013,2641994-2117774,"1,820.00",FERGUSON LODGE.
Adults Wellbeing and Health,Head of Adults,Third Party Payments,470101,Purchase of Care,12-Sep-2013,2641996-2117690,"1,894.36",FIELD VIEW CARE HOME.
Adults Wellbeing and Health,Head of Adults,Third Party Payments,470101,Purchase of Care,12-Sep-2013,2641996-2117691,"1,894.36",FIELD VIEW CARE HOME.
Adults Wellbeing and Health,Head of Adults,Third Party Payments,470101,Purchase of Care,12-Sep-2013,2641996-2117692,"1,894.36",FIELD VIEW CARE HOME.
Adults Wellbeing and Health,Head of Adults,Third Party Payments,470101,Purchase of Care,12-Sep-2013,2641996-2117702,"1,894.36",FIELD VIEW CARE HOME.
Adults Wellbeing and Health,Head of Adults,Third Party Payments,470101,Purchase of Care,12-Sep-2013,2641996-2117703,"1,894.36",FIELD VIEW CARE HOME.
Adults Wellbeing and Health,Head of Adults,Third Party Payments,470101,Purchase of Care,12-Sep-2013,2641996-2117704,"1,894.36",FIELD VIEW CARE HOME.
Adults Wellbeing and Health,Head of Adults,Third Party Payments,470101,Purchase of Care,12-Sep-2013,2641996-2117705,"1,894.36",FIELD VIEW CARE HOME.
Adults Wellbeing and Health,Head of Adults,Third Party Payments,470101,Purchase of Care,12-Sep-2013,2641996-2117706,"1,894.36",FIELD VIEW CARE HOME.
Adults Wellbeing and Health,Head of Adults,Third Party Payments,470101,Purchase of Care,12-Sep-2013,2641996-2117707,"1,894.36",FIELD VIEW CARE HOME.
Adults Wellbeing and Health,Head of Adults,Third Party Payments,470101,Purchase of Care,12-Sep-2013,2641996-2117708,"1,894.36",FIELD VIEW CARE HOME.
Adults Wellbeing and Health,Head of Adults,Third Party Payments,470101,Purchase of Care,12-Sep-2013,2641996-2117709,"1,894.36",FIELD VIEW CARE HOME.
Adults Wellbeing and Health,Head of Adults,Third Party Payments,470101,Purchase of Care,12-Sep-2013,2641996-2117710,"1,894.36",FIELD VIEW CARE HOME.
Adults Wellbeing and Health,Head of Adults,Third Party Payments,470101,Purchase of Care,12-Sep-2013,2641996-2117711,"1,894.36",FIELD VIEW CARE HOME.
Adults Wellbeing and Health,Head of Adults,Third Party Payments,470101,Purchase of Care,12-Sep-2013,2641996-2117712,"1,894.36",FIELD VIEW CARE HOME.
Adults Wellbeing and Health,Head of Adults,Third Party Payments,470101,Purchase of Care,12-Sep-2013,2641996-2117713,"1,894.36",FIELD VIEW CARE HOME.
Adults Wellbeing and Health,Head of Adults,Third Party Payments,470101,Purchase of Care,12-Sep-2013,2641996-2117714,"1,894.36",FIELD VIEW CARE HOME.
Adults Wellbeing and Health,Head of Adults,Third Party Payments,470101,Purchase of Care,12-Sep-2013,2641996-2117715,"1,894.36",FIELD VIEW CARE HOME.
Adults Wellbeing and Health,Head of Adults,Third Party Payments,470101,Purchase of Care,12-Sep-2013,2641996-2121471,"4,532.93",FIELD VIEW CARE HOME.
Adults Wellbeing and Health,Head of Adults,Third Party Payments,470101,Purchase of Care,12-Sep-2013,2642007-2120957,"1,744.00",FOUR SEASONS HEALTH CARE.
Adults Wellbeing and Health,Head of Adults,Third Party Payments,470101,Purchase of Care,12-Sep-2013,2642008-2117750,"1,792.92",FOUR SEASONS HEALTH CARE..
Adults Wellbeing and Health,Head of Adults,Third Party Payments,470101,Purchase of Care,12-Sep-2013,2642008-2117795,"1,792.92",FOUR SEASONS HEALTH CARE..
Adults Wellbeing and Health,Head of Adults,Third Party Payments,470101,Purchase of Care,12-Sep-2013,2642008-2117796,"1,792.92",FOUR SEASONS HEALTH CARE..
Adults Wellbeing and Health,Head of Adults,Third Party Payments,470101,Purchase of Care,12-Sep-2013,2642008-2117797,"1,792.92",FOUR SEASONS HEALTH CARE..
Adults Wellbeing and Health,Head of Adults,Third Party Payments,470101,Purchase of Care,12-Sep-2013,2642008-2117798,"1,792.92",FOUR SEASONS HEALTH CARE..
Adults Wellbeing and Health,Head of Adults,Third Party Payments,470101,Purchase of Care,12-Sep-2013,2642008-2117831,"1,792.92",FOUR SEASONS HEALTH CARE..
Adults Wellbeing and Health,Head of Adults,Third Party Payments,470101,Purchase of Care,12-Sep-2013,2642008-2117832,"1,792.92",FOUR SEASONS HEALTH CARE..
Adults Wellbeing and Health,Head of Adults,Third Party Payments,470101,Purchase of Care,12-Sep-2013,2642008-2117833,"1,792.92",FOUR SEASONS HEALTH CARE..
Adults Wellbeing and Health,Head of Adults,Third Party Payments,470101,Purchase of Care,12-Sep-2013,2642008-2117834,"1,792.92",FOUR SEASONS HEALTH CARE..
Adults Wellbeing and Health,Head of Adults,Third Party Payments,470101,Purchase of Care,12-Sep-2013,2642008-2117835,"1,792.92",FOUR SEASONS HEALTH CARE..
Adults Wellbeing and Health,Head of Adults,Third Party Payments,470101,Purchase of Care,12-Sep-2013,2642008-2117836,"1,792.92",FOUR SEASONS HEALTH CARE..
Adults Wellbeing and Health,Head of Adults,Third Party Payments,470101,Purchase of Care,12-Sep-2013,2642008-2117837,"1,792.92",FOUR SEASONS HEALTH CARE..
Adults Wellbeing and Health,Head of Adults,Third Party Payments,470101,Purchase of Care,12-Sep-2013,2642008-2117838,"1,792.92",FOUR SEASONS HEALTH CARE..
Adults Wellbeing and Health,Head of Adults,Third Party Payments,470101,Purchase of Care,12-Sep-2013,2642008-2117839,"1,792.92",FOUR SEASONS HEALTH CARE..
Adults Wellbeing and Health,Head of Adults,Third Party Payments,470101,Purchase of Care,12-Sep-2013,2642008-2117840,"1,792.92",FOUR SEASONS HEALTH CARE..
Adults Wellbeing and Health,Head of Adults,Third Party Payments,470101,Purchase of Care,12-Sep-2013,2642008-2117841,"1,792.92",FOUR SEASONS HEALTH CARE..
Adults Wellbeing and Health,Head of Adults,Third Party Payments,470101,Purchase of Care,12-Sep-2013,2642008-2117842,"1,792.92",FOUR SEASONS HEALTH CARE..
Adults Wellbeing and Health,Head of Adults,Third Party Payments,470101,Purchase of Care,12-Sep-2013,2642008-2117843,"1,792.92",FOUR SEASONS HEALTH CARE..
Adults Wellbeing and Health,Head of Adults,Third Party Payments,470101,Purchase of Care,12-Sep-2013,2642008-2117844,"1,792.92",FOUR SEASONS HEALTH CARE..
Adults Wellbeing and Health,Head of Adults,Third Party Payments,470101,Purchase of Care,12-Sep-2013,2642008-2117845,"1,792.92",FOUR SEASONS HEALTH CARE..
Adults Wellbeing and Health,Head of Adults,Third Party Payments,470101,Purchase of Care,12-Sep-2013,2642008-2117846,"1,792.92",FOUR SEASONS HEALTH CARE..
Adults Wellbeing and Health,Head of Adults,Third Party Payments,470101,Purchase of Care,12-Sep-2013,2642008-2117847,"1,792.92",FOUR SEASONS HEALTH CARE..
Adults Wellbeing and Health,Head of Adults,Third Party Payments,470101,Purchase of Care,12-Sep-2013,2642008-2117848,"1,792.92",FOUR SEASONS HEALTH CARE..
Adults Wellbeing and Health,Head of Adults,Third Party Payments,470101,Purchase of Care,12-Sep-2013,2642009-2117699,"1,094.48",FOUR SEASONS HEALTH CARE..
Adults Wellbeing and Health,Head of Adults,Third Party Payments,470101,Purchase of Care,12-Sep-2013,2642009-2117700,"1,315.56",FOUR SEASONS HEALTH CARE..
Adults Wellbeing and Health,Head of Adults,Third Party Payments,470101,Purchase of Care,12-Sep-2013,2642010-2117649,"1,800.00",FOUR SEASONS HEALTH CARE..
Adults Wellbeing and Health,Head of Adults,Third Party Payments,470101,Purchase of Care,12-Sep-2013,2642027-2117722,"1,792.00",GAINFORD CARE HOMES LTD.
Adults Wellbeing and Health,Head of Adults,Third Party Payments,470101,Purchase of Care,12-Sep-2013,2642029-2117371,"1,740.00",GAINFORD CARE HOMES LTD.
Adults Wellbeing and Health,Head of Adults,Third Party Payments,470101,Purchase of Care,12-Sep-2013,2642030-2117350,"1,894.36",GAINFORD CARE HOMES LTD.
Adults Wellbeing and Health,Head of Adults,Third Party Payments,470101,Purchase of Care,12-Sep-2013,2642030-2117351,"1,894.36",GAINFORD CARE HOMES LTD.
Adults Wellbeing and Health,Head of Adults,Third Party Payments,470101,Purchase of Care,12-Sep-2013,2642030-2117352,"1,894.36",GAINFORD CARE HOMES LTD.
Adults Wellbeing and Health,Head of Adults,Third Party Payments,470101,Purchase of Care,12-Sep-2013,2642030-2117353,608.90,GAINFORD CARE HOMES LTD.
Adults Wellbeing and Health,Head of Adults,Third Party Payments,470101,Purchase of Care,12-Sep-2013,2642030-2117354,"1,894.36",GAINFORD CARE HOMES LTD.
Adults Wellbeing and Health,Head of Adults,Third Party Payments,470101,Purchase of Care,12-Sep-2013,2642030-2117355,"1,894.36",GAINFORD CARE HOMES LTD.
Adults Wellbeing and Health,Head of Adults,Third Party Payments,470101,Purchase of Care,12-Sep-2013,2642030-2117356,"1,894.36",GAINFORD CARE HOMES LTD.
Adults Wellbeing and Health,Head of Adults,Third Party Payments,470101,Purchase of Care,12-Sep-2013,2642030-2117357,"1,894.36",GAINFORD CARE HOMES LTD.
Adults Wellbeing and Health,Head of Adults,Third Party Payments,470101,Purchase of Care,12-Sep-2013,2642030-2117358,"1,894.36",GAINFORD CARE HOMES LTD.
Adults Wellbeing and Health,Head of Adults,Third Party Payments,470101,Purchase of Care,12-Sep-2013,2642030-2117359,"1,894.36",GAINFORD CARE HOMES LTD.
Adults Wellbeing and Health,Head of Adults,Third Party Payments,470101,Purchase of Care,12-Sep-2013,2642030-2117360,"1,894.36",GAINFORD CARE HOMES LTD.
Adults Wellbeing and Health,Head of Adults,Third Party Payments,470101,Purchase of Care,12-Sep-2013,2642030-2117361,"1,894.36",GAINFORD CARE HOMES LTD.
Adults Wellbeing and Health,Head of Adults,Third Party Payments,470101,Purchase of Care,12-Sep-2013,2642030-2117362,"1,894.36",GAINFORD CARE HOMES LTD.
Adults Wellbeing and Health,Head of Adults,Third Party Payments,470101,Purchase of Care,12-Sep-2013,2642058-2119533,"4,244.80",GRAFTON MANOR.
Adults Wellbeing and Health,Head of Adults,Third Party Payments,470101,Purchase of Care,12-Sep-2013,2642065-2119876,"7,325.40",GRETTON HOMES.
Adults Wellbeing and Health,Head of Adults,Third Party Payments,470101,Purchase of Care,12-Sep-2013,2642067-2117688,"1,800.00",GROSVENOR PARK CARE HOME.
Adults Wellbeing and Health,Head of Adults,Third Party Payments,470101,Purchase of Care,12-Sep-2013,2642068-2117373,"1,078.68",GUARDIAN CARE HOMES (WEST) LTD.
Adults Wellbeing and Health,Head of Adults,Third Party Payments,470101,Purchase of Care,12-Sep-2013,2642068-2117374,"1,547.48",GUARDIAN CARE HOMES (WEST) LTD.
Adults Wellbeing and Health,Head of Adults,Third Party Payments,470101,Purchase of Care,12-Sep-2013,2642068-2117375,900.04,GUARDIAN CARE HOMES (WEST) LTD.
Adults Wellbeing and Health,Head of Adults,Third Party Payments,470101,Purchase of Care,12-Sep-2013,2642068-2117377,848.36,GUARDIAN CARE HOMES (WEST) LTD.
Adults Wellbeing and Health,Head of Adults,Third Party Payments,470101,Purchase of Care,12-Sep-2013,2642068-2117378,"1,792.92",GUARDIAN CARE HOMES (WEST) LTD.
Adults Wellbeing and Health,Head of Adults,Third Party Payments,470101,Purchase of Care,12-Sep-2013,2642068-2117379,753.88,GUARDIAN CARE HOMES (WEST) LTD.
Adults Wellbeing and Health,Head of Adults,Third Party Payments,470101,Purchase of Care,12-Sep-2013,2642068-2117380,"1,306.92",GUARDIAN CARE HOMES (WEST) LTD.
Adults Wellbeing and Health,Head of Adults,Third Party Payments,470101,Purchase of Care,12-Sep-2013,2642068-2117381,"1,249.32",GUARDIAN CARE HOMES (WEST) LTD.
Adults Wellbeing and Health,Head of Adults,Third Party Payments,470101,Purchase of Care,12-Sep-2013,2642068-2117382,534.57,GUARDIAN CARE HOMES (WEST) LTD.
Adults Wellbeing and Health,Head of Adults,Third Party Payments,470101,Purchase of Care,12-Sep-2013,2642068-2117383,"1,477.72",GUARDIAN CARE HOMES (WEST) LTD.
Adults Wellbeing and Health,Head of Adults,Third Party Payments,470101,Purchase of Care,12-Sep-2013,2642068-2121580,"1,664.85",GUARDIAN CARE HOMES (WEST) LTD.
Adults Wellbeing and Health,Head of Adults,Third Party Payments,470101,Purchase of Care,12-Sep-2013,2642073-2117541,"2,054.36",HADRIAN HEALTHCARE (NE) LTD (ORCHARD MANOR).
Adults Wellbeing and Health,Head of Adults,Third Party Payments,470101,Purchase of Care,12-Sep-2013,2642073-2117542,"2,134.36",HADRIAN HEALTHCARE (NE) LTD (ORCHARD MANOR).
Adults Wellbeing and Health,Head of Adults,Third Party Payments,470101,Purchase of Care,12-Sep-2013,2642073-2117543,"1,894.36",HADRIAN HEALTHCARE (NE) LTD (ORCHARD MANOR).
Adults Wellbeing and Health,Head of Adults,Third Party Payments,470101,Purchase of Care,12-Sep-2013,2642073-2117544,"2,134.36",HADRIAN HEALTHCARE (NE) LTD (ORCHARD MANOR).
Adults Wellbeing and Health,Head of Adults,Third Party Payments,470101,Purchase of Care,12-Sep-2013,2642073-2117545,"1,894.36",HADRIAN HEALTHCARE (NE) LTD (ORCHARD MANOR).
Adults Wellbeing and Health,Head of Adults,Third Party Payments,470101,Purchase of Care,12-Sep-2013,2642073-2117546,"2,054.36",HADRIAN HEALTHCARE (NE) LTD (ORCHARD MANOR).
Adults Wellbeing and Health,Head of Adults,Third Party Payments,470101,Purchase of Care,12-Sep-2013,2642074-2117535,"1,944.00",HADRIAN HEALTHCARE (NE) LTD (ORCHARD MANOR).
Adults Wellbeing and Health,Head of Adults,Third Party Payments,470101,Purchase of Care,12-Sep-2013,2642074-2117536,"1,944.00",HADRIAN HEALTHCARE (NE) LTD (ORCHARD MANOR).
Adults Wellbeing and Health,Head of Adults,Third Party Payments,470101,Purchase of Care,12-Sep-2013,2642080-2119877,"1,429.80",HARDRIDING HOUSE LTD.
Adults Wellbeing and Health,Head of Adults,Third Party Payments,470101,Purchase of Care,12-Sep-2013,2642096-2117996,"1,894.36",HELEN MCARDLE CARE.
Adults Wellbeing and Health,Head of Adults,Third Party Payments,470101,Purchase of Care,12-Sep-2013,2642096-2117997,"1,894.36",HELEN MCARDLE CARE.
Adults Wellbeing and Health,Head of Adults,Third Party Payments,470101,Purchase of Care,12-Sep-2013,2642096-2117998,"1,894.36",HELEN MCARDLE CARE.
Adults Wellbeing and Health,Head of Adults,Third Party Payments,470101,Purchase of Care,12-Sep-2013,2642096-2118012,"1,894.36",HELEN MCARDLE CARE.
Adults Wellbeing and Health,Head of Adults,Third Party Payments,470101,Purchase of Care,12-Sep-2013,2642096-2118013,"1,894.36",HELEN MCARDLE CARE.
Adults Wellbeing and Health,Head of Adults,Third Party Payments,470101,Purchase of Care,12-Sep-2013,2642096-2118014,"1,894.36",HELEN MCARDLE CARE.
Adults Wellbeing and Health,Head of Adults,Third Party Payments,470101,Purchase of Care,12-Sep-2013,2642096-2118015,"1,894.36",HELEN MCARDLE CARE.
Adults Wellbeing and Health,Head of Adults,Third Party Payments,470101,Purchase of Care,12-Sep-2013,2642096-2118016,"1,894.36",HELEN MCARDLE CARE.
Adults Wellbeing and Health,Head of Adults,Third Party Payments,470101,Purchase of Care,12-Sep-2013,2642096-2118017,"1,894.36",HELEN MCARDLE CARE.
Adults Wellbeing and Health,Head of Adults,Third Party Payments,470101,Purchase of Care,12-Sep-2013,2642096-2118018,"1,894.36",HELEN MCARDLE CARE.
Adults Wellbeing and Health,Head of Adults,Third Party Payments,470101,Purchase of Care,12-Sep-2013,2642096-2118019,"1,894.36",HELEN MCARDLE CARE.
Adults Wellbeing and Health,Head of Adults,Third Party Payments,470101,Purchase of Care,12-Sep-2013,2642096-2118020,"1,894.36",HELEN MCARDLE CARE.
Adults Wellbeing and Health,Head of Adults,Third Party Payments,470101,Purchase of Care,12-Sep-2013,2642096-2118021,"1,894.36",HELEN MCARDLE CARE.
Adults Wellbeing and Health,Head of Adults,Third Party Payments,470101,Purchase of Care,12-Sep-2013,2642096-2118022,"1,894.36",HELEN MCARDLE CARE.
Adults Wellbeing and Health,Head of Adults,Third Party Payments,470101,Purchase of Care,12-Sep-2013,2642096-2118023,"1,894.36",HELEN MCARDLE CARE.
Adults Wellbeing and Health,Head of Adults,Third Party Payments,470101,Purchase of Care,12-Sep-2013,2642096-2118024,"1,894.36",HELEN MCARDLE CARE.
Adults Wellbeing and Health,Head of Adults,Third Party Payments,470101,Purchase of Care,12-Sep-2013,2642096-2118025,"1,894.36",HELEN MCARDLE CARE.
Adults Wellbeing and Health,Head of Adults,Third Party Payments,470101,Purchase of Care,12-Sep-2013,2642096-2118026,"1,894.36",HELEN MCARDLE CARE.
Adults Wellbeing and Health,Head of Adults,Third Party Payments,470101,Purchase of Care,12-Sep-2013,2642096-2118027,"1,894.36",HELEN MCARDLE CARE.
Adults Wellbeing and Health,Head of Adults,Third Party Payments,470101,Purchase of Care,12-Sep-2013,2642096-2118028,"1,894.36",HELEN MCARDLE CARE.
Adults Wellbeing and Health,Head of Adults,Third Party Payments,470101,Purchase of Care,12-Sep-2013,2642096-2118029,676.55,HELEN MCARDLE CARE.
Adults Wellbeing and Health,Head of Adults,Third Party Payments,470101,Purchase of Care,12-Sep-2013,2642096-2118030,"1,894.36",HELEN MCARDLE CARE.
Adults Wellbeing and Health,Head of Adults,Third Party Payments,470101,Purchase of Care,12-Sep-2013,2642096-2118031,"1,894.36",HELEN MCARDLE CARE.
Adults Wellbeing and Health,Head of Adults,Third Party Payments,470101,Purchase of Care,12-Sep-2013,2642096-2118032,"1,894.36",HELEN MCARDLE CARE.
Adults Wellbeing and Health,Head of Adults,Third Party Payments,470101,Purchase of Care,12-Sep-2013,2642101-2118202,"1,595.12",HIGHFIELD HOUSE.
Adults Wellbeing and Health,Head of Adults,Third Party Payments,470101,Purchase of Care,12-Sep-2013,2642101-2118251,"1,595.12",HIGHFIELD HOUSE.
Adults Wellbeing and Health,Head of Adults,Third Party Payments,470101,Purchase of Care,12-Sep-2013,2642101-2118252,"1,595.12",HIGHFIELD HOUSE.
Adults Wellbeing and Health,Head of Adults,Third Party Payments,470101,Purchase of Care,12-Sep-2013,2642101-2118401,"1,595.12",HIGHFIELD HOUSE.
Adults Wellbeing and Health,Head of Adults,Third Party Payments,470101,Purchase of Care,12-Sep-2013,2642101-2118402,"1,595.12",HIGHFIELD HOUSE.
Adults Wellbeing and Health,Head of Adults,Third Party Payments,470101,Purchase of Care,12-Sep-2013,2642111-2121520,"2,080.00",HOLGATE HOUSE.
Adults Wellbeing and Health,Head of Adults,Third Party Payments,470101,Purchase of Care,12-Sep-2013,2642112-2117604,"1,894.36",HOLLY LODGE CARE HOME.
Adults Wellbeing and Health,Head of Adults,Third Party Payments,470101,Purchase of Care,12-Sep-2013,2642112-2117605,"1,894.36",HOLLY LODGE CARE HOME.
Adults Wellbeing and Health,Head of Adults,Third Party Payments,470101,Purchase of Care,12-Sep-2013,2642112-2117650,"1,894.36",HOLLY LODGE CARE HOME.
Adults Wellbeing and Health,Head of Adults,Third Party Payments,470101,Purchase of Care,12-Sep-2013,2642112-2117651,"1,894.36",HOLLY LODGE CARE HOME.
Adults Wellbeing and Health,Head of Adults,Third Party Payments,470101,Purchase of Care,12-Sep-2013,2642112-2117652,"1,894.36",HOLLY LODGE CARE HOME.
Adults Wellbeing and Health,Head of Adults,Third Party Payments,470101,Purchase of Care,12-Sep-2013,2642112-2117653,"1,894.36",HOLLY LODGE CARE HOME.
Adults Wellbeing and Health,Head of Adults,Third Party Payments,470101,Purchase of Care,12-Sep-2013,2642112-2117654,"1,894.36",HOLLY LODGE CARE HOME.
Adults Wellbeing and Health,Head of Adults,Third Party Payments,470101,Purchase of Care,12-Sep-2013,2642112-2117655,"1,894.36",HOLLY LODGE CARE HOME.
Adults Wellbeing and Health,Head of Adults,Third Party Payments,470101,Purchase of Care,12-Sep-2013,2642112-2117656,"1,217.80",HOLLY LODGE CARE HOME.
Adults Wellbeing and Health,Head of Adults,Third Party Payments,470101,Purchase of Care,12-Sep-2013,2642112-2117657,"1,894.36",HOLLY LODGE CARE HOME.
Adults Wellbeing and Health,Head of Adults,Third Party Payments,470101,Purchase of Care,12-Sep-2013,2642112-2117659,"1,894.36",HOLLY LODGE CARE HOME.
Adults Wellbeing and Health,Head of Adults,Third Party Payments,470101,Purchase of Care,12-Sep-2013,2642112-2117660,"1,894.36",HOLLY LODGE CARE HOME.
Adults Wellbeing and Health,Head of Adults,Third Party Payments,470101,Purchase of Care,12-Sep-2013,2642112-2117661,"1,894.36",HOLLY LODGE CARE HOME.
Adults Wellbeing and Health,Head of Adults,Third Party Payments,470101,Purchase of Care,12-Sep-2013,2642112-2121598,744.21,HOLLY LODGE CARE HOME.
Adults Wellbeing and Health,Head of Adults,Third Party Payments,470101,Purchase of Care,12-Sep-2013,2642117-2118520,"1,600.82",HOWLISH HALL NURSING HOME.
Adults Wellbeing and Health,Head of Adults,Third Party Payments,470101,Purchase of Care,12-Sep-2013,2642117-2118523,"1,792.92",HOWLISH HALL NURSING HOME.
Adults Wellbeing and Health,Head of Adults,Third Party Payments,470101,Purchase of Care,12-Sep-2013,2642117-2118524,"1,792.92",HOWLISH HALL NURSING HOME.
Adults Wellbeing and Health,Head of Adults,Third Party Payments,470101,Purchase of Care,12-Sep-2013,2642117-2118525,"1,792.92",HOWLISH HALL NURSING HOME.
Adults Wellbeing and Health,Head of Adults,Third Party Payments,470101,Purchase of Care,12-Sep-2013,2642117-2118526,"1,792.92",HOWLISH HALL NURSING HOME.
Adults Wellbeing and Health,Head of Adults,Third Party Payments,470101,Purchase of Care,12-Sep-2013,2642117-2118563,"1,792.92",HOWLISH HALL NURSING HOME.
Adults Wellbeing and Health,Head of Adults,Third Party Payments,470101,Purchase of Care,12-Sep-2013,2642117-2118564,"1,792.92",HOWLISH HALL NURSING HOME.
Adults Wellbeing and Health,Head of Adults,Third Party Payments,470101,Purchase of Care,12-Sep-2013,2642117-2118565,"1,792.92",HOWLISH HALL NURSING HOME.
Adults Wellbeing and Health,Head of Adults,Third Party Payments,470101,Purchase of Care,12-Sep-2013,2642117-2121764,896.46,HOWLISH HALL NURSING HOME.
Adults Wellbeing and Health,Head of Adults,Third Party Payments,470101,Purchase of Care,12-Sep-2013,2642134-INV-0205,"8,914.36",INTERACT CARE LTD.
Adults Wellbeing and Health,Head of Adults,Third Party Payments,470101,Purchase of Care,12-Sep-2013,2642146-2118131,"1,595.12",JACK DORMAND.
Adults Wellbeing and Health,Head of Adults,Third Party Payments,470101,Purchase of Care,12-Sep-2013,2642146-2118145,626.65,JACK DORMAND.
Adults Wellbeing and Health,Head of Adults,Third Party Payments,470101,Purchase of Care,12-Sep-2013,2642146-2118146,"1,595.12",JACK DORMAND.
Adults Wellbeing and Health,Head of Adults,Third Party Payments,470101,Purchase of Care,12-Sep-2013,2642146-2118147,"1,595.12",JACK DORMAND.
Adults Wellbeing and Health,Head of Adults,Third Party Payments,470101,Purchase of Care,12-Sep-2013,2642146-2118149,"1,595.12",JACK DORMAND.
Adults Wellbeing and Health,Head of Adults,Third Party Payments,470101,Purchase of Care,12-Sep-2013,2642146-2118150,"1,595.12",JACK DORMAND.
Adults Wellbeing and Health,Head of Adults,Third Party Payments,470101,Purchase of Care,12-Sep-2013,2642146-2118151,"1,595.12",JACK DORMAND.
Adults Wellbeing and Health,Head of Adults,Third Party Payments,470101,Purchase of Care,12-Sep-2013,2642146-2118195,"1,595.12",JACK DORMAND.
Adults Wellbeing and Health,Head of Adults,Third Party Payments,470101,Purchase of Care,12-Sep-2013,2642146-2118197,"1,595.12",JACK DORMAND.
Adults Wellbeing and Health,Head of Adults,Third Party Payments,470101,Purchase of Care,12-Sep-2013,2642146-2118198,"1,595.12",JACK DORMAND.
Adults Wellbeing and Health,Head of Adults,Third Party Payments,470101,Purchase of Care,12-Sep-2013,2642146-2118199,797.56,JACK DORMAND.
Adults Wellbeing and Health,Head of Adults,Third Party Payments,470101,Purchase of Care,12-Sep-2013,2642146-2118200,"1,595.12",JACK DORMAND.
Adults Wellbeing and Health,Head of Adults,Third Party Payments,470101,Purchase of Care,12-Sep-2013,2642146-2121195,"1,665.92",JACK DORMAND.
Adults Wellbeing and Health,Head of Adults,Third Party Payments,470101,Purchase of Care,12-Sep-2013,2642146-2121781,"1,538.15",JACK DORMAND.
Adults Wellbeing and Health,Head of Adults,Third Party Payments,470101,Purchase of Care,12-Sep-2013,2642284-2120027,"1,482.48",KAYDAR.
Adults Wellbeing and Health,Head of Adults,Third Party Payments,470101,Purchase of Care,12-Sep-2013,2642284-2120028,"1,223.12",KAYDAR.
Adults Wellbeing and Health,Head of Adults,Third Party Payments,470101,Purchase of Care,12-Sep-2013,2642284-2120033,"1,445.08",KAYDAR.
Adults Wellbeing and Health,Head of Adults,Third Party Payments,470101,Purchase of Care,12-Sep-2013,2642284-2120034,"1,797.68",KAYDAR.
Adults Wellbeing and Health,Head of Adults,Third Party Payments,470101,Purchase of Care,12-Sep-2013,2642284-2120035,"1,311.68",KAYDAR.
Adults Wellbeing and Health,Head of Adults,Third Party Payments,470101,Purchase of Care,12-Sep-2013,2642284-2120036,"2,319.48",KAYDAR.
Adults Wellbeing and Health,Head of Adults,Third Party Payments,470101,Purchase of Care,12-Sep-2013,2642286-2119548,"4,400.00",KEIRO GROUP.
Adults Wellbeing and Health,Head of Adults,Third Party Payments,470101,Purchase of Care,12-Sep-2013,2642312-2118008,"1,792.92",KINGS COURT CARE HOME.
Adults Wellbeing and Health,Head of Adults,Third Party Payments,470101,Purchase of Care,12-Sep-2013,2642312-2118009,"1,792.92",KINGS COURT CARE HOME.
Adults Wellbeing and Health,Head of Adults,Third Party Payments,470101,Purchase of Care,12-Sep-2013,2642312-2118062,"1,792.92",KINGS COURT CARE HOME.
Adults Wellbeing and Health,Head of Adults,Third Party Payments,470101,Purchase of Care,12-Sep-2013,2642312-2118063,"1,792.92",KINGS COURT CARE HOME.
Adults Wellbeing and Health,Head of Adults,Third Party Payments,470101,Purchase of Care,12-Sep-2013,2642312-2118064,"1,792.92",KINGS COURT CARE HOME.
Adults Wellbeing and Health,Head of Adults,Third Party Payments,470101,Purchase of Care,12-Sep-2013,2642312-2118065,"1,792.92",KINGS COURT CARE HOME.
Adults Wellbeing and Health,Head of Adults,Third Party Payments,470101,Purchase of Care,12-Sep-2013,2642312-2118066,"1,792.92",KINGS COURT CARE HOME.
Adults Wellbeing and Health,Head of Adults,Third Party Payments,470101,Purchase of Care,12-Sep-2013,2642312-2118067,"1,916.92",KINGS COURT CARE HOME.
Adults Wellbeing and Health,Head of Adults,Third Party Payments,470101,Purchase of Care,12-Sep-2013,2642312-2118068,"1,792.92",KINGS COURT CARE HOME.
Adults Wellbeing and Health,Head of Adults,Third Party Payments,470101,Purchase of Care,12-Sep-2013,2642312-2118069,"1,912.92",KINGS COURT CARE HOME.
Adults Wellbeing and Health,Head of Adults,Third Party Payments,470101,Purchase of Care,12-Sep-2013,2642312-2118070,"1,892.92",KINGS COURT CARE HOME.
Adults Wellbeing and Health,Head of Adults,Third Party Payments,470101,Purchase of Care,12-Sep-2013,2642312-2118071,"1,912.92",KINGS COURT CARE HOME.
Adults Wellbeing and Health,Head of Adults,Third Party Payments,470101,Purchase of Care,12-Sep-2013,2642312-2118087,"1,792.92",KINGS COURT CARE HOME.
Adults Wellbeing and Health,Head of Adults,Third Party Payments,470101,Purchase of Care,12-Sep-2013,2642312-2118088,"1,792.92",KINGS COURT CARE HOME.
Adults Wellbeing and Health,Head of Adults,Third Party Payments,470101,Purchase of Care,12-Sep-2013,2642312-2118089,"1,792.92",KINGS COURT CARE HOME.
Adults Wellbeing and Health,Head of Adults,Third Party Payments,470101,Purchase of Care,12-Sep-2013,2642312-2118090,"1,792.92",KINGS COURT CARE HOME.
Adults Wellbeing and Health,Head of Adults,Third Party Payments,470101,Purchase of Care,12-Sep-2013,2642312-2118091,"1,792.92",KINGS COURT CARE HOME.
Adults Wellbeing and Health,Head of Adults,Third Party Payments,470101,Purchase of Care,12-Sep-2013,2642312-2118092,"1,152.59",KINGS COURT CARE HOME.
Adults Wellbeing and Health,Head of Adults,Third Party Payments,470101,Purchase of Care,12-Sep-2013,2642312-2118093,"1,792.92",KINGS COURT CARE HOME.
Adults Wellbeing and Health,Head of Adults,Third Party Payments,470101,Purchase of Care,12-Sep-2013,2642312-2118094,"1,912.92",KINGS COURT CARE HOME.
Adults Wellbeing and Health,Head of Adults,Third Party Payments,470101,Purchase of Care,12-Sep-2013,2642312-2121593,640.32,KINGS COURT CARE HOME.
Adults Wellbeing and Health,Head of Adults,Third Party Payments,470101,Purchase of Care,12-Sep-2013,2642313-2118204,"1,792.92",KINGSWAY CARE HOME LTD.
Adults Wellbeing and Health,Head of Adults,Third Party Payments,470101,Purchase of Care,12-Sep-2013,2642313-2118232,850.40,KINGSWAY CARE HOME LTD.
Adults Wellbeing and Health,Head of Adults,Third Party Payments,470101,Purchase of Care,12-Sep-2013,2642313-2121271,"1,863.80",KINGSWAY CARE HOME LTD.
Adults Wellbeing and Health,Head of Adults,Third Party Payments,470101,Purchase of Care,12-Sep-2013,2642320-2119920,"2,188.00",LAMBTON GRANGE.
Adults Wellbeing and Health,Head of Adults,Third Party Payments,470101,Purchase of Care,12-Sep-2013,2642320-2119922,"2,084.84",LAMBTON GRANGE.
Adults Wellbeing and Health,Head of Adults,Third Party Payments,470101,Purchase of Care,12-Sep-2013,2642320-2119923,"2,164.72",LAMBTON GRANGE.
Adults Wellbeing and Health,Head of Adults,Third Party Payments,470101,Purchase of Care,12-Sep-2013,2642320-2119924,"3,188.60",LAMBTON GRANGE.
Adults Wellbeing and Health,Head of Adults,Third Party Payments,470101,Purchase of Care,12-Sep-2013,2642320-2119925,"2,164.72",LAMBTON GRANGE.
Adults Wellbeing and Health,Head of Adults,Third Party Payments,470101,Purchase of Care,12-Sep-2013,2642320-2119926,"2,294.80",LAMBTON GRANGE.
Adults Wellbeing and Health,Head of Adults,Third Party Payments,470101,Purchase of Care,12-Sep-2013,2642320-2119927,"2,284.72",LAMBTON GRANGE.
Adults Wellbeing and Health,Head of Adults,Third Party Payments,470101,Purchase of Care,12-Sep-2013,2642321-2118158,"1,792.92",LAMBTON HOUSE.
Adults Wellbeing and Health,Head of Adults,Third Party Payments,470101,Purchase of Care,12-Sep-2013,2642321-2118160,"1,792.92",LAMBTON HOUSE.
Adults Wellbeing and Health,Head of Adults,Third Party Payments,470101,Purchase of Care,12-Sep-2013,2642321-2118203,"1,792.92",LAMBTON HOUSE.
Adults Wellbeing and Health,Head of Adults,Third Party Payments,470101,Purchase of Care,12-Sep-2013,2642321-2118254,"1,792.92",LAMBTON HOUSE.
Adults Wellbeing and Health,Head of Adults,Third Party Payments,470101,Purchase of Care,12-Sep-2013,2642321-2118256,"1,792.92",LAMBTON HOUSE.
Adults Wellbeing and Health,Head of Adults,Third Party Payments,470101,Purchase of Care,12-Sep-2013,2642321-2118257,"1,792.92",LAMBTON HOUSE.
Adults Wellbeing and Health,Head of Adults,Third Party Payments,470101,Purchase of Care,12-Sep-2013,2642321-2118258,"1,792.92",LAMBTON HOUSE.
Adults Wellbeing and Health,Head of Adults,Third Party Payments,470101,Purchase of Care,12-Sep-2013,2642321-2118259,"1,792.92",LAMBTON HOUSE.
Adults Wellbeing and Health,Head of Adults,Third Party Payments,470101,Purchase of Care,12-Sep-2013,2642321-2118260,"1,792.92",LAMBTON HOUSE.
Adults Wellbeing and Health,Head of Adults,Third Party Payments,470101,Purchase of Care,12-Sep-2013,2642321-2118299,"1,792.92",LAMBTON HOUSE.
Adults Wellbeing and Health,Head of Adults,Third Party Payments,470101,Purchase of Care,12-Sep-2013,2642321-2118406,"1,280.65",LAMBTON HOUSE.
Adults Wellbeing and Health,Head of Adults,Third Party Payments,470101,Purchase of Care,12-Sep-2013,2642321-2118407,"1,792.92",LAMBTON HOUSE.
Adults Wellbeing and Health,Head of Adults,Third Party Payments,470101,Purchase of Care,12-Sep-2013,2642321-2118408,512.26,LAMBTON HOUSE.
Adults Wellbeing and Health,Head of Adults,Third Party Payments,470101,Purchase of Care,12-Sep-2013,2642323-2118243,"1,792.92",LANGLEY HOUSE.
Adults Wellbeing and Health,Head of Adults,Third Party Payments,470101,Purchase of Care,12-Sep-2013,2642323-2118244,"1,792.92",LANGLEY HOUSE.
Adults Wellbeing and Health,Head of Adults,Third Party Payments,470101,Purchase of Care,12-Sep-2013,2642323-2118245,"1,792.92",LANGLEY HOUSE.
Adults Wellbeing and Health,Head of Adults,Third Party Payments,470101,Purchase of Care,12-Sep-2013,2642323-2118246,512.26,LANGLEY HOUSE.
Adults Wellbeing and Health,Head of Adults,Third Party Payments,470101,Purchase of Care,12-Sep-2013,2642323-2118247,"1,792.92",LANGLEY HOUSE.
Adults Wellbeing and Health,Head of Adults,Third Party Payments,470101,Purchase of Care,12-Sep-2013,2642323-2118248,"1,306.92",LANGLEY HOUSE.
Adults Wellbeing and Health,Head of Adults,Third Party Payments,470101,Purchase of Care,12-Sep-2013,2642323-2118249,"1,792.92",LANGLEY HOUSE.
Adults Wellbeing and Health,Head of Adults,Third Party Payments,470101,Purchase of Care,12-Sep-2013,2642323-2118250,"1,306.92",LANGLEY HOUSE.
Adults Wellbeing and Health,Head of Adults,Third Party Payments,470101,Purchase of Care,12-Sep-2013,2642323-2118323,"1,792.92",LANGLEY HOUSE.
Adults Wellbeing and Health,Head of Adults,Third Party Payments,470101,Purchase of Care,12-Sep-2013,2642323-2118396,"1,792.92",LANGLEY HOUSE.
Adults Wellbeing and Health,Head of Adults,Third Party Payments,470101,Purchase of Care,12-Sep-2013,2642323-2118397,"1,792.92",LANGLEY HOUSE.
Adults Wellbeing and Health,Head of Adults,Third Party Payments,470101,Purchase of Care,12-Sep-2013,2642323-2118398,"1,792.92",LANGLEY HOUSE.
Adults Wellbeing and Health,Head of Adults,Third Party Payments,470101,Purchase of Care,12-Sep-2013,2642323-2118399,"1,792.92",LANGLEY HOUSE.
Adults Wellbeing and Health,Head of Adults,Third Party Payments,470101,Purchase of Care,12-Sep-2013,2642323-2118400,"1,178.28",LANGLEY HOUSE.
Adults Wellbeing and Health,Head of Adults,Third Party Payments,470101,Purchase of Care,12-Sep-2013,2642324-2117518,"1,792.92",LANGLEY PARK CARE HOME.
Adults Wellbeing and Health,Head of Adults,Third Party Payments,470101,Purchase of Care,12-Sep-2013,2642324-2117521,"1,792.92",LANGLEY PARK CARE HOME.
Adults Wellbeing and Health,Head of Adults,Third Party Payments,470101,Purchase of Care,12-Sep-2013,2642324-2117522,"1,792.92",LANGLEY PARK CARE HOME.
Adults Wellbeing and Health,Head of Adults,Third Party Payments,470101,Purchase of Care,12-Sep-2013,2642324-2117523,"1,792.92",LANGLEY PARK CARE HOME.
Adults Wellbeing and Health,Head of Adults,Third Party Payments,470101,Purchase of Care,12-Sep-2013,2642324-2117524,"1,792.92",LANGLEY PARK CARE HOME.
Adults Wellbeing and Health,Head of Adults,Third Party Payments,470101,Purchase of Care,12-Sep-2013,2642324-2117525,896.46,LANGLEY PARK CARE HOME.
Adults Wellbeing and Health,Head of Adults,Third Party Payments,470101,Purchase of Care,12-Sep-2013,2642324-2117526,"1,792.92",LANGLEY PARK CARE HOME.
Adults Wellbeing and Health,Head of Adults,Third Party Payments,470101,Purchase of Care,12-Sep-2013,2642324-2117527,"1,792.92",LANGLEY PARK CARE HOME.
Adults Wellbeing and Health,Head of Adults,Third Party Payments,470101,Purchase of Care,12-Sep-2013,2642324-2117528,"1,216.62",LANGLEY PARK CARE HOME.
Adults Wellbeing and Health,Head of Adults,Third Party Payments,470101,Purchase of Care,12-Sep-2013,2642324-2117529,"1,792.92",LANGLEY PARK CARE HOME.
Adults Wellbeing and Health,Head of Adults,Third Party Payments,470101,Purchase of Care,12-Sep-2013,2642324-2117530,"1,792.92",LANGLEY PARK CARE HOME.
Adults Wellbeing and Health,Head of Adults,Third Party Payments,470101,Purchase of Care,12-Sep-2013,2642324-2117531,"1,792.92",LANGLEY PARK CARE HOME.
Adults Wellbeing and Health,Head of Adults,Third Party Payments,470101,Purchase of Care,12-Sep-2013,2642324-2117532,"1,792.92",LANGLEY PARK CARE HOME.
Adults Wellbeing and Health,Head of Adults,Third Party Payments,470101,Purchase of Care,12-Sep-2013,2642324-2117533,"1,792.92",LANGLEY PARK CARE HOME.
Adults Wellbeing and Health,Head of Adults,Third Party Payments,470101,Purchase of Care,12-Sep-2013,2642324-2117534,"1,792.92",LANGLEY PARK CARE HOME.
Adults Wellbeing and Health,Head of Adults,Third Party Payments,470101,Purchase of Care,12-Sep-2013,2642324-2121498,576.29,LANGLEY PARK CARE HOME.
Adults Wellbeing and Health,Head of Adults,Third Party Payments,470101,Purchase of Care,12-Sep-2013,2642327-1359721D,"1,082.44",REDACTED - PAYMENT TO INDIVIDUAL
Adults Wellbeing and Health,Head of Adults,Third Party Payments,470101,Purchase of Care,12-Sep-2013,2642335-2118163,"1,792.92",LEAZES HALL RESIDENTIAL & NURSING HOME.
Adults Wellbeing and Health,Head of Adults,Third Party Payments,470101,Purchase of Care,12-Sep-2013,2642335-2118324,"1,227.76",LEAZES HALL RESIDENTIAL & NURSING HOME.
Adults Wellbeing and Health,Head of Adults,Third Party Payments,470101,Purchase of Care,12-Sep-2013,2642335-2118326,"1,792.92",LEAZES HALL RESIDENTIAL & NURSING HOME.
Adults Wellbeing and Health,Head of Adults,Third Party Payments,470101,Purchase of Care,12-Sep-2013,2642335-2118327,768.24,LEAZES HALL RESIDENTIAL & NURSING HOME.
Adults Wellbeing and Health,Head of Adults,Third Party Payments,470101,Purchase of Care,12-Sep-2013,2642335-2118329,982.20,LEAZES HALL RESIDENTIAL & NURSING HOME.
Adults Wellbeing and Health,Head of Adults,Third Party Payments,470101,Purchase of Care,12-Sep-2013,2642335-2118330,"1,792.92",LEAZES HALL RESIDENTIAL & NURSING HOME.
Adults Wellbeing and Health,Head of Adults,Third Party Payments,470101,Purchase of Care,12-Sep-2013,2642335-2118331,"1,297.88",LEAZES HALL RESIDENTIAL & NURSING HOME.
Adults Wellbeing and Health,Head of Adults,Third Party Payments,470101,Purchase of Care,12-Sep-2013,2642335-2118332,"1,306.92",LEAZES HALL RESIDENTIAL & NURSING HOME.
Adults Wellbeing and Health,Head of Adults,Third Party Payments,470101,Purchase of Care,12-Sep-2013,2642335-2118455,"1,472.74",LEAZES HALL RESIDENTIAL & NURSING HOME.
Adults Wellbeing and Health,Head of Adults,Third Party Payments,470101,Purchase of Care,12-Sep-2013,2642335-2118456,"1,257.92",LEAZES HALL RESIDENTIAL & NURSING HOME.
Adults Wellbeing and Health,Head of Adults,Third Party Payments,470101,Purchase of Care,12-Sep-2013,2642335-2118457,"1,084.96",LEAZES HALL RESIDENTIAL & NURSING HOME.
Adults Wellbeing and Health,Head of Adults,Third Party Payments,470101,Purchase of Care,12-Sep-2013,2642335-2118458,"1,792.92",LEAZES HALL RESIDENTIAL & NURSING HOME.
Adults Wellbeing and Health,Head of Adults,Third Party Payments,470101,Purchase of Care,12-Sep-2013,2642335-2118459,"1,792.92",LEAZES HALL RESIDENTIAL & NURSING HOME.
Adults Wellbeing and Health,Head of Adults,Third Party Payments,470101,Purchase of Care,12-Sep-2013,2642335-2121483,862.24,LEAZES HALL RESIDENTIAL & NURSING HOME.
Adults Wellbeing and Health,Head of Adults,Third Party Payments,470101,Purchase of Care,12-Sep-2013,2642338-2117743,"1,498.84",LEEMING GARTH CARE HOME.
Adults Wellbeing and Health,Head of Adults,Third Party Payments,470101,Purchase of Care,12-Sep-2013,2642351-2117324,"1,252.00",LIFESTYLES CARE & SUPPORT LTD.
Adults Wellbeing and Health,Head of Adults,Third Party Payments,470101,Purchase of Care,12-Sep-2013,2642351-2117348,"1,738.00",LIFESTYLES CARE & SUPPORT LTD.
Adults Wellbeing and Health,Head of Adults,Third Party Payments,470101,Purchase of Care,12-Sep-2013,2642351-2117349,"1,738.00",LIFESTYLES CARE & SUPPORT LTD.
Adults Wellbeing and Health,Head of Adults,Third Party Payments,470101,Purchase of Care,12-Sep-2013,2642351-2119845,"1,797.68",LIFESTYLES CARE & SUPPORT LTD.
Adults Wellbeing and Health,Head of Adults,Third Party Payments,470101,Purchase of Care,12-Sep-2013,2642351-2119846,668.64,LIFESTYLES CARE & SUPPORT LTD.
Adults Wellbeing and Health,Head of Adults,Third Party Payments,470101,Purchase of Care,12-Sep-2013,2642351-2119847,"1,797.68",LIFESTYLES CARE & SUPPORT LTD.
Adults Wellbeing and Health,Head of Adults,Third Party Payments,470101,Purchase of Care,12-Sep-2013,2642351-2119855,"1,797.68",LIFESTYLES CARE & SUPPORT LTD.
Adults Wellbeing and Health,Head of Adults,Third Party Payments,470101,Purchase of Care,12-Sep-2013,2642351-2119856,"1,797.68",LIFESTYLES CARE & SUPPORT LTD.
Adults Wellbeing and Health,Head of Adults,Third Party Payments,470101,Purchase of Care,12-Sep-2013,2642351-2119857,"1,797.68",LIFESTYLES CARE & SUPPORT LTD.
Adults Wellbeing and Health,Head of Adults,Third Party Payments,470101,Purchase of Care,12-Sep-2013,2642351-2119858,"1,797.68",LIFESTYLES CARE & SUPPORT LTD.
Adults Wellbeing and Health,Head of Adults,Third Party Payments,470101,Purchase of Care,12-Sep-2013,2642351-2119859,"1,311.68",LIFESTYLES CARE & SUPPORT LTD.
Adults Wellbeing and Health,Head of Adults,Third Party Payments,470101,Purchase of Care,12-Sep-2013,2642351-2119860,"1,797.68",LIFESTYLES CARE & SUPPORT LTD.
Adults Wellbeing and Health,Head of Adults,Third Party Payments,470101,Purchase of Care,12-Sep-2013,2642352-2119906,"1,750.00",LIFESTYLES CARE & SUPPORT LTD.
Adults Wellbeing and Health,Head of Adults,Third Party Payments,470101,Purchase of Care,12-Sep-2013,2642352-2119907,557.20,LIFESTYLES CARE & SUPPORT LTD.
Adults Wellbeing and Health,Head of Adults,Third Party Payments,470101,Purchase of Care,12-Sep-2013,2642352-2119908,"3,500.00",LIFESTYLES CARE & SUPPORT LTD.
Adults Wellbeing and Health,Head of Adults,Third Party Payments,470101,Purchase of Care,12-Sep-2013,2642352-2119909,"2,228.80",LIFESTYLES CARE & SUPPORT LTD.
Adults Wellbeing and Health,Head of Adults,Third Party Payments,470101,Purchase of Care,12-Sep-2013,2642352-2119910,"3,500.00",LIFESTYLES CARE & SUPPORT LTD.
Adults Wellbeing and Health,Head of Adults,Third Party Payments,470101,Purchase of Care,12-Sep-2013,2642352-2119912,"1,797.68",LIFESTYLES CARE & SUPPORT LTD.
Adults Wellbeing and Health,Head of Adults,Third Party Payments,470101,Purchase of Care,12-Sep-2013,2642352-2121687,"4,290.37",LIFESTYLES CARE & SUPPORT LTD.
Adults Wellbeing and Health,Head of Adults,Third Party Payments,470101,Purchase of Care,12-Sep-2013,2642352-2121688,"5,483.52",LIFESTYLES CARE & SUPPORT LTD.
Adults Wellbeing and Health,Head of Adults,Third Party Payments,470101,Purchase of Care,12-Sep-2013,2642352-2121689,"1,375.00",LIFESTYLES CARE & SUPPORT LTD.
Adults Wellbeing and Health,Head of Adults,Third Party Payments,470101,Purchase of Care,12-Sep-2013,2642353-2120009,"2,203.93",LIFESTYLES CARE & SUPPORT LTD.
Adults Wellbeing and Health,Head of Adults,Third Party Payments,470101,Purchase of Care,12-Sep-2013,2642353-2120010,"1,797.68",LIFESTYLES CARE & SUPPORT LTD.
Adults Wellbeing and Health,Head of Adults,Third Party Payments,470101,Purchase of Care,12-Sep-2013,2642353-2120011,"1,797.68",LIFESTYLES CARE & SUPPORT LTD.
Adults Wellbeing and Health,Head of Adults,Third Party Payments,470101,Purchase of Care,12-Sep-2013,2642354-2119988,"1,797.68",LIFESTYLES CARE & SUPPORT LTD.
Adults Wellbeing and Health,Head of Adults,Third Party Payments,470101,Purchase of Care,12-Sep-2013,2642354-2119989,"1,797.68",LIFESTYLES CARE & SUPPORT LTD.
Adults Wellbeing and Health,Head of Adults,Third Party Payments,470101,Purchase of Care,12-Sep-2013,2642355-2119850,"1,445.08",LIFESTYLES CARE & SUPPORT LTD.
Adults Wellbeing and Health,Head of Adults,Third Party Payments,470101,Purchase of Care,12-Sep-2013,2642355-2119867,898.84,LIFESTYLES CARE & SUPPORT LTD.
Adults Wellbeing and Health,Head of Adults,Third Party Payments,470101,Purchase of Care,12-Sep-2013,2642355-2119868,"1,797.68",LIFESTYLES CARE & SUPPORT LTD.
Adults Wellbeing and Health,Head of Adults,Third Party Payments,470101,Purchase of Care,12-Sep-2013,2642355-2119869,"1,797.68",LIFESTYLES CARE & SUPPORT LTD.
Adults Wellbeing and Health,Head of Adults,Third Party Payments,470101,Purchase of Care,12-Sep-2013,2642355-2119870,"1,311.68",LIFESTYLES CARE & SUPPORT LTD.
Adults Wellbeing and Health,Head of Adults,Third Party Payments,470101,Purchase of Care,12-Sep-2013,2642355-2119871,"1,427.80",LIFESTYLES CARE & SUPPORT LTD.
Adults Wellbeing and Health,Head of Adults,Third Party Payments,470101,Purchase of Care,12-Sep-2013,2642355-2119872,"1,482.48",LIFESTYLES CARE & SUPPORT LTD.
Adults Wellbeing and Health,Head of Adults,Third Party Payments,470101,Purchase of Care,12-Sep-2013,2642356-2119902,"1,471.88",LIFESTYLES CARE HOME.
Adults Wellbeing and Health,Head of Adults,Third Party Payments,470101,Purchase of Care,12-Sep-2013,2642361-2117540,"1,894.36",LINDISFARNE CARE HOME (GAINFORD CARE HOMES LTD).
Adults Wellbeing and Health,Head of Adults,Third Party Payments,470101,Purchase of Care,12-Sep-2013,2642361-2117551,"1,894.36",LINDISFARNE CARE HOME (GAINFORD CARE HOMES LTD).
Adults Wellbeing and Health,Head of Adults,Third Party Payments,470101,Purchase of Care,12-Sep-2013,2642361-2117552,"1,894.36",LINDISFARNE CARE HOME (GAINFORD CARE HOMES LTD).
Adults Wellbeing and Health,Head of Adults,Third Party Payments,470101,Purchase of Care,12-Sep-2013,2642361-2117553,"1,894.36",LINDISFARNE CARE HOME (GAINFORD CARE HOMES LTD).
Adults Wellbeing and Health,Head of Adults,Third Party Payments,470101,Purchase of Care,12-Sep-2013,2642361-2117554,"1,894.36",LINDISFARNE CARE HOME (GAINFORD CARE HOMES LTD).
Adults Wellbeing and Health,Head of Adults,Third Party Payments,470101,Purchase of Care,12-Sep-2013,2642361-2117555,"1,894.36",LINDISFARNE CARE HOME (GAINFORD CARE HOMES LTD).
Adults Wellbeing and Health,Head of Adults,Third Party Payments,470101,Purchase of Care,12-Sep-2013,2642361-2117556,676.55,LINDISFARNE CARE HOME (GAINFORD CARE HOMES LTD).
Adults Wellbeing and Health,Head of Adults,Third Party Payments,470101,Purchase of Care,12-Sep-2013,2642361-2117557,"1,894.36",LINDISFARNE CARE HOME (GAINFORD CARE HOMES LTD).
Adults Wellbeing and Health,Head of Adults,Third Party Payments,470101,Purchase of Care,12-Sep-2013,2642362-2117695,"1,894.36",LINDISFARNE CARE HOME.
Adults Wellbeing and Health,Head of Adults,Third Party Payments,470101,Purchase of Care,12-Sep-2013,2642362-2117696,"1,894.36",LINDISFARNE CARE HOME.
Adults Wellbeing and Health,Head of Adults,Third Party Payments,470101,Purchase of Care,12-Sep-2013,2642362-2117697,"1,894.36",LINDISFARNE CARE HOME.
Adults Wellbeing and Health,Head of Adults,Third Party Payments,470101,Purchase of Care,12-Sep-2013,2642362-2117698,"1,894.36",LINDISFARNE CARE HOME.
Adults Wellbeing and Health,Head of Adults,Third Party Payments,470101,Purchase of Care,12-Sep-2013,2642362-2120924,"1,964.28",LINDISFARNE CARE HOME.
Adults Wellbeing and Health,Head of Adults,Third Party Payments,470101,Purchase of Care,12-Sep-2013,2642363-2119585,"3,888.52",LINDISFARNE COURT.
Adults Wellbeing and Health,Head of Adults,Third Party Payments,470101,Purchase of Care,12-Sep-2013,2642363-2119589,"3,543.52",LINDISFARNE COURT.
Adults Wellbeing and Health,Head of Adults,Third Party Payments,470101,Purchase of Care,12-Sep-2013,2642363-2119590,"4,009.00",LINDISFARNE COURT.
Adults Wellbeing and Health,Head of Adults,Third Party Payments,470101,Purchase of Care,12-Sep-2013,2642364-2117598,"1,894.36",LINDISFARNE.
Adults Wellbeing and Health,Head of Adults,Third Party Payments,470101,Purchase of Care,12-Sep-2013,2642364-2117599,"1,894.36",LINDISFARNE.
Adults Wellbeing and Health,Head of Adults,Third Party Payments,470101,Purchase of Care,12-Sep-2013,2642378-2118305,"1,894.36",LOTHIAN HOUSE NURSING HOME.
Adults Wellbeing and Health,Head of Adults,Third Party Payments,470101,Purchase of Care,12-Sep-2013,2642378-2118307,"1,894.36",LOTHIAN HOUSE NURSING HOME.
Adults Wellbeing and Health,Head of Adults,Third Party Payments,470101,Purchase of Care,12-Sep-2013,2642378-2118308,"1,894.36",LOTHIAN HOUSE NURSING HOME.
Adults Wellbeing and Health,Head of Adults,Third Party Payments,470101,Purchase of Care,12-Sep-2013,2642378-2118309,"1,916.36",LOTHIAN HOUSE NURSING HOME.
Adults Wellbeing and Health,Head of Adults,Third Party Payments,470101,Purchase of Care,12-Sep-2013,2642378-2118310,"1,894.36",LOTHIAN HOUSE NURSING HOME.
Adults Wellbeing and Health,Head of Adults,Third Party Payments,470101,Purchase of Care,12-Sep-2013,2642378-2118312,"1,916.36",LOTHIAN HOUSE NURSING HOME.
Adults Wellbeing and Health,Head of Adults,Third Party Payments,470101,Purchase of Care,12-Sep-2013,2642378-2118313,"1,894.36",LOTHIAN HOUSE NURSING HOME.
Adults Wellbeing and Health,Head of Adults,Third Party Payments,470101,Purchase of Care,12-Sep-2013,2642378-2118314,"1,916.36",LOTHIAN HOUSE NURSING HOME.
Adults Wellbeing and Health,Head of Adults,Third Party Payments,470101,Purchase of Care,12-Sep-2013,2642378-2118315,"1,894.36",LOTHIAN HOUSE NURSING HOME.
Adults Wellbeing and Health,Head of Adults,Third Party Payments,470101,Purchase of Care,12-Sep-2013,2642378-2118316,"1,894.36",LOTHIAN HOUSE NURSING HOME.
Adults Wellbeing and Health,Head of Adults,Third Party Payments,470101,Purchase of Care,12-Sep-2013,2642378-2118318,"1,894.36",LOTHIAN HOUSE NURSING HOME.
Adults Wellbeing and Health,Head of Adults,Third Party Payments,470101,Purchase of Care,12-Sep-2013,2642378-2118319,"1,894.36",LOTHIAN HOUSE NURSING HOME.
Adults Wellbeing and Health,Head of Adults,Third Party Payments,470101,Purchase of Care,12-Sep-2013,2642378-2118320,"1,894.36",LOTHIAN HOUSE NURSING HOME.
Adults Wellbeing and Health,Head of Adults,Third Party Payments,470101,Purchase of Care,12-Sep-2013,2642378-2118436,"1,894.36",LOTHIAN HOUSE NURSING HOME.
Adults Wellbeing and Health,Head of Adults,Third Party Payments,470101,Purchase of Care,12-Sep-2013,2642378-2118437,"1,916.36",LOTHIAN HOUSE NURSING HOME.
Adults Wellbeing and Health,Head of Adults,Third Party Payments,470101,Purchase of Care,12-Sep-2013,2642378-2118438,"1,894.36",LOTHIAN HOUSE NURSING HOME.
Adults Wellbeing and Health,Head of Adults,Third Party Payments,470101,Purchase of Care,12-Sep-2013,2642378-2118439,"1,916.36",LOTHIAN HOUSE NURSING HOME.
Adults Wellbeing and Health,Head of Adults,Third Party Payments,470101,Purchase of Care,12-Sep-2013,2642378-2118440,"1,916.36",LOTHIAN HOUSE NURSING HOME.
Adults Wellbeing and Health,Head of Adults,Third Party Payments,470101,Purchase of Care,12-Sep-2013,2642378-2118442,"1,894.36",LOTHIAN HOUSE NURSING HOME.
Adults Wellbeing and Health,Head of Adults,Third Party Payments,470101,Purchase of Care,12-Sep-2013,2642378-2118443,"1,894.36",LOTHIAN HOUSE NURSING HOME.
Adults Wellbeing and Health,Head of Adults,Third Party Payments,470101,Purchase of Care,12-Sep-2013,2642378-2118444,"8,791.94",LOTHIAN HOUSE NURSING HOME.
Adults Wellbeing and Health,Head of Adults,Third Party Payments,470101,Purchase of Care,12-Sep-2013,2642378-2118445,"1,916.36",LOTHIAN HOUSE NURSING HOME.
Adults Wellbeing and Health,Head of Adults,Third Party Payments,470101,Purchase of Care,12-Sep-2013,2642378-2118446,"1,894.36",LOTHIAN HOUSE NURSING HOME.
Adults Wellbeing and Health,Head of Adults,Third Party Payments,470101,Purchase of Care,12-Sep-2013,2642378-2118447,"1,894.36",LOTHIAN HOUSE NURSING HOME.
Adults Wellbeing and Health,Head of Adults,Third Party Payments,470101,Purchase of Care,12-Sep-2013,2642378-2118448,"1,894.36",LOTHIAN HOUSE NURSING HOME.
Adults Wellbeing and Health,Head of Adults,Third Party Payments,470101,Purchase of Care,12-Sep-2013,2642378-2118449,"1,934.36",LOTHIAN HOUSE NURSING HOME.
Adults Wellbeing and Health,Head of Adults,Third Party Payments,470101,Purchase of Care,12-Sep-2013,2642378-2118450,"1,914.36",LOTHIAN HOUSE NURSING HOME.
Adults Wellbeing and Health,Head of Adults,Third Party Payments,470101,Purchase of Care,12-Sep-2013,2642378-2118451,"1,894.36",LOTHIAN HOUSE NURSING HOME.
Adults Wellbeing and Health,Head of Adults,Third Party Payments,470101,Purchase of Care,12-Sep-2013,2642378-2118452,"1,894.36",LOTHIAN HOUSE NURSING HOME.
Adults Wellbeing and Health,Head of Adults,Third Party Payments,470101,Purchase of Care,12-Sep-2013,2642378-2118453,"1,894.36",LOTHIAN HOUSE NURSING HOME.
Adults Wellbeing and Health,Head of Adults,Third Party Payments,470101,Purchase of Care,12-Sep-2013,2642378-2118454,"1,894.36",LOTHIAN HOUSE NURSING HOME.
Adults Wellbeing and Health,Head of Adults,Third Party Payments,470101,Purchase of Care,12-Sep-2013,2642378-2121612,879.52,LOTHIAN HOUSE NURSING HOME.
Adults Wellbeing and Health,Head of Adults,Third Party Payments,470101,Purchase of Care,12-Sep-2013,2642387-2121074,"1,964.28",LUMLEY COURT.
Adults Wellbeing and Health,Head of Adults,Third Party Payments,470101,Purchase of Care,12-Sep-2013,2642394-2117558,"1,894.36",LYONS COURT CARE HOME.
Adults Wellbeing and Health,Head of Adults,Third Party Payments,470101,Purchase of Care,12-Sep-2013,2642394-2117559,"1,894.36",LYONS COURT CARE HOME.
Adults Wellbeing and Health,Head of Adults,Third Party Payments,470101,Purchase of Care,12-Sep-2013,2642394-2117561,"1,894.36",LYONS COURT CARE HOME.
Adults Wellbeing and Health,Head of Adults,Third Party Payments,470101,Purchase of Care,12-Sep-2013,2642394-2117562,"1,894.36",LYONS COURT CARE HOME.
Adults Wellbeing and Health,Head of Adults,Third Party Payments,470101,Purchase of Care,12-Sep-2013,2642394-2117563,"1,894.36",LYONS COURT CARE HOME.
Adults Wellbeing and Health,Head of Adults,Third Party Payments,470101,Purchase of Care,12-Sep-2013,2642394-2121528,879.52,LYONS COURT CARE HOME.
Adults Wellbeing and Health,Head of Adults,Third Party Payments,470101,Purchase of Care,12-Sep-2013,2642400-2118298,854.52,MANOR HOUSE CARE HOME.
Adults Wellbeing and Health,Head of Adults,Third Party Payments,470101,Purchase of Care,12-Sep-2013,2642400-2118300,"1,220.00",MANOR HOUSE CARE HOME.
Adults Wellbeing and Health,Head of Adults,Third Party Payments,470101,Purchase of Care,12-Sep-2013,2642400-2118301,"1,595.12",MANOR HOUSE CARE HOME.
Adults Wellbeing and Health,Head of Adults,Third Party Payments,470101,Purchase of Care,12-Sep-2013,2642400-2118302,854.52,MANOR HOUSE CARE HOME.
Adults Wellbeing and Health,Head of Adults,Third Party Payments,470101,Purchase of Care,12-Sep-2013,2642400-2118304,"1,109.12",MANOR HOUSE CARE HOME.
Adults Wellbeing and Health,Head of Adults,Third Party Payments,470101,Purchase of Care,12-Sep-2013,2642400-2118435,"1,595.12",MANOR HOUSE CARE HOME.
Adults Wellbeing and Health,Head of Adults,Third Party Payments,470101,Purchase of Care,12-Sep-2013,2642401-2117911,"1,738.00",MANOR HOUSE NURSING HOME.
Adults Wellbeing and Health,Head of Adults,Third Party Payments,470101,Purchase of Care,12-Sep-2013,2642401-2117914,"1,738.00",MANOR HOUSE NURSING HOME.
Adults Wellbeing and Health,Head of Adults,Third Party Payments,470101,Purchase of Care,12-Sep-2013,2642401-2117915,931.07,MANOR HOUSE NURSING HOME.
Adults Wellbeing and Health,Head of Adults,Third Party Payments,470101,Purchase of Care,12-Sep-2013,2642426-2117799,"1,792.92",MARIA MALLABAND NURSING HOMES LTD.
Adults Wellbeing and Health,Head of Adults,Third Party Payments,470101,Purchase of Care,12-Sep-2013,2642426-2117800,"1,840.92",MARIA MALLABAND NURSING HOMES LTD.
Adults Wellbeing and Health,Head of Adults,Third Party Payments,470101,Purchase of Care,12-Sep-2013,2642426-2117849,"1,840.92",MARIA MALLABAND NURSING HOMES LTD.
Adults Wellbeing and Health,Head of Adults,Third Party Payments,470101,Purchase of Care,12-Sep-2013,2642426-2117850,"1,792.92",MARIA MALLABAND NURSING HOMES LTD.
Adults Wellbeing and Health,Head of Adults,Third Party Payments,470101,Purchase of Care,12-Sep-2013,2642426-2117851,"1,792.92",MARIA MALLABAND NURSING HOMES LTD.
Adults Wellbeing and Health,Head of Adults,Third Party Payments,470101,Purchase of Care,12-Sep-2013,2642426-2117852,"1,792.92",MARIA MALLABAND NURSING HOMES LTD.
Adults Wellbeing and Health,Head of Adults,Third Party Payments,470101,Purchase of Care,12-Sep-2013,2642426-2117853,512.26,MARIA MALLABAND NURSING HOMES LTD.
Adults Wellbeing and Health,Head of Adults,Third Party Payments,470101,Purchase of Care,12-Sep-2013,2642426-2117854,"1,792.92",MARIA MALLABAND NURSING HOMES LTD.
Adults Wellbeing and Health,Head of Adults,Third Party Payments,470101,Purchase of Care,12-Sep-2013,2642426-2117855,"1,792.92",MARIA MALLABAND NURSING HOMES LTD.
Adults Wellbeing and Health,Head of Adults,Third Party Payments,470101,Purchase of Care,12-Sep-2013,2642426-2117856,"1,792.92",MARIA MALLABAND NURSING HOMES LTD.
Adults Wellbeing and Health,Head of Adults,Third Party Payments,470101,Purchase of Care,12-Sep-2013,2642426-2117857,"1,792.92",MARIA MALLABAND NURSING HOMES LTD.
Adults Wellbeing and Health,Head of Adults,Third Party Payments,470101,Purchase of Care,12-Sep-2013,2642426-2117858,"1,792.92",MARIA MALLABAND NURSING HOMES LTD.
Adults Wellbeing and Health,Head of Adults,Third Party Payments,470101,Purchase of Care,12-Sep-2013,2642426-2117859,"1,792.92",MARIA MALLABAND NURSING HOMES LTD.
Adults Wellbeing and Health,Head of Adults,Third Party Payments,470101,Purchase of Care,12-Sep-2013,2642426-2117860,"1,792.92",MARIA MALLABAND NURSING HOMES LTD.
Adults Wellbeing and Health,Head of Adults,Third Party Payments,470101,Purchase of Care,12-Sep-2013,2642426-2117861,"1,792.92",MARIA MALLABAND NURSING HOMES LTD.
Adults Wellbeing and Health,Head of Adults,Third Party Payments,470101,Purchase of Care,12-Sep-2013,2642447-2119564,"3,246.56",MARY CROSS TRUST.
Adults Wellbeing and Health,Head of Adults,Third Party Payments,470101,Purchase of Care,12-Sep-2013,2642447-2121738,910.14,MARY CROSS TRUST.
Adults Wellbeing and Health,Head of Adults,Third Party Payments,470101,Purchase of Care,12-Sep-2013,2642491-2119918,"4,411.40",MELBURY CARE SERVICES.
Adults Wellbeing and Health,Head of Adults,Third Party Payments,470101,Purchase of Care,12-Sep-2013,2642492-2117564,"1,894.36",MELBURY COURT.
Adults Wellbeing and Health,Head of Adults,Third Party Payments,470101,Purchase of Care,12-Sep-2013,2642492-2117565,"1,894.36",MELBURY COURT.
Adults Wellbeing and Health,Head of Adults,Third Party Payments,470101,Purchase of Care,12-Sep-2013,2642492-2117569,"1,894.36",MELBURY COURT.
Adults Wellbeing and Health,Head of Adults,Third Party Payments,470101,Purchase of Care,12-Sep-2013,2642492-2117570,"1,894.36",MELBURY COURT.
Adults Wellbeing and Health,Head of Adults,Third Party Payments,470101,Purchase of Care,12-Sep-2013,2642492-2117572,"1,894.36",MELBURY COURT.
Adults Wellbeing and Health,Head of Adults,Third Party Payments,470101,Purchase of Care,12-Sep-2013,2642492-2117573,"1,894.36",MELBURY COURT.
Adults Wellbeing and Health,Head of Adults,Third Party Payments,470101,Purchase of Care,12-Sep-2013,2642492-2117574,"1,894.36",MELBURY COURT.
Adults Wellbeing and Health,Head of Adults,Third Party Payments,470101,Purchase of Care,12-Sep-2013,2642492-2117575,"1,894.36",MELBURY COURT.
Adults Wellbeing and Health,Head of Adults,Third Party Payments,470101,Purchase of Care,12-Sep-2013,2642492-2117576,"1,894.36",MELBURY COURT.
Adults Wellbeing and Health,Head of Adults,Third Party Payments,470101,Purchase of Care,12-Sep-2013,2642492-2117577,"1,894.36",MELBURY COURT.
Adults Wellbeing and Health,Head of Adults,Third Party Payments,470101,Purchase of Care,12-Sep-2013,2642492-2117578,"1,894.36",MELBURY COURT.
Adults Wellbeing and Health,Head of Adults,Third Party Payments,470101,Purchase of Care,12-Sep-2013,2642492-2117579,"1,894.36",MELBURY COURT.
Adults Wellbeing and Health,Head of Adults,Third Party Payments,470101,Purchase of Care,12-Sep-2013,2642492-2117580,"1,894.36",MELBURY COURT.
Adults Wellbeing and Health,Head of Adults,Third Party Payments,470101,Purchase of Care,12-Sep-2013,2642492-2117581,"1,894.36",MELBURY COURT.
Adults Wellbeing and Health,Head of Adults,Third Party Payments,470101,Purchase of Care,12-Sep-2013,2642492-2117582,"1,826.70",MELBURY COURT.
Adults Wellbeing and Health,Head of Adults,Third Party Payments,470101,Purchase of Care,12-Sep-2013,2642492-2117583,"1,894.36",MELBURY COURT.
Adults Wellbeing and Health,Head of Adults,Third Party Payments,470101,Purchase of Care,12-Sep-2013,2642492-2117584,"1,894.36",MELBURY COURT.
Adults Wellbeing and Health,Head of Adults,Third Party Payments,470101,Purchase of Care,12-Sep-2013,2642492-2117585,"1,894.36",MELBURY COURT.
Adults Wellbeing and Health,Head of Adults,Third Party Payments,470101,Purchase of Care,12-Sep-2013,2642492-2117586,"1,894.36",MELBURY COURT.
Adults Wellbeing and Health,Head of Adults,Third Party Payments,470101,Purchase of Care,12-Sep-2013,2642492-2117587,"1,894.36",MELBURY COURT.
Adults Wellbeing and Health,Head of Adults,Third Party Payments,470101,Purchase of Care,12-Sep-2013,2642492-2117588,"1,894.36",MELBURY COURT.
Adults Wellbeing and Health,Head of Adults,Third Party Payments,470101,Purchase of Care,12-Sep-2013,2642492-2117589,"1,894.36",MELBURY COURT.
Adults Wellbeing and Health,Head of Adults,Third Party Payments,470101,Purchase of Care,12-Sep-2013,2642492-2117590,"1,894.36",MELBURY COURT.
Adults Wellbeing and Health,Head of Adults,Third Party Payments,470101,Purchase of Care,12-Sep-2013,2642492-2117591,"1,894.36",MELBURY COURT.
Adults Wellbeing and Health,Head of Adults,Third Party Payments,470101,Purchase of Care,12-Sep-2013,2642509-2119963,"3,242.52",MILBURY COMMUNITY SERVICES.
Adults Wellbeing and Health,Head of Adults,Third Party Payments,470101,Purchase of Care,12-Sep-2013,2642509-2119969,"3,242.52",MILBURY COMMUNITY SERVICES.
Adults Wellbeing and Health,Head of Adults,Third Party Payments,470101,Purchase of Care,12-Sep-2013,2642509-2119970,"3,171.56",MILBURY COMMUNITY SERVICES.
Adults Wellbeing and Health,Head of Adults,Third Party Payments,470101,Purchase of Care,12-Sep-2013,2642526-2119964,"1,797.68",MOORLAND HOLDINGS NE LTD.
Adults Wellbeing and Health,Head of Adults,Third Party Payments,470101,Purchase of Care,12-Sep-2013,2642526-2119965,"2,479.64",MOORLAND HOLDINGS NE LTD.
Adults Wellbeing and Health,Head of Adults,Third Party Payments,470101,Purchase of Care,12-Sep-2013,2642526-2119966,"2,965.64",MOORLAND HOLDINGS NE LTD.
Adults Wellbeing and Health,Head of Adults,Third Party Payments,470101,Purchase of Care,12-Sep-2013,2642526-2119967,"2,350.32",MOORLAND HOLDINGS NE LTD.
Adults Wellbeing and Health,Head of Adults,Third Party Payments,470101,Purchase of Care,12-Sep-2013,2642526-2119974,"1,482.48",MOORLAND HOLDINGS NE LTD.
Adults Wellbeing and Health,Head of Adults,Third Party Payments,470101,Purchase of Care,12-Sep-2013,2642526-2119975,"2,972.36",MOORLAND HOLDINGS NE LTD.
Adults Wellbeing and Health,Head of Adults,Third Party Payments,470101,Purchase of Care,12-Sep-2013,2642526-2119976,"1,797.68",MOORLAND HOLDINGS NE LTD.
Adults Wellbeing and Health,Head of Adults,Third Party Payments,470101,Purchase of Care,12-Sep-2013,2642526-2119977,"1,797.68",MOORLAND HOLDINGS NE LTD.
Adults Wellbeing and Health,Head of Adults,Third Party Payments,470101,Purchase of Care,12-Sep-2013,2642547-2119938,"1,797.68",REDACTED - PAYMENT TO INDIVIDUAL
Adults Wellbeing and Health,Head of Adults,Third Party Payments,470101,Purchase of Care,12-Sep-2013,2642547-2119939,"1,797.68",REDACTED - PAYMENT TO INDIVIDUAL
Adults Wellbeing and Health,Head of Adults,Third Party Payments,470101,Purchase of Care,12-Sep-2013,2642547-2119940,"1,461.08",REDACTED - PAYMENT TO INDIVIDUAL
Adults Wellbeing and Health,Head of Adults,Third Party Payments,470101,Purchase of Care,12-Sep-2013,2642548-2119980,"1,406.68",REDACTED - PAYMENT TO INDIVIDUAL
Adults Wellbeing and Health,Head of Adults,Third Party Payments,470101,Purchase of Care,12-Sep-2013,2642549-2119971,"1,797.68",REDACTED - PAYMENT TO INDIVIDUAL
Adults Wellbeing and Health,Head of Adults,Third Party Payments,470101,Purchase of Care,12-Sep-2013,2642549-2119972,"1,797.68",REDACTED - PAYMENT TO INDIVIDUAL
Adults Wellbeing and Health,Head of Adults,Third Party Payments,470101,Purchase of Care,12-Sep-2013,2642549-2119973,"1,406.68",REDACTED - PAYMENT TO INDIVIDUAL
Adults Wellbeing and Health,Head of Adults,Third Party Payments,470101,Purchase of Care,12-Sep-2013,2642550-2120074,"1,482.48",REDACTED - PAYMENT TO INDIVIDUAL
Adults Wellbeing and Health,Head of Adults,Third Party Payments,470101,Purchase of Care,12-Sep-2013,2642550-2120075,"1,797.68",REDACTED - PAYMENT TO INDIVIDUAL
Adults Wellbeing and Health,Head of Adults,Third Party Payments,470101,Purchase of Care,12-Sep-2013,2642550-2120076,"1,311.68",REDACTED - PAYMENT TO INDIVIDUAL
Adults Wellbeing and Health,Head of Adults,Third Party Payments,470101,Purchase of Care,12-Sep-2013,2642550-2120077,"1,311.68",REDACTED - PAYMENT TO INDIVIDUAL
Adults Wellbeing and Health,Head of Adults,Third Party Payments,470101,Purchase of Care,12-Sep-2013,2642550-2120081,"1,506.48",REDACTED - PAYMENT TO INDIVIDUAL
Adults Wellbeing and Health,Head of Adults,Third Party Payments,470101,Purchase of Care,12-Sep-2013,2642550-2120082,"1,311.68",REDACTED - PAYMENT TO INDIVIDUAL
Adults Wellbeing and Health,Head of Adults,Third Party Payments,470101,Purchase of Care,12-Sep-2013,2642550-2120083,"1,482.48",REDACTED - PAYMENT TO INDIVIDUAL
Adults Wellbeing and Health,Head of Adults,Third Party Payments,470101,Purchase of Care,12-Sep-2013,2642550-2120084,"1,797.68",REDACTED - PAYMENT TO INDIVIDUAL
Adults Wellbeing and Health,Head of Adults,Third Party Payments,470101,Purchase of Care,12-Sep-2013,2642551-2119995,"1,482.48",REDACTED - PAYMENT TO INDIVIDUAL
Adults Wellbeing and Health,Head of Adults,Third Party Payments,470101,Purchase of Care,12-Sep-2013,2642551-2119996,"1,797.68",REDACTED - PAYMENT TO INDIVIDUAL
Adults Wellbeing and Health,Head of Adults,Third Party Payments,470101,Purchase of Care,12-Sep-2013,2642551-2119997,"1,482.48",REDACTED - PAYMENT TO INDIVIDUAL
Adults Wellbeing and Health,Head of Adults,Third Party Payments,470101,Purchase of Care,12-Sep-2013,2642571-2119990,"1,518.48",REDACTED - PAYMENT TO INDIVIDUAL
Adults Wellbeing and Health,Head of Adults,Third Party Payments,470101,Purchase of Care,12-Sep-2013,2642571-2119991,"1,482.48",REDACTED - PAYMENT TO INDIVIDUAL
Adults Wellbeing and Health,Head of Adults,Third Party Payments,470101,Purchase of Care,12-Sep-2013,2642571-2119994,"1,311.68",REDACTED - PAYMENT TO INDIVIDUAL
Adults Wellbeing and Health,Head of Adults,Third Party Payments,470101,Purchase of Care,12-Sep-2013,2642638-2121831,"1,777.00",REDACTED - PAYMENT TO INDIVIDUAL
Adults Wellbeing and Health,Head of Adults,Third Party Payments,470101,Purchase of Care,12-Sep-2013,2642654-2118262,"1,595.12",REDACTED - PAYMENT TO INDIVIDUAL
Adults Wellbeing and Health,Head of Adults,Third Party Payments,470101,Purchase of Care,12-Sep-2013,2642654-2118263,"1,595.12",REDACTED - PAYMENT TO INDIVIDUAL
Adults Wellbeing and Health,Head of Adults,Third Party Payments,470101,Purchase of Care,12-Sep-2013,2642654-2118409,"1,595.12",REDACTED - PAYMENT TO INDIVIDUAL
Adults Wellbeing and Health,Head of Adults,Third Party Payments,470101,Purchase of Care,12-Sep-2013,2642654-2121296,"1,665.92",REDACTED - PAYMENT TO INDIVIDUAL
Adults Wellbeing and Health,Head of Adults,Third Party Payments,470101,Purchase of Care,12-Sep-2013,2642673-2119854,990.00,NATIONAL COLLEGE OF DILSTON.
Adults Wellbeing and Health,Head of Adults,Third Party Payments,470101,Purchase of Care,12-Sep-2013,2642685-2120012,"1,797.68",NEWLIFE CARE SERVICES LTD.
Adults Wellbeing and Health,Head of Adults,Third Party Payments,470101,Purchase of Care,12-Sep-2013,2642685-2120013,"3,137.00",NEWLIFE CARE SERVICES LTD.
Adults Wellbeing and Health,Head of Adults,Third Party Payments,470101,Purchase of Care,12-Sep-2013,2642685-2120014,"1,797.68",NEWLIFE CARE SERVICES LTD.
Adults Wellbeing and Health,Head of Adults,Third Party Payments,470101,Purchase of Care,12-Sep-2013,2642685-2120015,"3,137.00",NEWLIFE CARE SERVICES LTD.
Adults Wellbeing and Health,Head of Adults,Third Party Payments,470101,Purchase of Care,12-Sep-2013,2642685-2120016,"3,137.00",NEWLIFE CARE SERVICES LTD.
Adults Wellbeing and Health,Head of Adults,Third Party Payments,470101,Purchase of Care,12-Sep-2013,2642705-2117693,"1,314.00",NORTH PARK CARE HOME.
Adults Wellbeing and Health,Head of Adults,Third Party Payments,470101,Purchase of Care,12-Sep-2013,2642705-2117716,"1,800.00",NORTH PARK CARE HOME.
Adults Wellbeing and Health,Head of Adults,Third Party Payments,470101,Purchase of Care,12-Sep-2013,2642712-2117777,"1,864.40",NORTHUMBRIA CARE LTD.
Adults Wellbeing and Health,Head of Adults,Third Party Payments,470101,Purchase of Care,12-Sep-2013,2642715-2120073,"1,664.64",NSS (NE) LTD.
Adults Wellbeing and Health,Head of Adults,Third Party Payments,470101,Purchase of Care,12-Sep-2013,2642715-2120078,"3,200.00",NSS (NE) LTD.
Adults Wellbeing and Health,Head of Adults,Third Party Payments,470101,Purchase of Care,12-Sep-2013,2642715-2120079,"2,302.52",NSS (NE) LTD.
Adults Wellbeing and Health,Head of Adults,Third Party Payments,470101,Purchase of Care,12-Sep-2013,2642715-2120080,"1,664.64",NSS (NE) LTD.
Adults Wellbeing and Health,Head of Adults,Third Party Payments,470101,Purchase of Care,12-Sep-2013,2642719-2117992,"1,595.12",OAKWOOD.
Adults Wellbeing and Health,Head of Adults,Third Party Payments,470101,Purchase of Care,12-Sep-2013,2642719-2117993,"1,595.12",OAKWOOD.
Adults Wellbeing and Health,Head of Adults,Third Party Payments,470101,Purchase of Care,12-Sep-2013,2642719-2117994,995.04,OAKWOOD.
Adults Wellbeing and Health,Head of Adults,Third Party Payments,470101,Purchase of Care,12-Sep-2013,2642719-2117995,"1,595.12",OAKWOOD.
Adults Wellbeing and Health,Head of Adults,Third Party Payments,470101,Purchase of Care,12-Sep-2013,2642719-2118010,"1,595.12",OAKWOOD.
Adults Wellbeing and Health,Head of Adults,Third Party Payments,470101,Purchase of Care,12-Sep-2013,2642719-2119807,"1,595.12",OAKWOOD.
Adults Wellbeing and Health,Head of Adults,Third Party Payments,470101,Purchase of Care,12-Sep-2013,2642720-2118460,"1,792.92",OBJECT QUEST LTD.
Adults Wellbeing and Health,Head of Adults,Third Party Payments,470101,Purchase of Care,12-Sep-2013,2642720-2118461,"1,792.92",OBJECT QUEST LTD.
Adults Wellbeing and Health,Head of Adults,Third Party Payments,470101,Purchase of Care,12-Sep-2013,2642720-2118463,"1,792.92",OBJECT QUEST LTD.
Adults Wellbeing and Health,Head of Adults,Third Party Payments,470101,Purchase of Care,12-Sep-2013,2642720-2118466,"1,792.92",OBJECT QUEST LTD.
Adults Wellbeing and Health,Head of Adults,Third Party Payments,470101,Purchase of Care,12-Sep-2013,2642720-2118467,"1,792.92",OBJECT QUEST LTD.
Adults Wellbeing and Health,Head of Adults,Third Party Payments,470101,Purchase of Care,12-Sep-2013,2642720-2118468,"1,792.92",OBJECT QUEST LTD.
Adults Wellbeing and Health,Head of Adults,Third Party Payments,470101,Purchase of Care,12-Sep-2013,2642720-2118469,"1,792.92",OBJECT QUEST LTD.
Adults Wellbeing and Health,Head of Adults,Third Party Payments,470101,Purchase of Care,12-Sep-2013,2642720-2118485,"1,792.92",OBJECT QUEST LTD.
Adults Wellbeing and Health,Head of Adults,Third Party Payments,470101,Purchase of Care,12-Sep-2013,2642720-2118490,"1,792.92",OBJECT QUEST LTD.
Adults Wellbeing and Health,Head of Adults,Third Party Payments,470101,Purchase of Care,12-Sep-2013,2642720-2118492,"1,792.92",OBJECT QUEST LTD.
Adults Wellbeing and Health,Head of Adults,Third Party Payments,470101,Purchase of Care,12-Sep-2013,2642720-2118493,"1,792.92",OBJECT QUEST LTD.
Adults Wellbeing and Health,Head of Adults,Third Party Payments,470101,Purchase of Care,12-Sep-2013,2642720-2119584,"1,979.68",OBJECT QUEST LTD.
Adults Wellbeing and Health,Head of Adults,Third Party Payments,470101,Purchase of Care,12-Sep-2013,2642720-2121566,"1,344.69",OBJECT QUEST LTD.
Adults Wellbeing and Health,Head of Adults,Third Party Payments,470101,Purchase of Care,12-Sep-2013,2642737-2119842,"10,934.00",PARK LODGE CARE HOME.
Adults Wellbeing and Health,Head of Adults,Third Party Payments,470101,Purchase of Care,12-Sep-2013,2642738-2117304,"1,763.52",PARK LODGE.
Adults Wellbeing and Health,Head of Adults,Third Party Payments,470101,Purchase of Care,12-Sep-2013,2642739-2118143,"1,894.36",PARKLANDS NURSING HOME.
Adults Wellbeing and Health,Head of Adults,Third Party Payments,470101,Purchase of Care,12-Sep-2013,2642739-2118144,"1,894.36",PARKLANDS NURSING HOME.
Adults Wellbeing and Health,Head of Adults,Third Party Payments,470101,Purchase of Care,12-Sep-2013,2642739-2118191,"1,894.36",PARKLANDS NURSING HOME.
Adults Wellbeing and Health,Head of Adults,Third Party Payments,470101,Purchase of Care,12-Sep-2013,2642739-2118192,"1,894.36",PARKLANDS NURSING HOME.
Adults Wellbeing and Health,Head of Adults,Third Party Payments,470101,Purchase of Care,12-Sep-2013,2642739-2118193,"1,894.36",PARKLANDS NURSING HOME.
Adults Wellbeing and Health,Head of Adults,Third Party Payments,470101,Purchase of Care,12-Sep-2013,2642739-2118194,"1,894.36",PARKLANDS NURSING HOME.
Adults Wellbeing and Health,Head of Adults,Third Party Payments,470101,Purchase of Care,12-Sep-2013,2642739-2119575,"2,785.71",PARKLANDS NURSING HOME.
Adults Wellbeing and Health,Head of Adults,Third Party Payments,470101,Purchase of Care,12-Sep-2013,2642739-2119576,"1,284.00",PARKLANDS NURSING HOME.
Adults Wellbeing and Health,Head of Adults,Third Party Payments,470101,Purchase of Care,12-Sep-2013,2642739-2119577,"2,800.00",PARKLANDS NURSING HOME.
Adults Wellbeing and Health,Head of Adults,Third Party Payments,470101,Purchase of Care,12-Sep-2013,2642740-2118074,"1,067.60",PARKLANDS RESIDENTIAL HOME.
Adults Wellbeing and Health,Head of Adults,Third Party Payments,470101,Purchase of Care,12-Sep-2013,2642740-2118075,841.72,PARKLANDS RESIDENTIAL HOME.
Adults Wellbeing and Health,Head of Adults,Third Party Payments,470101,Purchase of Care,12-Sep-2013,2642740-2118076,"1,595.12",PARKLANDS RESIDENTIAL HOME.
Adults Wellbeing and Health,Head of Adults,Third Party Payments,470101,Purchase of Care,12-Sep-2013,2642740-2118082,919.44,PARKLANDS RESIDENTIAL HOME.
Adults Wellbeing and Health,Head of Adults,Third Party Payments,470101,Purchase of Care,12-Sep-2013,2642740-2119573,"1,816.92",PARKLANDS RESIDENTIAL HOME.
Adults Wellbeing and Health,Head of Adults,Third Party Payments,470101,Purchase of Care,12-Sep-2013,2642776-2118218,"1,595.12",PELTON GRANGE CARE HOME.
Adults Wellbeing and Health,Head of Adults,Third Party Payments,470101,Purchase of Care,12-Sep-2013,2642776-2118219,"1,174.24",PELTON GRANGE CARE HOME.
Adults Wellbeing and Health,Head of Adults,Third Party Payments,470101,Purchase of Care,12-Sep-2013,2642776-2118220,"1,109.12",PELTON GRANGE CARE HOME.
Adults Wellbeing and Health,Head of Adults,Third Party Payments,470101,Purchase of Care,12-Sep-2013,2642776-2118221,"1,109.12",PELTON GRANGE CARE HOME.
Adults Wellbeing and Health,Head of Adults,Third Party Payments,470101,Purchase of Care,12-Sep-2013,2642776-2118222,"1,098.08",PELTON GRANGE CARE HOME.
Adults Wellbeing and Health,Head of Adults,Third Party Payments,470101,Purchase of Care,12-Sep-2013,2642776-2118223,"1,079.40",PELTON GRANGE CARE HOME.
Adults Wellbeing and Health,Head of Adults,Third Party Payments,470101,Purchase of Care,12-Sep-2013,2642776-2118225,997.28,PELTON GRANGE CARE HOME.
Adults Wellbeing and Health,Head of Adults,Third Party Payments,470101,Purchase of Care,12-Sep-2013,2642776-2118261,900.20,PELTON GRANGE CARE HOME.
Adults Wellbeing and Health,Head of Adults,Third Party Payments,470101,Purchase of Care,12-Sep-2013,2642776-2118279,768.04,PELTON GRANGE CARE HOME.
Adults Wellbeing and Health,Head of Adults,Third Party Payments,470101,Purchase of Care,12-Sep-2013,2642776-2118321,"1,595.12",PELTON GRANGE CARE HOME.
Adults Wellbeing and Health,Head of Adults,Third Party Payments,470101,Purchase of Care,12-Sep-2013,2642776-2118362,"1,027.52",PELTON GRANGE CARE HOME.
Adults Wellbeing and Health,Head of Adults,Third Party Payments,470101,Purchase of Care,12-Sep-2013,2642776-2118363,"1,595.12",PELTON GRANGE CARE HOME.
Adults Wellbeing and Health,Head of Adults,Third Party Payments,470101,Purchase of Care,12-Sep-2013,2642776-2118364,"1,595.12",PELTON GRANGE CARE HOME.
Adults Wellbeing and Health,Head of Adults,Third Party Payments,470101,Purchase of Care,12-Sep-2013,2642776-2118365,"1,109.12",PELTON GRANGE CARE HOME.
Adults Wellbeing and Health,Head of Adults,Third Party Payments,470101,Purchase of Care,12-Sep-2013,2642776-2118366,"1,064.20",PELTON GRANGE CARE HOME.
Adults Wellbeing and Health,Head of Adults,Third Party Payments,470101,Purchase of Care,12-Sep-2013,2642776-2118367,"1,057.00",PELTON GRANGE CARE HOME.
Adults Wellbeing and Health,Head of Adults,Third Party Payments,470101,Purchase of Care,12-Sep-2013,2642779-2119567,"4,866.48",PERCY HEDLEY CENTRE.
Adults Wellbeing and Health,Head of Adults,Third Party Payments,470101,Purchase of Care,12-Sep-2013,2642779-2119568,"4,501.92",PERCY HEDLEY CENTRE.
Adults Wellbeing and Health,Head of Adults,Third Party Payments,470101,Purchase of Care,12-Sep-2013,2642779-2119569,"2,852.84",PERCY HEDLEY CENTRE.
Adults Wellbeing and Health,Head of Adults,Third Party Payments,470101,Purchase of Care,12-Sep-2013,2642779-2119570,"2,509.88",PERCY HEDLEY CENTRE.
Adults Wellbeing and Health,Head of Adults,Third Party Payments,470101,Purchase of Care,12-Sep-2013,2642784-2121560,"1,976.25",PHOENIX FUTURES.
Adults Wellbeing and Health,Head of Adults,Third Party Payments,470101,Purchase of Care,12-Sep-2013,2642789-2117694,"1,696.00",REDACTED - PAYMENT TO INDIVIDUAL
Adults Wellbeing and Health,Head of Adults,Third Party Payments,470101,Purchase of Care,12-Sep-2013,2642800-2119879,"1,482.48",POSITIVE APPROACH SERVICES LTD.
Adults Wellbeing and Health,Head of Adults,Third Party Payments,470101,Purchase of Care,12-Sep-2013,2642800-2119880,"1,797.68",POSITIVE APPROACH SERVICES LTD.
Adults Wellbeing and Health,Head of Adults,Third Party Payments,470101,Purchase of Care,12-Sep-2013,2642800-2119881,"1,482.48",POSITIVE APPROACH SERVICES LTD.
Adults Wellbeing and Health,Head of Adults,Third Party Payments,470101,Purchase of Care,12-Sep-2013,2642800-2119882,"1,482.48",POSITIVE APPROACH SERVICES LTD.
Adults Wellbeing and Health,Head of Adults,Third Party Payments,470101,Purchase of Care,12-Sep-2013,2642801-2119933,"1,817.68",POSITIVE APPROACH SERVICES LTD.
Adults Wellbeing and Health,Head of Adults,Third Party Payments,470101,Purchase of Care,12-Sep-2013,2642801-2119934,"2,448.36",POSITIVE APPROACH SERVICES LTD.
Adults Wellbeing and Health,Head of Adults,Third Party Payments,470101,Purchase of Care,12-Sep-2013,2642801-2119950,"2,100.00",POSITIVE APPROACH SERVICES LTD.
Adults Wellbeing and Health,Head of Adults,Third Party Payments,470101,Purchase of Care,12-Sep-2013,2642801-2119951,"1,062.92",POSITIVE APPROACH SERVICES LTD.
Adults Wellbeing and Health,Head of Adults,Third Party Payments,470101,Purchase of Care,12-Sep-2013,2642801-2119952,"1,797.68",POSITIVE APPROACH SERVICES LTD.
Adults Wellbeing and Health,Head of Adults,Third Party Payments,470101,Purchase of Care,12-Sep-2013,2642801-2119953,"1,870.64",POSITIVE APPROACH SERVICES LTD.
Adults Wellbeing and Health,Head of Adults,Third Party Payments,470101,Purchase of Care,12-Sep-2013,2642801-2119954,"1,311.68",POSITIVE APPROACH SERVICES LTD.
Adults Wellbeing and Health,Head of Adults,Third Party Payments,470101,Purchase of Care,12-Sep-2013,2642801-2119955,"1,797.68",POSITIVE APPROACH SERVICES LTD.
Adults Wellbeing and Health,Head of Adults,Third Party Payments,470101,Purchase of Care,12-Sep-2013,2642801-2119956,"1,482.48",POSITIVE APPROACH SERVICES LTD.
Adults Wellbeing and Health,Head of Adults,Third Party Payments,470101,Purchase of Care,12-Sep-2013,2642801-2119957,"1,311.68",POSITIVE APPROACH SERVICES LTD.
Adults Wellbeing and Health,Head of Adults,Third Party Payments,470101,Purchase of Care,12-Sep-2013,2642801-2119958,"1,089.84",POSITIVE APPROACH SERVICES LTD.
Adults Wellbeing and Health,Head of Adults,Third Party Payments,470101,Purchase of Care,12-Sep-2013,2642801-2119959,"1,482.48",POSITIVE APPROACH SERVICES LTD.
Adults Wellbeing and Health,Head of Adults,Third Party Payments,470101,Purchase of Care,12-Sep-2013,2642802-2119848,"1,797.68",POTENSIAL LTD.
Adults Wellbeing and Health,Head of Adults,Third Party Payments,470101,Purchase of Care,12-Sep-2013,2642802-2119849,"1,797.68",POTENSIAL LTD.
Adults Wellbeing and Health,Head of Adults,Third Party Payments,470101,Purchase of Care,12-Sep-2013,2642802-2119861,"1,797.68",POTENSIAL LTD.
Adults Wellbeing and Health,Head of Adults,Third Party Payments,470101,Purchase of Care,12-Sep-2013,2642802-2119862,"1,797.68",POTENSIAL LTD.
Adults Wellbeing and Health,Head of Adults,Third Party Payments,470101,Purchase of Care,12-Sep-2013,2642802-2119863,"1,797.68",POTENSIAL LTD.
Adults Wellbeing and Health,Head of Adults,Third Party Payments,470101,Purchase of Care,12-Sep-2013,2642802-2119864,"1,797.68",POTENSIAL LTD.
Adults Wellbeing and Health,Head of Adults,Third Party Payments,470101,Purchase of Care,12-Sep-2013,2642802-2119865,"1,797.68",POTENSIAL LTD.
Adults Wellbeing and Health,Head of Adults,Third Party Payments,470101,Purchase of Care,12-Sep-2013,2642803-2119878,"1,447.24",POTENSIAL LTD.
Adults Wellbeing and Health,Head of Adults,Third Party Payments,470101,Purchase of Care,12-Sep-2013,2642804-2119839,"1,924.80",POTENSIAL LTD.
Adults Wellbeing and Health,Head of Adults,Third Party Payments,470101,Purchase of Care,12-Sep-2013,2642804-2120032,"2,240.00",POTENSIAL LTD.
Adults Wellbeing and Health,Head of Adults,Third Party Payments,470101,Purchase of Care,12-Sep-2013,2642804-2120040,"2,095.60",POTENSIAL LTD.
Adults Wellbeing and Health,Head of Adults,Third Party Payments,470101,Purchase of Care,12-Sep-2013,2642804-2120041,"1,797.68",POTENSIAL LTD.
Adults Wellbeing and Health,Head of Adults,Third Party Payments,470101,Purchase of Care,12-Sep-2013,2642804-2120042,"2,240.00",POTENSIAL LTD.
Adults Wellbeing and Health,Head of Adults,Third Party Payments,470101,Purchase of Care,12-Sep-2013,2642804-2120053,"2,240.00",POTENSIAL LTD.
Adults Wellbeing and Health,Head of Adults,Third Party Payments,470101,Purchase of Care,12-Sep-2013,2642804-2120055,"1,258.32",POTENSIAL LTD.
Adults Wellbeing and Health,Head of Adults,Third Party Payments,470101,Purchase of Care,12-Sep-2013,2642804-2120056,"1,797.68",POTENSIAL LTD.
Adults Wellbeing and Health,Head of Adults,Third Party Payments,470101,Purchase of Care,12-Sep-2013,2642807-2118265,"1,892.92",PREMIER CARE HOMES LTD.
Adults Wellbeing and Health,Head of Adults,Third Party Payments,470101,Purchase of Care,12-Sep-2013,2642807-2118266,"1,892.92",PREMIER CARE HOMES LTD.
Adults Wellbeing and Health,Head of Adults,Third Party Payments,470101,Purchase of Care,12-Sep-2013,2642807-2118410,"1,792.92",PREMIER CARE HOMES LTD.
Adults Wellbeing and Health,Head of Adults,Third Party Payments,470101,Purchase of Care,12-Sep-2013,2642807-2121306,"1,863.80",PREMIER CARE HOMES LTD.
Adults Wellbeing and Health,Head of Adults,Third Party Payments,470101,Purchase of Care,12-Sep-2013,2642808-2117326,"1,894.36",PREMIER CARE HOMES LTD.
Adults Wellbeing and Health,Head of Adults,Third Party Payments,470101,Purchase of Care,12-Sep-2013,2642808-2117327,"1,894.36",PREMIER CARE HOMES LTD.
Adults Wellbeing and Health,Head of Adults,Third Party Payments,470101,Purchase of Care,12-Sep-2013,2642808-2117328,"1,894.36",PREMIER CARE HOMES LTD.
Adults Wellbeing and Health,Head of Adults,Third Party Payments,470101,Purchase of Care,12-Sep-2013,2642808-2117329,947.18,PREMIER CARE HOMES LTD.
Adults Wellbeing and Health,Head of Adults,Third Party Payments,470101,Purchase of Care,12-Sep-2013,2642808-2117330,"1,894.36",PREMIER CARE HOMES LTD.
Adults Wellbeing and Health,Head of Adults,Third Party Payments,470101,Purchase of Care,12-Sep-2013,2642808-2117331,"1,894.36",PREMIER CARE HOMES LTD.
Adults Wellbeing and Health,Head of Adults,Third Party Payments,470101,Purchase of Care,12-Sep-2013,2642808-2117332,"1,894.36",PREMIER CARE HOMES LTD.
Adults Wellbeing and Health,Head of Adults,Third Party Payments,470101,Purchase of Care,12-Sep-2013,2642808-2117333,"1,894.36",PREMIER CARE HOMES LTD.
Adults Wellbeing and Health,Head of Adults,Third Party Payments,470101,Purchase of Care,12-Sep-2013,2642808-2117334,"1,894.36",PREMIER CARE HOMES LTD.
Adults Wellbeing and Health,Head of Adults,Third Party Payments,470101,Purchase of Care,12-Sep-2013,2642808-2117335,"1,894.36",PREMIER CARE HOMES LTD.
Adults Wellbeing and Health,Head of Adults,Third Party Payments,470101,Purchase of Care,12-Sep-2013,2642808-2117336,"1,894.36",PREMIER CARE HOMES LTD.
Adults Wellbeing and Health,Head of Adults,Third Party Payments,470101,Purchase of Care,12-Sep-2013,2642808-2117337,"1,894.36",PREMIER CARE HOMES LTD.
Adults Wellbeing and Health,Head of Adults,Third Party Payments,470101,Purchase of Care,12-Sep-2013,2642808-2117338,"1,894.36",PREMIER CARE HOMES LTD.
Adults Wellbeing and Health,Head of Adults,Third Party Payments,470101,Purchase of Care,12-Sep-2013,2642808-2117339,"1,894.36",PREMIER CARE HOMES LTD.
Adults Wellbeing and Health,Head of Adults,Third Party Payments,470101,Purchase of Care,12-Sep-2013,2642808-2117340,"1,894.36",PREMIER CARE HOMES LTD.
Adults Wellbeing and Health,Head of Adults,Third Party Payments,470101,Purchase of Care,12-Sep-2013,2642808-2117341,"1,894.36",PREMIER CARE HOMES LTD.
Adults Wellbeing and Health,Head of Adults,Third Party Payments,470101,Purchase of Care,12-Sep-2013,2642808-2117342,"1,894.36",PREMIER CARE HOMES LTD.
Adults Wellbeing and Health,Head of Adults,Third Party Payments,470101,Purchase of Care,12-Sep-2013,2642808-2117343,"1,894.36",PREMIER CARE HOMES LTD.
Adults Wellbeing and Health,Head of Adults,Third Party Payments,470101,Purchase of Care,12-Sep-2013,2642808-2117344,"1,894.36",PREMIER CARE HOMES LTD.
Adults Wellbeing and Health,Head of Adults,Third Party Payments,470101,Purchase of Care,12-Sep-2013,2642808-2117345,"1,894.36",PREMIER CARE HOMES LTD.
Adults Wellbeing and Health,Head of Adults,Third Party Payments,470101,Purchase of Care,12-Sep-2013,2642808-2117346,"1,894.36",PREMIER CARE HOMES LTD.
Adults Wellbeing and Health,Head of Adults,Third Party Payments,470101,Purchase of Care,12-Sep-2013,2642808-2117347,"1,894.36",PREMIER CARE HOMES LTD.
Adults Wellbeing and Health,Head of Adults,Third Party Payments,470101,Purchase of Care,12-Sep-2013,2642808-2121673,"1,820.91",PREMIER CARE HOMES LTD.
Adults Wellbeing and Health,Head of Adults,Third Party Payments,470101,Purchase of Care,12-Sep-2013,2642808-2121677,758.71,PREMIER CARE HOMES LTD.
Adults Wellbeing and Health,Head of Adults,Third Party Payments,470101,Purchase of Care,12-Sep-2013,2642811-2121399,"1,625.00",PRESWICK CARE LTD.
Adults Wellbeing and Health,Head of Adults,Third Party Payments,470101,Purchase of Care,12-Sep-2013,2642837-2120049,"1,797.68",RAYSON HOMES LTD.
Adults Wellbeing and Health,Head of Adults,Third Party Payments,470101,Purchase of Care,12-Sep-2013,2642837-2120050,"1,797.68",RAYSON HOMES LTD.
Adults Wellbeing and Health,Head of Adults,Third Party Payments,470101,Purchase of Care,12-Sep-2013,2642837-2120051,"1,797.68",RAYSON HOMES LTD.
Adults Wellbeing and Health,Head of Adults,Third Party Payments,470101,Purchase of Care,12-Sep-2013,2642837-2120052,"1,977.28",RAYSON HOMES LTD.
Adults Wellbeing and Health,Head of Adults,Third Party Payments,470101,Purchase of Care,12-Sep-2013,2642837-2120066,"1,917.68",RAYSON HOMES LTD.
Adults Wellbeing and Health,Head of Adults,Third Party Payments,470101,Purchase of Care,12-Sep-2013,2642837-2120067,"1,797.68",RAYSON HOMES LTD.
Adults Wellbeing and Health,Head of Adults,Third Party Payments,470101,Purchase of Care,12-Sep-2013,2642837-2120068,"1,797.68",RAYSON HOMES LTD.
Adults Wellbeing and Health,Head of Adults,Third Party Payments,470101,Purchase of Care,12-Sep-2013,2642837-2120069,"1,797.68",RAYSON HOMES LTD.
Adults Wellbeing and Health,Head of Adults,Third Party Payments,470101,Purchase of Care,12-Sep-2013,2642837-2120070,"1,952.72",RAYSON HOMES LTD.
Adults Wellbeing and Health,Head of Adults,Third Party Payments,470101,Purchase of Care,12-Sep-2013,2642837-2120071,"1,797.68",RAYSON HOMES LTD.
Adults Wellbeing and Health,Head of Adults,Third Party Payments,470101,Purchase of Care,12-Sep-2013,2642837-2120072,"1,797.68",RAYSON HOMES LTD.
Adults Wellbeing and Health,Head of Adults,Third Party Payments,470101,Purchase of Care,12-Sep-2013,2642838-2118487,"6,467.32",RAYSON HOMES LTD.
Adults Wellbeing and Health,Head of Adults,Third Party Payments,470101,Purchase of Care,12-Sep-2013,2642838-2118488,"1,792.92",RAYSON HOMES LTD.
Adults Wellbeing and Health,Head of Adults,Third Party Payments,470101,Purchase of Care,12-Sep-2013,2642838-2118504,992.68,RAYSON HOMES LTD.
Adults Wellbeing and Health,Head of Adults,Third Party Payments,470101,Purchase of Care,12-Sep-2013,2642838-2118539,"1,311.91",RAYSON HOMES LTD.
Adults Wellbeing and Health,Head of Adults,Third Party Payments,470101,Purchase of Care,12-Sep-2013,2642838-2118540,"1,792.92",RAYSON HOMES LTD.
Adults Wellbeing and Health,Head of Adults,Third Party Payments,470101,Purchase of Care,12-Sep-2013,2642838-2121523,896.46,RAYSON HOMES LTD.
Adults Wellbeing and Health,Head of Adults,Third Party Payments,470101,Purchase of Care,12-Sep-2013,2642846-2118156,"1,212.20",REDWELL HILLS.
Adults Wellbeing and Health,Head of Adults,Third Party Payments,470101,Purchase of Care,12-Sep-2013,2642846-2118201,"1,306.92",REDWELL HILLS.
Adults Wellbeing and Health,Head of Adults,Third Party Payments,470101,Purchase of Care,12-Sep-2013,2642846-2118230,"1,257.68",REDWELL HILLS.
Adults Wellbeing and Health,Head of Adults,Third Party Payments,470101,Purchase of Care,12-Sep-2013,2642846-2118231,"1,290.36",REDWELL HILLS.
Adults Wellbeing and Health,Head of Adults,Third Party Payments,470101,Purchase of Care,12-Sep-2013,2642846-2118322,"1,792.92",REDWELL HILLS.
Adults Wellbeing and Health,Head of Adults,Third Party Payments,470101,Purchase of Care,12-Sep-2013,2642846-2118375,"1,792.92",REDWELL HILLS.
Adults Wellbeing and Health,Head of Adults,Third Party Payments,470101,Purchase of Care,12-Sep-2013,2642846-2118377,"1,792.92",REDWELL HILLS.
Adults Wellbeing and Health,Head of Adults,Third Party Payments,470101,Purchase of Care,12-Sep-2013,2642846-2118379,"1,212.40",REDWELL HILLS.
Adults Wellbeing and Health,Head of Adults,Third Party Payments,470101,Purchase of Care,12-Sep-2013,2642846-2121742,"1,792.92",REDWELL HILLS.
Adults Wellbeing and Health,Head of Adults,Third Party Payments,470101,Purchase of Care,12-Sep-2013,2642846-2121743,560.96,REDWELL HILLS.
Adults Wellbeing and Health,Head of Adults,Third Party Payments,470101,Purchase of Care,12-Sep-2013,2642847-2117689,"1,280.65",REDWORTH HOUSE.
Adults Wellbeing and Health,Head of Adults,Third Party Payments,470101,Purchase of Care,12-Sep-2013,2642847-2119903,"1,854.68",REDWORTH HOUSE.
Adults Wellbeing and Health,Head of Adults,Third Party Payments,470101,Purchase of Care,12-Sep-2013,2642847-2119915,"1,854.68",REDWORTH HOUSE.
Adults Wellbeing and Health,Head of Adults,Third Party Payments,470101,Purchase of Care,12-Sep-2013,2642847-2119916,"2,967.75",REDWORTH HOUSE.
Adults Wellbeing and Health,Head of Adults,Third Party Payments,470101,Purchase of Care,12-Sep-2013,2642847-2119917,"14,157.15",REDWORTH HOUSE.
Adults Wellbeing and Health,Head of Adults,Third Party Payments,470101,Purchase of Care,12-Sep-2013,2642847-2121770,510.00,REDWORTH HOUSE.
Adults Wellbeing and Health,Head of Adults,Third Party Payments,470101,Purchase of Care,12-Sep-2013,2642860-2119993,"1,954.08",RICHMOND COURT.
Adults Wellbeing and Health,Head of Adults,Third Party Payments,470101,Purchase of Care,12-Sep-2013,2642860-2119999,"1,954.08",RICHMOND COURT.
Adults Wellbeing and Health,Head of Adults,Third Party Payments,470101,Purchase of Care,12-Sep-2013,2642860-2120000,"1,954.08",RICHMOND COURT.
Adults Wellbeing and Health,Head of Adults,Third Party Payments,470101,Purchase of Care,12-Sep-2013,2642860-2120003,697.88,RICHMOND COURT.
Adults Wellbeing and Health,Head of Adults,Third Party Payments,470101,Purchase of Care,12-Sep-2013,2642860-2120005,"1,954.08",RICHMOND COURT.
Adults Wellbeing and Health,Head of Adults,Third Party Payments,470101,Purchase of Care,12-Sep-2013,2642860-2120006,"1,954.08",RICHMOND COURT.
Adults Wellbeing and Health,Head of Adults,Third Party Payments,470101,Purchase of Care,12-Sep-2013,2642860-2120007,"1,954.08",RICHMOND COURT.
Adults Wellbeing and Health,Head of Adults,Third Party Payments,470101,Purchase of Care,12-Sep-2013,2642860-2120008,"1,954.08",RICHMOND COURT.
Adults Wellbeing and Health,Head of Adults,Third Party Payments,470101,Purchase of Care,12-Sep-2013,2642860-2121488,994.50,RICHMOND COURT.
Adults Wellbeing and Health,Head of Adults,Third Party Payments,470101,Purchase of Care,12-Sep-2013,2642868-2108114,"1,592.00",RIVERSIDE MEWS CARE HOME.
Adults Wellbeing and Health,Head of Adults,Third Party Payments,470101,Purchase of Care,12-Sep-2013,2642868-2117549,"1,592.00",RIVERSIDE MEWS CARE HOME.
Adults Wellbeing and Health,Head of Adults,Third Party Payments,470101,Purchase of Care,12-Sep-2013,2642881-2117403,"1,954.36",ROSE LODGE CARE HOME.
Adults Wellbeing and Health,Head of Adults,Third Party Payments,470101,Purchase of Care,12-Sep-2013,2642881-2117407,"1,276.08",ROSE LODGE CARE HOME.
Adults Wellbeing and Health,Head of Adults,Third Party Payments,470101,Purchase of Care,12-Sep-2013,2642881-2117408,"1,894.36",ROSE LODGE CARE HOME.
